{"text_format":"1","workbook":"xlsx","n_sheets":10,"sheets":["READ ME","INPUT_Pre-check","INPUT_Weight setting","INPUT_Geophysical Parameters","INPUT_Business Conditions","OUTPUT_Result","Translate","Calculations","Lists","Lists 2"],"not_rendered":{"charts":9,"images":46,"macros":1,"external_links":1,"defined_names":20,"comments":4,"pivot_tables":0},"unopened":[],"bounds":{"document_bytes":16777216,"sheet_cells":100000,"rows_first":2000,"rows_last":500,"rows_between":2000,"halvings":0,"cell_chars":16384,"cell_head_chars":4096},"cells_cut":0,"cells_raw":0,"read":"whole","date_system":"1900"}

{"sheet":"READ ME","index":0,"n_rows":48,"n_cols":4,"rows_kept":48,"cut":false,"hidden":false,"merged":[[42,2,42,5],[44,2,44,5],[46,2,46,5],[38,3,38,5],[39,3,39,5],[33,2,33,5],[34,3,34,5],[35,3,35,5],[36,3,36,5],[37,3,37,5],[27,3,27,5],[28,3,28,5],[29,3,29,5],[30,3,30,5],[31,3,31,5],[26,2,26,3],[11,2,11,5],[12,2,12,5],[14,2,14,5],[16,2,16,5],[17,2,17,5],[18,2,18,5],[19,2,19,5],[20,2,20,5],[21,2,21,5],[22,2,22,5],[23,2,23,5],[25,2,25,5],[10,2,10,3],[4,2,4,5],[9,2,9,5],[2,3,2,5],[5,2,6,3],[7,2,7,3]]}
[]
[]
[null,null,{"$f":"Translate!$C$20","v":"Select language"},"English"]
[]
[null,null,{"$f":"Translate!$C$21","v":"Read Me Sheet"}]
[]
[]
[]
[]
[null,null,{"$f":"Translate!$C$22","v":"Market – Market Assessment tool"}]
[]
[null,null,{"$f":"Translate!$C$23","v":"Introduction"}]
[null,null,{"$f":"Translate!$C$24","v":"This tool complements the module MARKET in the SPIS Toolbox. The tool serves to determine geophysical parameters highlighted as make or break. If any of the parameters scores a 0, the area is considered to have very poor potential for SPIS. A ‘yes’ from this evaluation allows consideration of other parameters."}]
[]
[null,null,{"$f":"Translate!$C$25","v":"Tips & Tricks"}]
[]
[null,null,{"$f":"Translate!$C$26","v":"● Make sure that macro is always enabled for the proper functioning of this tool."}]
[null,null,{"$f":"Translate!$C$27","v":"● Only enter values into white (non-coloured) cells."}]
[null,null,{"$f":"Translate!$C$28","v":"● Tool may contain illustrative sample values. Please adjust or remove."}]
[null,null,{"$f":"Translate!$C$29","v":"● This tool contains numerous critical formulas or calculations in colored cells."}]
[null,null,{"$f":"Translate!$C$30","v":"● The sheets in this tool are linked and values are automatically calculated and transferred between the sheets."}]
[null,null,{"$f":"Translate!$C$31","v":"● You can access data sources to get the required information by clicking on the provided links."}]
[null,null,{"$f":"Translate!$C$32","v":"● For the multilanguage option to work properly, do NOT delete sheets."}]
[null,null,{"$f":"Translate!$C$33","v":"● Make sure that this file is always saved as \".xlsm\".    \n"}]
[]
[null,null,{"$f":"Translate!C34","v":"Overview"}]
[null,null,{"$f":"Translate!C35","v":"This tool comprises the following sheet:"}]
[null,null,{"$f":"Translate!$C$8","v":"INPUT_Pre-check"},{"$f":"Translate!$C$36","v":"Allows the first check for SPIS suitability to proceed with the assessment"}]
[null,null,{"$f":"Translate!$C$9","v":"INPUT_Weight setting"},{"$f":"Translate!$C$37","v":"Provides a description of parameters and allows for adjusting weights"}]
[null,null,{"$f":"Translate!$C$10","v":"INPUT_Geophysical Parameters"},{"$f":"Translate!$C$38","v":"For defining geophysical parameters in the target area"}]
[null,null,{"$f":"Translate!$C$11","v":"INPUT_Business Conditions"},{"$f":"Translate!$C$39","v":"For defining business relevant parameters relevant to the target area"}]
[null,null,{"$f":"Translate!$C$12","v":"OUTPUT_Result"},{"$f":"Translate!$C$40","v":"Shows a graphic overview of the market potential of SPIS within an area"}]
[]
[null,null,{"$f":"Translate!$C$41","v":"About"}]
[null,null,{"$f":"Translate!$C$42","v":"Published by: "},{"$f":"Translate!$C$48","v":"GIZ & FAO"}]
[null,null,{"$f":"Translate!$C$43","v":"Responsible:"},{"$f":"Translate!$C$49","v":"GIZ project \"Water and Energy for Food (WE4F)\""}]
[null,null,{"$f":"Translate!$C$44","v":"Contact:"},"we4f@giz.de"]
[null,null,{"$f":"Translate!$C$45","v":"Download link:"},"https://energypedia.info/wiki/Toolbox_on_SPIS"]
[null,null,{"$f":"Translate!$C$46","v":"About:"},{"$f":"Translate!$C$50","v":"Water and Energy for Food Grand Challenge at:  "}]
[null,null,null,"https://we4f.org/"]
[null,null,{"$f":"Translate!$C$47","v":"Version:"},{"$f":"Translate!$C$51","v":"3.0 (June 2021)"}]
[]
[null,null,{"$f":"Translate!$C$52","v":"The Toolbox on Solar Powered Irrigation Systems (SPIS) is a legacy project of the global initiative Powering Agriculture: An Energy Grand Challenge for Development (PAEGC). In 2012, the United States Agency for International Development (USAID), the Swedish International Development Cooperation Agency (Sida), the German Federal Ministry for Economic Cooperation and Development (BMZ), Duke Energy, and the Overseas Private Investment Corporation (OPIC) combined resources to support new and sustainable approaches to accelerate the development and deployment of clean energy solutions for increasing agriculture productivity.\n\nThe Toolbox on SPIS has now been embraced for further development by PAEGC's successor program Water and Energy for Food (WE4F). WE4F is a joint international initiative of the European Union (EU), German Federal Ministry for Economic Cooperation and Development (BMZ), the Ministry of Foreign Affairs of the Kingdom of the Netherlands, Sweden through the Swedish International Development Cooperation Agency (Sida), and the U.S. Agency for International Development (USAID). WE4F aims to increase food production along the value chain through a more sustainable and efficient usage of water and/or energy."}]
[]
[null,null,{"$f":"Translate!$C$53","v":"The designations employed and the presentation of material in this information product do not imply the expression of any opinion whatsoever on the part of Deutsche Gesellschaft für Internationale Zusammenarbeit (GIZ) GmbH, Food and Agriculture Organization of the United Nations (FAO) or any of the PAEGC Founding Partners concerning the legal or development status of any country, territory, city or area or of its authorities, or concerning the delimitation of its frontiers or boundaries. The mention of specific companies or products of manufacturers, whether or not these have been patented, does not imply that these have been endorsed or recommended by GIZ, FAO, or any of the PAEGC Founding Partners in preference to others of a similar nature that are not mentioned. The views expressed in this information product are those of the author and do not necessarily reflect the views or policies of GIZ, FAO, or any of the PAEGC Founding Partners."}]
[]
[null,null,{"$f":"Translate!$C$54","v":"GIZ, FAO and the PAEGC Founding Partners encourage the use, reproduction and dissemination of material in this information product. Except where otherwise indicated, material may be copied, downloaded and printed for private study, research and teaching purposes, or for use in non-commercial products or services, provided that appropriate acknowledgement of GIZ and FAO as the source and copyright holder is given."}]
[null,null,{"$f":"Translate!$C$55","v":"© GIZ and FAO, 2021"}]

{"sheet":"INPUT_Pre-check","index":1,"n_rows":31,"n_cols":21,"rows_kept":31,"cut":false,"hidden":false,"merged":[[27,5,27,7],[30,5,30,7],[29,5,29,8],[28,5,28,8],[13,19,16,19],[15,17,16,17],[15,18,16,18],[21,1,22,15],[20,14,20,15],[3,0,3,15],[7,3,7,11],[8,3,8,11],[15,0,19,0],[16,6,17,6],[16,7,17,7],[16,8,17,8],[16,9,17,9],[16,10,17,10],[10,0,11,0],[16,3,17,3],[16,4,17,4],[16,14,17,14],[14,2,14,13],[15,2,15,13],[1,4,1,10],[2,4,2,12],[18,14,19,14],[15,15,19,15],[9,1,9,8],[5,3,5,11],[6,3,6,11],[15,1,17,1],[16,13,17,13],[16,11,17,11],[16,12,17,12],[16,5,17,5],[12,2,12,13],[13,2,13,13],[10,1,11,13],[16,2,17,2]]}
[]
[null,null,null,null,{"$f":"Translate!$C$57","v":"INPUT - Pre-check"}]
[]
[]
[]
[null,{"$f":"Translate!$C$58","v":"Country:"},null,"Select the country of Interest"]
[null,{"$f":"Translate!$C$59","v":"Specific area of interest:"}]
[null,{"$f":"Translate!$C$60","v":"Assessment date:"}]
[null,{"$f":"Translate!$C$58","v":"Country:"}]
[]
[1,{"$f":"Translate!$C$62","v":"Critical Geophysical Parameters"},null,null,null,null,null,null,null,null,null,null,null,null,{"$f":"Translate!$C$65","v":"Highest Possible Score"},{"$f":"Translate!$C$66","v":"Attained Score"}]
[null,null,null,null,null,null,null,null,null,null,null,null,null,null,9,{"$f":"IF(COUNTIF(S14:S17,0)=0,S14+S15+S16,0)","v":8}]
[null,{"$f":"Translate!$C$63","v":"Questions"},{"$f":"Translate!$C$64","v":"Sample Data Sources"},null,null,null,null,null,null,null,null,null,null,null,{"$f":"Translate!$C$67","v":"Answer"},{"$f":"Translate!$C$68","v":"Suitability"},null,{"$f":"Translate!$C$315","v":"Parameter"},{"$f":"Translate!$C$319","v":"Score"},{"$f":"Translate!$C$320","v":"Raw Score"}]
["a)",{"$f":"Translate!$C$69","v":"What is the major land cover found in the area?"},{"$f":"Translate!$C$88","v":"Global Land Cover"},null,null,null,null,null,null,null,null,null,null,null,"Cropland irrigated or post-flooding",{"$f":"VLOOKUP(O14,'Lists 2'!A:B,2,0)","v":"Highly Suitable"},null,{"$f":"Translate!$C$316","v":"Land Cover"},{"$f":"IF(P14=Translate!$C$304, \"3\", IF(P14=Translate!$C$305, \"2\", IF(P14=Translate!$C$306, \"1\", \"0\")))","v":"2"},{"$f":"IF(COUNTIF(S14:S17,0)=0,S14+S15+S16,0)","v":8}]
["b)",{"$f":"Translate!$C$70","v":"What is the average annual solar irradiation in the area? (kWh/kW peak - PVOUT value)"},{"$f":"Translate!$C$89","v":"Global Solar Atlas"},null,null,null,null,null,null,null,null,null,null,null,"Above 1460",{"$f":"IF(O15=\"0 - 948\", 'Lists 2'!$B$7, IF(O15=\"949 - 1094\", 'Lists 2'!$B$6, IF(O15=\"1095 - 1460\", 'Lists 2'!$B$5, 'Lists 2'!$B$2)))","v":"Highly Suitable"},null,{"$f":"Translate!$C$317","v":"Solar Irradiation"},{"$f":"IF(O15='Lists 2'!$H$5, \"3\", IF(O15=\"1095 - 1460\", \"2\", IF(O15=\"949 - 1094\", \"1\", \"0\")))","v":"3"}]
["c)",{"$f":"IF($D$6=Translate!$C$91,Translate!$C$71 & \" ….\" &Translate!$C$72,Translate!$C$71 & \" \" & $D$6 &Translate!$C$72)","v":"What are the average monthly temperature and precipitation values in ….?"},{"$f":"Translate!$C$90","v":"AQUASTAT - Climate Information Tool"},null,null,null,null,null,null,null,null,null,null,null,null,{"$f":"IF(O19=0, Translate!$C$310,IF(O19=1,'Lists 2'!$B$6,IF(O19=2,'Lists 2'!$B$5,'Lists 2'!$B$2)))","v":"Highly Suitable"},null,{"$f":"Translate!$C$318","v":"Precipitation"},{"$f":"IF(P16='Lists 2'!$B$5,2,IF(P16='Lists 2'!$B$6,1,IF(P16=Translate!$C$310,0,3)))","v":3}]
[null,null,{"$f":"Translate!$C$76","v":"Jan"},{"$f":"Translate!$C$77","v":"Feb"},{"$f":"Translate!$C$78","v":"Mar"},{"$f":"Translate!$C$79","v":"Apr"},{"$f":"Translate!$C80","v":"May"},{"$f":"Translate!$C81","v":"Jun"},{"$f":"Translate!$C82","v":"Jul"},{"$f":"Translate!$C83","v":"Aug"},{"$f":"Translate!$C84","v":"Sep"},{"$f":"Translate!$C85","v":"Oct"},{"$f":"Translate!$C86","v":"Nov"},{"$f":"Translate!$C87","v":"Dec"},{"$f":"Translate!$C311","v":"Amount of arid months:"}]
[]
[null,{"$f":"Translate!$C$73","v":"Monthly average temperature (°C)"},23,23,23,22,25,18,17,19.5,22.9,24.9,24.4,23.3,{"$f":"COUNTIF(C21:N21,\">0\")","v":5},null,null,{"$f":"Translate!$C$321","v":"Tavg"},{"$f":"AVERAGE(C19:N19)","v":22.166666666666668},"TSD",{"$f":"STDEV(C19:N19)","v":2.6213575016611501}]
[null,{"$f":"Translate!$C$74","v":"Monthly average precipitation (mm)"},221,195,157,43,6,0,0,0,3.6,27.4,107.6,214.8,null,null,null,{"$f":"Translate!$C$322","v":"Pavg"},{"$f":"AVERAGE(C20:N20)","v":81.283333333333346},"PSD",{"$f":"STDEV(C20:N20)","v":91.749043426604572}]
[null,{"$f":"Translate!$C$75","v":"Aridity Index (Harouna & Carlson 1994)"},{"$f":"((C19-$S$19)/$U$19)-((C20-$S$20)/$U$20)","v":-1.2049118901511016},{"$f":"((D19-$S$19)/$U$19)-((D20-$S$20)/$U$20)","v":-0.92153018905686723},-0.50735693361144751,0.35368110069615788,1.9014002560316063,-0.70357609099337681,-1.0850578230220305,-0.13135349295039633,1.1264469296416704,1.6300071442357935,0.56514272330771287,-1.0228917341277264,"http://agron-www.agron.iastate.edu/courses/Agron541/classes/541/lesson04a/4a.3.html"]
[null,{"$f":"IF(P12=0,Translate!$C$312,Translate!$C$313)","v":"Proceed to \"INPUT_Weight Setting\""}]
[]
[]
[]
[]
[]
[null,null,null,null,null,{"$f":"'Lists 2'!$B$7","v":"Not Suitable"}]
[null,null,null,null,null,{"$f":"'Lists 2'!$B$6","v":"Marginally Suitable"}]
[null,null,null,null,null,{"$f":"'Lists 2'!$B$5","v":"Moderately Suitable"}]
[null,null,null,null,null,{"$f":"'Lists 2'!$B$2","v":"Highly Suitable"}]

{"sheet":"INPUT_Weight setting","index":2,"n_rows":41,"n_cols":9,"rows_kept":41,"cut":false,"hidden":false,"merged":[[11,1,11,5],[10,1,10,5],[4,5,6,5],[3,0,3,5],[35,3,35,5]]}
[]
[null,null,null,{"$f":"Translate!$C$324","v":"INPUT - Weight setting"}]
[]
[]
[]
[null,{"$f":"Translate!$C$325","v":"Geophysical  Parameters:"}]
[null,{"$f":"Translate!$C$326","v":"Non-critical Geophysical Parameters"}]
[null,{"$f":"Translate!$C$327","v":"Additional parameters that are key to the market assessment for SPIS. These do not affect the general viability of SPIS; they affect the success of SPIS adoption in a region as per prevailing geophysical conditions (e.g. groundwater table, frost occurrence, topography, agricultural production farming system, etc.). "}]
[null,"Important"]
[null,{"$f":"H40","v":0.1}]
[]
[null,{"$f":"Translate!$C$328","v":"Business Conditions:"}]
[null,{"$f":"Translate!$C$329","v":"1. Government Interventions"},null,{"$f":"Translate!$C$331","v":"2. Development Organizations Interventions"},null,{"$f":"Translate!$C$333","v":"3. Financing"}]
[null,{"$f":"Translate!$C$330","v":"Evaluation of government interventions as a business environment parameter for SPIS, looking at policies, rules, and regulations that govern the irrigation and solar sectors. "},null,{"$f":"Translate!$C$332","v":"This section evaluates interventions by development organizations that can present a significant influence on the adoption of SPIS within a country or region. "},null,{"$f":"Translate!$C$334","v":"The parameter looks at the ability of end-users to meet the high capital cost for SPIS including financial support from  the government, development agencies, and private sector."}]
[null,"Important",null,"Important",null,"Important"]
[null,{"$f":"H31","v":0.1},null,{"$f":"H32","v":0.1},null,{"$f":"H33","v":0.1}]
[]
[null,{"$f":"Translate!$C$335","v":"4. Availability and Cost of Alternatives"},null,{"$f":"Translate!$C$337","v":"5. Technical Capacity"},null,{"$f":"Translate!$C$339","v":"6. Awareness of SPIS Technologies"}]
[null,{"$f":"Translate!$C$336","v":"Criterion considers the availability and cost of competing sources of power for irrigation systems. "},null,{"$f":"Translate!$C$338","v":"This section evaluates the in-country capacity of personnel to design,  implement and maintain SPIS systems."},null,{"$f":"Translate!$C$340","v":"Parameter assesses the general awareness of solar technologies such as solar lighting and heating systems, and irrigation systems such as pumps in the country."}]
[null,"Important",null,"Important",null,"Important"]
[null,{"$f":"H34","v":0.1},null,{"$f":"H35","v":0.1},null,{"$f":"H36","v":0.1}]
[]
[null,{"$f":"Translate!$C$341","v":"7. Significance of Agriculture to Local Economy"},null,{"$f":"Translate!$C$343","v":"8. Land Tenure"},null,{"$f":"Translate!$C$345","v":"9. Transport and Communication Infrastructure"}]
[null,{"$f":"Translate!$C$342","v":"This section evaluates the importance of agriculture to the target area's economy by assessing its contribution to GDP and employment along with the proportion of arable land used for agriculture."},null,{"$f":"Translate!$C$344","v":"This parameter seeks an understanding of land tenure rights which can hinder or promote the adoption of SPIS. Not only do tenure rights inform investment security, but may also serve as collateral for loans."},null,{"$f":"Translate!$C$346","v":"This section evaluates the availability of infrastructure and communication systems such as roads and mobile networks in enabling supply chains and easing the movement of people and goods."}]
[null,"Important",null,"Important",null,"Important"]
[null,{"$f":"H37","v":0.1},null,{"$f":"H38","v":0.1},null,{"$f":"H39","v":0.1}]
[]
[]
[]
[null,null,null,null,null,{"$f":"Translate!$C$347","v":"Parameter"},{"$f":"Translate!$C$365","v":"Weight setting"},{"$f":"Translate!$C$366","v":"Percentage"},{"$f":"Translate!$C$367","v":"Score"}]
[null,null,null,null,null,{"$f":"Translate!$C$348","v":"Government Interventions"},{"$f":"B15","v":"Important"},{"$f":"I31/$I$41","v":0.1},{"$f":"VLOOKUP(G31,'Lists 2'!$C$2:$D$7,2,FALSE)","v":6}]
[null,null,null,null,null,{"$f":"Translate!$C$349","v":"Development Organizations Interventions"},{"$f":"D15","v":"Important"},{"$f":"I32/$I$41","v":0.1},{"$f":"VLOOKUP(G32,'Lists 2'!$C$2:$D$7,2,FALSE)","v":6}]
[null,null,null,null,null,{"$f":"Translate!$C$350","v":"Financing"},{"$f":"F15","v":"Important"},{"$f":"I33/$I$41","v":0.1},{"$f":"VLOOKUP(G33,'Lists 2'!$C$2:$D$7,2,FALSE)","v":6}]
[null,null,null,null,null,{"$f":"Translate!$C$351","v":"Availability and Cost of Alternatives"},{"$f":"B20","v":"Important"},0.1,{"$f":"VLOOKUP(G34,'Lists 2'!$C$2:$D$7,2,FALSE)","v":6}]
[null,null,null,null,null,{"$f":"Translate!$C$352","v":"Technical Capacity"},{"$f":"D20","v":"Important"},0.1,{"$f":"VLOOKUP(G35,'Lists 2'!$C$2:$D$7,2,FALSE)","v":6}]
[null,null,null,{"$f":"Translate!$C$353","v":"Awareness of Solar PV and Irrigation Technologies"},null,null,{"$f":"F20","v":"Important"},0.1,{"$f":"VLOOKUP(G36,'Lists 2'!$C$2:$D$7,2,FALSE)","v":6}]
[null,null,null,null,null,{"$f":"Translate!$C$354","v":"Significance of Agriculture to the Local Economy"},{"$f":"B25","v":"Important"},0.1,{"$f":"VLOOKUP(G37,'Lists 2'!$C$2:$D$7,2,FALSE)","v":6}]
[null,null,null,null,null,{"$f":"Translate!$C$355","v":"Land Tenure"},{"$f":"D25","v":"Important"},0.1,{"$f":"VLOOKUP(G38,'Lists 2'!$C$2:$D$7,2,FALSE)","v":6}]
[null,null,null,null,null,{"$f":"Translate!$C$356","v":"Transport and Communication Infrastructure"},{"$f":"F25","v":"Important"},0.1,{"$f":"VLOOKUP(G39,'Lists 2'!$C$2:$D$7,2,FALSE)","v":6}]
[null,null,null,null,null,{"$f":"Translate!$C$357","v":"Non-critical Geophysical Parameters"},{"$f":"B9","v":"Important"},0.1,{"$f":"VLOOKUP(G40,'Lists 2'!$C$2:$D$7,2,FALSE)","v":6}]
[null,null,null,null,null,{"$f":"Translate!$C$358","v":"Total"},null,{"$f":"SUM(H31:H40)","v":0.99999999999999989},{"$f":"SUM(I31:I40)","v":60}]

{"sheet":"INPUT_Geophysical Parameters","index":3,"n_rows":17,"n_cols":10,"rows_kept":17,"cut":false,"hidden":false,"merged":[[3,0,3,5],[13,2,13,3],[10,2,10,3],[1,2,1,3],[7,2,7,3],[8,2,8,3],[9,2,9,3],[14,2,14,3],[15,2,15,3],[16,2,16,3],[11,1,11,5],[4,0,5,0],[6,2,6,3],[4,1,5,3]]}
[]
[null,null,{"$f":"Translate!$C$369","v":"INPUT - Geophysical Parameters"}]
[]
[]
[2,{"$f":"Translate!$C$370","v":"Additional Geophysical Parameters"},null,null,{"$f":"Translate!$C$373","v":"Highest Possible Score"},{"$f":"Translate!$C$374","v":"Attained Score"}]
[null,null,null,null,{"$f":"'INPUT_Weight setting'!B10","v":0.1},{"$f":"SUM(I8:I11)","v":9.0000000000000011E-2}]
[null,{"$f":"Translate!$C$371","v":"Questions"},{"$f":"Translate!$C$372","v":"Sample Data Sources"},null,{"$f":"Translate!$C$375","v":"Answer"},{"$f":"Translate!$C$376","v":"Relevance"},null,{"$f":"Translate!$C$403","v":"Weight"},{"$f":"Translate!$C$404","v":"Attained Score"},{"$f":"Translate!$C$405","v":"Raw Score"}]
["a)",{"$f":"Translate!$C$377","v":"What is the average groundwater table earmarked for SPIS?"},{"$f":"Translate!$C$381","v":"Estimated depth of groundwater resources"},null,"Up to 7 m","Inconsequential",null,{"$f":"E6/COUNTA(B8,B9,B10,B11)","v":2.5000000000000001E-2},{"$f":"(J8*H8)","v":2.5000000000000001E-2},{"$f":"VLOOKUP(E8,Table5[],2,FALSE)*VLOOKUP(F8,Table1[],2,FALSE)/6","v":1}]
["b)",{"$f":"Translate!$C$378","v":"What is the minimum annual ambient temperature and in particular the frequency of frost?"},{"$f":"Translate!$C$382","v":"AQUASTAT - Climate Information Tool"},null,"1 °C to 30 °C","Inconsequential",null,{"$f":"(E6/COUNTA(B8,B9,B10,B11))","v":2.5000000000000001E-2},{"$f":"(J9*H9)","v":2.5000000000000001E-2},{"$f":"IF(E9='Lists 2'!$Q$3,(VLOOKUP(F9,Table1[],2,FALSE))/6,(VLOOKUP(F9,Table1[],3,FALSE))/6)","v":1}]
["c)",{"$f":"Translate!$C$379","v":"What is the general topography of the area considered?"},{"$f":"Translate!$C$383","v":"What is the slope of the area?"},null,"Flat","Inconsequential",null,{"$f":"(E6/COUNTA(B8,B9,B10,B11))","v":2.5000000000000001E-2},{"$f":"(J10*H10)","v":2.5000000000000001E-2},{"$f":"VLOOKUP(E10,Table6[],2,FALSE)*VLOOKUP(F10,Table1[],2,FALSE)/6","v":1}]
["d)",{"$f":"Translate!$C$380","v":"What is the predominant type of agricultural production system?"},{"$f":"Translate!$C$384","v":"Farming Systems Maps FAO"},null,"Seasonal Crops","Inconsequential",null,{"$f":"(E6/COUNTA(B8,B9,B10,B11))","v":2.5000000000000001E-2},{"$f":"(J11*H11)","v":1.4999999999999999E-2},{"$f":"VLOOKUP(E11,Table2[],2,FALSE)*VLOOKUP(F11,Table1[],2,FALSE)/6","v":0.6}]
[null,{"$f":"IF((Calculations!G4)<(50 %), Translate!$C$402, \"\")","v":""}]
[]
[null,null,{"$f":"Translate!$C$628","v":"Got more recent data sources? "}]
[null,null,{"$f":"Translate!$C$629","v":"PLEASE SHARE "}]
[null,null,{"$f":"Translate!$C$630","v":" and help us to improve our tools."}]
[null,null,{"$f":"Translate!$C$631","v":"Thank you."}]

{"sheet":"INPUT_Business Conditions","index":4,"n_rows":108,"n_cols":10,"rows_kept":108,"cut":false,"hidden":false,"merged":[[59,0,60,0],[7,7,9,7],[7,8,9,8],[7,9,9,9],[1,2,1,3],[13,0,14,0],[13,1,14,3],[14,7,14,9],[4,0,5,0],[4,1,5,3],[5,7,5,9],[6,2,6,3],[10,2,10,3],[7,1,9,1],[7,5,9,5],[7,0,9,0],[7,2,9,2],[7,4,9,4],[3,0,3,5],[17,8,19,8],[17,9,19,9],[19,2,19,3],[21,0,22,0],[17,7,19,7],[104,2,104,3],[105,2,105,3],[106,2,106,3],[107,2,107,3],[15,2,15,3],[17,1,18,1],[17,4,19,4],[66,1,66,5],[62,1,62,5],[61,2,61,3],[59,1,60,3],[57,2,57,3],[99,2,101,3],[81,2,81,3],[82,2,82,3],[84,5,85,5],[84,4,85,4],[86,4,87,4],[21,1,22,3],[17,5,19,5],[28,3,29,3],[97,2,97,3],[102,1,102,5],[69,1,69,5],[17,0,18,0],[52,0,53,0],[34,0,35,0],[23,2,23,3],[39,0,43,0],[39,5,43,5],[38,2,38,3],[39,1,43,1],[43,2,43,3],[39,3,40,3],[39,4,43,4],[28,2,29,2],[33,1,33,5],[20,1,20,5],[39,7,43,7],[39,8,43,8],[39,9,43,9],[86,7,87,7],[86,8,87,8],[86,9,87,9],[83,7,85,7],[83,8,85,8],[98,1,98,5],[84,1,85,1],[92,1,92,5],[93,2,96,3],[83,9,85,9],[58,1,58,5],[51,1,51,5],[84,0,85,0],[84,3,87,3],[86,1,87,1],[86,0,87,0],[86,5,87,5],[89,1,90,3],[91,2,91,3],[89,0,90,0],[88,1,88,5],[84,2,87,2],[79,0,80,0],[70,0,71,0],[70,1,71,3],[72,2,72,3],[73,2,73,3],[74,2,74,3],[75,2,75,3],[76,2,76,3],[77,2,77,3],[79,1,80,3],[12,1,12,5],[78,1,78,5],[45,1,45,5],[24,1,24,5],[25,2,25,3],[26,2,26,3],[27,1,27,5],[30,1,30,5],[31,2,31,3],[32,2,32,3],[56,2,56,3],[55,2,55,3],[54,2,54,3],[52,1,53,3],[48,1,48,5],[37,1,37,5],[34,1,35,3],[63,2,65,3]]}
[]
[null,null,{"$f":"Translate!$C$407","v":"INPUT - Business Conditions Parameters"}]
[]
[]
[1,{"$f":"Translate!$C$408","v":"Government Interventions"},null,null,{"$f":"Translate!$C$411","v":"Highest Possible Score"},{"$f":"Translate!$C$412","v":"Attained Score"}]
[null,null,null,null,{"$f":"'INPUT_Weight setting'!B16","v":0.1},{"$f":" IF(OR(AND(E8=\"No\",F8=\"Critical\"),AND(E11=\"No\",F11=\"Critical\"),AND(E12=\"No\",F12=\"Critical\")),0,SUM(I8:I12))","v":0.1}]
[null,{"$f":"Translate!$C$409","v":"Questions"},{"$f":"Translate!$C$410","v":"Sample Data Sources"},null,{"$f":"Translate!$C$413","v":"Answer"},{"$f":"Translate!$C$414","v":"Relevance"},null,{"$f":"Translate!$C$430","v":"Weight"},{"$f":"Translate!$C$431","v":"Attained Score"},{"$f":"Translate!$C$432","v":"Raw Score"}]
["a)",{"$f":"IF('INPUT_Pre-check'!$D$6 =Translate!$C$91,Translate!$C$415 &\" \"& \"…..\" &Translate!$C$416,Translate!$C$415 &\" \"& 'INPUT_Pre-check'!$D$6 &Translate!$C$416)","v":"Are there government, national and local policies and laws promoting solar and irrigation equipment in …..?"},{"$f":"Translate!$C$417","v":"• Government irrigation and/or solar policies, laws, bills, acts, sector development plans\n• Licensing of solar technicians, suppliers and  or contractor companies\n• Government tax regulation such as duty and VAT exemptions"},{"$f":"Translate!$C$418","v":"Clean energy development policies"},"Yes","Inconsequential",null,{"$f":"E6/COUNTA(B8:B12)","v":3.3333333333333333E-2},{"$f":"(J8*H8)","v":3.3333333333333333E-2},{"$f":"IF(E8='Lists 2'!$K$11,VLOOKUP('INPUT_Business Conditions'!F8,'Lists 2'!$M$11:$O$15,2,FALSE)/6,VLOOKUP('INPUT_Business Conditions'!F8,'Lists 2'!$M$11:$O$15,3,FALSE)/6)","v":1}]
[null,null,null,{"$f":"Translate!$C$419","v":"Renewable Energy Targets and Policies, 2020: Table 6, Pg. 84"}]
[null,null,null,{"$f":"Translate!$C$420","v":"Asia Pacific countries policy documents"}]
["b)",{"$f":"IF('INPUT_Pre-check'!$D$6 =Translate!$C$91,Translate!$C$421 &\" \"& \"…..\" & \" \"& Translate!$C$422,Translate!$C$421 &\" \"& 'INPUT_Pre-check'!$D$6 &\" \"&Translate!$C$422)","v":"Are there government programs in ….. promoting SPIS devices?"},{"$f":"Translate!$C$423","v":"• Irrigation and solar programs supported by government resources"},null,"Yes","Inconsequential",null,{"$f":"E6/COUNTA(B8:B12)","v":3.3333333333333333E-2},{"$f":"(J11*H11)","v":3.3333333333333333E-2},{"$f":"IF(E11='Lists 2'!$K$11,VLOOKUP('INPUT_Business Conditions'!F11,'Lists 2'!$M$11:$O$15,2,FALSE)/6,VLOOKUP('INPUT_Business Conditions'!F11,'Lists 2'!$M$11:$O$15,3,FALSE)/6)","v":1}]
["c)",{"$f":"IF('INPUT_Pre-check'!$D$6 =Translate!$C$91,Translate!$C$424 &\" \"& \"…..\" &Translate!$C$416,Translate!$C$424 &\" \"& 'INPUT_Pre-check'!$D$6 &Translate!$C$416)","v":"Are there relevant government ministries and/bodies providing support to the sector in …..?"},{"$f":"Translate!$C$425","v":"• Agriculture and energy ministries with engagement in SPIS sector\n• Government irrigation organizations, boards, groups\n• Government organizations providing SPIS related information\n• Government quality and standards regulation and enforcement"},{"$f":"Translate!$C$426","v":"Stand alone systems regulations and incentives"},"Yes","Inconsequential",null,{"$f":"E6/COUNTA(B8:B12)","v":3.3333333333333333E-2},{"$f":"(J12*H12)","v":3.3333333333333333E-2},{"$f":"IF(E12='Lists 2'!$K$11,VLOOKUP('INPUT_Business Conditions'!F12,'Lists 2'!$M$11:$O$15,2,FALSE)/6,VLOOKUP('INPUT_Business Conditions'!F12,'Lists 2'!$M$11:$O$15,3,FALSE)/6)","v":1}]
[]
[2,{"$f":"Translate!$C$433","v":"Development Organizations Interventions"},null,null,{"$f":"Translate!$C$411","v":"Highest Possible Score"},{"$f":"Translate!$C$412","v":"Attained Score"}]
[null,null,null,null,{"$f":"'INPUT_Weight setting'!D16","v":0.1},{"$f":" IF(OR(AND(E17=\"No\",F17=\"Critical\"),AND(E18=\"No\",F18=\"Critical\")),0,SUM(I17:I20))","v":0.1}]
[null,{"$f":"Translate!$C$409","v":"Questions"},{"$f":"Translate!$C$410","v":"Sample Data Sources"},null,{"$f":"Translate!$C$413","v":"Answer"},{"$f":"Translate!$C$414","v":"Relevance"},null,{"$f":"Translate!$C$430","v":"Weight"},{"$f":"Translate!$C$431","v":"Attained Score"},{"$f":"Translate!$C$432","v":"Raw Score"}]
["a)",{"$f":"IF('INPUT_Pre-check'!$D$6 =Translate!$C$91,Translate!$C$434 &\" \"& \"…..\" & \" \"& Translate!$C$435,Translate!$C$434 &\" \"& 'INPUT_Pre-check'!$D$6 &\" \"&Translate!$C$435)","v":"Are there national programs provided in ….. by non-government institutions that promote the adoption of irrigation?"},"List of possible* development agencies and multilateral organizations: ",null,"Yes","Inconsequential",null,{"$f":"E15/(COUNTA(B17:B20))","v":0.05},{"$f":"(J17*H17)","v":0.05},{"$f":"IF(E17='Lists 2'!$K$11,VLOOKUP(F17,'Lists 2'!$M$11:$O$15,2,FALSE)/6,VLOOKUP(F17,'Lists 2'!$M$11:$O$15,3,FALSE)/6)","v":1}]
["b)",{"$f":"IF('INPUT_Pre-check'!$D$6 =Translate!$C$91,Translate!$C$436 &\" \"& \"…..\" & \" \"& Translate!$C$437,Translate!$C$436 &\" \"& 'INPUT_Pre-check'!$D$6 &\" \"&Translate!$C$437)","v":"Are there national programs provided in ….. by non-government institutions specifically promoting the adoption of SPIS devices?"},"List of possible* facilities and funds:",null,"Yes","Inconsequential",null,{"$f":"E15/COUNTA(B17:B20)","v":0.05},{"$f":"(J18*H18)","v":0.05},{"$f":"IF(E18='Lists 2'!$K$11,VLOOKUP(F18,'Lists 2'!$M$11:$O$15,2,FALSE)/6,VLOOKUP(F18,'Lists 2'!$M$11:$O$15,3,FALSE)/6)","v":1}]
[null,null,"List of possible* research centers and other NGOs:"]
[null,null,{"$f":"Translate!$C$469","v":"* List is not exhaustive"}]
[]
[3,{"$f":"Translate!$C$470","v":"Financing"},null,null,{"$f":"Translate!$C$411","v":"Highest Possible Score"},{"$f":"Translate!$C$412","v":"Attained Score"}]
[null,null,null,null,{"$f":"'INPUT_Weight setting'!F16","v":0.1},{"$f":"IF(OR(AND(E26=1,F26=\"Critical\"),AND(E33=\"No\",F33=\"Critical\"), AND(E29=0,F29=\"Critical\"), AND(E30=0,F30=\"Critical\")),0,SUM(I25,I28,I33))","v":0.1}]
[null,{"$f":"Translate!$C$409","v":"Questions"},{"$f":"Translate!$C$410","v":"Sample Data Sources"},null,{"$f":"Translate!$C$413","v":"Answer"},{"$f":"Translate!$C$414","v":"Relevance"},null,{"$f":"Translate!$C$430","v":"Weight"},{"$f":"Translate!$C$431","v":"Attained Score"},{"$f":"Translate!$C$432","v":"Raw Score"}]
["a)",{"$f":"Translate!$C$471","v":"End users' financial ability"},null,null,null,null,null,{"$f":"E23/COUNTA(B25,B28,B33)","v":3.3333333333333333E-2},{"$f":"I26+I27","v":3.3333333333333333E-2}]
["i)",{"$f":"IF('INPUT_Pre-check'!$D$6 =Translate!$C$91,Translate!$C$472 &\" \"& \"…..\" & \" \"& Translate!$C$473,Translate!$C$472 &\" \"& 'INPUT_Pre-check'!$D$6 &\" \"&Translate!$C$473)","v":"What proportion of the rural population in ….. is poor according to the Multidimentional Poverty Index (MPI)?"},{"$f":"Translate!$C$475","v":"OPHI Global MPI Interactive Databank: Population in multidimensional poverty (H) (%), Rural MPI Poor"},null,0.2,"Inconsequential",null,{"$f":"H25/COUNTA(B26:B27)","v":1.6666666666666666E-2},{"$f":"(H26*J26)","v":1.6666666666666666E-2},{"$f":"IF(F26='Lists 2'!$M$2,1,(1-E26))","v":1}]
["ii)",{"$f":"IF('INPUT_Pre-check'!$D$6 =Translate!$C$91,Translate!$C$474 &\" \"& \"…..\" &Translate!$C$416,Translate!$C$474 &\" \"& 'INPUT_Pre-check'!$D$6 &Translate!$C$416)","v":"What is the Gross National Income (GNI) per capita value of …..?"},{"$f":"Translate!$C$476","v":"World Bank data: GNI per capita, Atlas method (current US$) 2020"},null,"Low income ($1,005 or less)","Inconsequential",null,{"$f":"H25/COUNTA(B26:B27)","v":1.6666666666666666E-2},{"$f":"(H27*J27)","v":1.6666666666666666E-2},{"$f":"(IF(F27='Lists 2'!$M$2,5,VLOOKUP(E27,Table11[],2,FALSE)))/5","v":1}]
["b)",{"$f":"Translate!$C$481","v":"Availability of financial institution support"},null,null,null,null,null,{"$f":"E23/COUNTA(B25,B28,B33)","v":3.3333333333333333E-2},{"$f":"I29+I30+I32","v":3.3333333333333333E-2}]
["i)",{"$f":"IF('INPUT_Pre-check'!$D$6 =Translate!$C$91,Translate!$C$482 &\" \"& \"…..\" & \" \"& Translate!$C$483,Translate!$C$482 &\" \"& 'INPUT_Pre-check'!$D$6 &\" \"&Translate!$C$483)","v":"What proportion of the population above the age of 15 in ….. own a financial account?"},{"$f":"Translate!$C$486","v":"i) Account  (% age 15+) based on country\nii) Formal borrowing  (% age 15+) based on country"},{"$f":"Translate!$C$487","v":"World Bank, Financial Inclusion Data"},0.3,"Inconsequential",null,{"$f":"H28/COUNTA(B29:B30,B32)","v":1.1111111111111112E-2},{"$f":"H29*J29","v":1.1111111111111112E-2},{"$f":"IF(F29='Lists 2'!$M$2,1,E29)","v":1}]
["ii)",{"$f":"IF('INPUT_Pre-check'!$D$6 =Translate!$C$91,Translate!$C$484 &\" \"& \"…..\" & \" \"& Translate!$C$485,Translate!$C$484 &\" \"& 'INPUT_Pre-check'!$D$6 &\" \"&Translate!$C$485)","v":"What is the proportion of the population above the age of 15 in ….. which borrowed from a financial institution in the given year*?"},null,null,0.2,"Inconsequential",null,{"$f":"H28/COUNTA(B29:B30,B32)","v":1.1111111111111112E-2},{"$f":"H30*J30","v":1.1111111111111112E-2},{"$f":"IF(F30='Lists 2'!$M$2,1,E30)","v":1}]
[null,{"$f":"Translate!$C$488","v":"* given year is the most recent year Data is available"}]
["iii)",{"$f":"IF('INPUT_Pre-check'!$D$6 =Translate!$C$91,Translate!$C$489 &\" \"& \"…..\" & \" \"& Translate!$C$490,Translate!$C$489 &\" \"& 'INPUT_Pre-check'!$D$6 &\" \"&Translate!$C$490)","v":"What is the ranking of ….. in the ease of getting credit?"},{"$f":"Translate!$C$492","v":"World Bank Ease of doing Business 2017"},null,77,"Inconsequential",null,{"$f":"H28/COUNTA(B29:B30,B32)","v":1.1111111111111112E-2},{"$f":"(H32*J32)","v":1.1111111111111112E-2},{"$f":"IF(F32='Lists 2'!$M$2,186,(186-E32))/186","v":1}]
["c)",{"$f":"IF('INPUT_Pre-check'!$D$6 =Translate!$C$91,Translate!$C$491 &\" \"& \"…..\" &Translate!$C$416,Translate!$C$491 &\" \"& 'INPUT_Pre-check'!$D$6 &Translate!$C$416)","v":"Are there any government economic incentives affecting the adoption of SPIS devices in …..?"},{"$f":"Translate!$C$493","v":"• Government tax exemptions, subsidies, rebates, credits etc. given to customers of SPIS products, suppliers or other intermediaries such as financiers"},null,"Yes","Inconsequential",null,{"$f":"E23/COUNTA(B25,B28,B33)","v":3.3333333333333333E-2},{"$f":"H33*J33","v":3.3333333333333333E-2},{"$f":"IF(E33='Lists 2'!$K$11,VLOOKUP(F33,'Lists 2'!$M$11:$O$15,2,FALSE)/6,VLOOKUP(F33,'Lists 2'!$M$11:$O$15,3,FALSE)/6)","v":1}]
[]
[4,{"$f":"Translate!C495","v":"Availability and cost of alternative sources of power for pumping"},null,null,{"$f":"Translate!$C$411","v":"Highest Possible Score"},{"$f":"Translate!$C$412","v":"Attained Score"}]
[null,null,null,null,{"$f":"'INPUT_Weight setting'!B21","v":0.1},{"$f":"IF(OR(AND(E39=\"Yes\",F39=\"Critical\"),AND(E40=\"Yes\",F40=\"Critical\"),AND(E47=\"Yes\",F47=\"Critical\"),AND(E48=\"Yes\",F48=\"Critical\")),0,SUM(I38,I46,I49))","v":8.3333333333333332E-3}]
[null,{"$f":"Translate!$C$409","v":"Questions"},{"$f":"Translate!$C$410","v":"Sample Data Sources"},null,{"$f":"Translate!$C$413","v":"Answer"},{"$f":"Translate!$C$414","v":"Relevance"},null,{"$f":"Translate!$C$430","v":"Weight"},{"$f":"Translate!$C$431","v":"Attained Score"},{"$f":"Translate!$C$432","v":"Raw Score"}]
["a)",{"$f":"Translate!$C$496","v":"Availability of competitive alternative power sources"},null,null,null,null,null,{"$f":"E36/COUNTA(B38,B46,B49)","v":3.3333333333333333E-2},{"$f":"I39+I40+I45","v":8.3333333333333332E-3}]
["i)",{"$f":"IF('INPUT_Pre-check'!$D$6 =Translate!$C$91,Translate!$C$497 &\" \"& \"…..\" & \" \"& Translate!$C$498,Translate!$C$497 &\" \"& 'INPUT_Pre-check'!$D$6 &\" \"&Translate!$C$498)","v":"Does ….. have fossil fuel resources that it exploits?"},{"$f":"Translate!$C$502","v":"National fossil fuel reserves"},null,"Yes","Inconsequential",null,{"$f":"H38/(COUNTA(B39:B45)-1)","v":1.6666666666666666E-2},{"$f":"H39*J39","v":0},{"$f":"IF(E39='Lists 2'!$K$12,IF(F39='Lists 2'!$Q$12,1,IF(F39='Lists 2'!$Q$11,0.5)),0)","v":0}]
["ii)",{"$f":"IF('INPUT_Pre-check'!$D$6 =Translate!$C$91,Translate!$C$499 &\" \"& \"…..\" & \" \"& Translate!$C$500,Translate!$C$499 &\" \"& 'INPUT_Pre-check'!$D$6 &\" \"&Translate!$C$500)","v":"Is the area of interest in close proximity (within 5 km of a grid access point) to the grid or is the rural electrification rate of ….. greater than 80%?"},{"$f":"Translate!$C$503","v":"African grid"},{"$f":"Translate!$C$507","v":"Access to electricity, the rural electrification rate"},"Yes","Inconsequential",null,{"$f":"H38/((COUNTA(B39:B45)-1)*2)","v":8.3333333333333332E-3},{"$f":"H40*J40","v":0},{"$f":"IF(E40='Lists 2'!$K$12,IF(F40='Lists 2'!$Q$12,1,IF(F40='Lists 2'!$Q$11,0.5)),0)","v":0}]
[null,null,{"$f":"Translate!$C$504","v":"European grid"}]
[null,null,{"$f":"Translate!$C$505","v":"USA grid"},{"$f":"Translate!$C$508","v":"Tracking SDG 7 "}]
[null,null,{"$f":"Translate!$C$506","v":"Australian grid "},{"$f":"Translate!$C$509","v":"Grid maps"}]
[null,null,{"$f":"Translate!$C$510","v":"For better accuracy use country-specific grid data"}]
["iii)",{"$f":"IF('INPUT_Pre-check'!$D$6 =Translate!$C$91,Translate!$C$501 &\" \"& \"…..\" &Translate!$C$416,Translate!$C$501 &\" \"& 'INPUT_Pre-check'!$D$6 &Translate!$C$416)","v":"What is the frequency of power outages in the area of interest or in …..?"},{"$f":"Translate!$C$511","v":"• Area of interest local electricity supply reliability"},{"$f":"Translate!$C$512","v":"Power outages frequency "},"Low","Inconsequential",null,{"$f":"H38/((COUNTA(B39:B45)-1)*2)","v":8.3333333333333332E-3},{"$f":"H45*J45","v":8.3333333333333332E-3},{"$f":"(IF(F45='Lists 2'!Q12,5,VLOOKUP(E45,Table12[],2,FALSE)))/5","v":1}]
["b)",{"$f":"Translate!$C$513","v":"Subsidies"},null,null,null,null,null,{"$f":"E36/COUNTA(B38,B46,B49)","v":3.3333333333333333E-2},{"$f":"I47+I48","v":0}]
["i)",{"$f":"IF('INPUT_Pre-check'!$D$6 =Translate!$C$91,Translate!$C$514 &\" \"& \"…..\" & \" \"& Translate!$C$515,Translate!$C$514 &\" \"& 'INPUT_Pre-check'!$D$6 &\" \"&Translate!$C$515)","v":"Is there a grid subsidy in …..  or in the area of interest including for the cost of electricity and/or connection fee to the grid?"},{"$f":"Translate!$C$518","v":"• Area of interest local electricity supply regulation"},{"$f":"Translate!$C$520","v":"Presence of national electricity subsidy "},"Yes","Inconsequential",null,{"$f":"H38/COUNTA(B47:B48)","v":1.6666666666666666E-2},{"$f":"H47*J47","v":0},{"$f":"IF(E47='Lists 2'!$K$12,IF(F47='Lists 2'!$Q$12,1,IF(F47='Lists 2'!$Q$11,0.5)),0)","v":0}]
["ii)",{"$f":"IF('INPUT_Pre-check'!$D$6 =Translate!$C$91,Translate!$C$516 &\" \"& \"…..\" & \" \"& Translate!$C$517,Translate!$C$516 &\" \"& 'INPUT_Pre-check'!$D$6 &\" \"&Translate!$C$517)","v":"Is there a fuel subsidy in ….. or in the area of interest?"},{"$f":"Translate!$C$519","v":"• Area of interest local fuel supply regulation"},{"$f":"Translate!$C$521","v":"Presence of national fuel subsidy (e.g. of diesel and kerosene)"},"Yes","Inconsequential",null,{"$f":"H38/COUNTA(B47:B48)","v":1.6666666666666666E-2},{"$f":"H48*J48","v":0},{"$f":"IF(E48='Lists 2'!$K$12,IF(F48='Lists 2'!$Q$12,1,IF(F48='Lists 2'!$Q$11,0.5)),0)","v":0}]
["c)",{"$f":"Translate!$C$522","v":"Cost comparison"},null,null,null,null,null,{"$f":"E36/COUNTA(B38,B46,B49)","v":3.3333333333333333E-2},{"$f":"I50+I51","v":0}]
["i)",{"$f":"IF('INPUT_Pre-check'!$D$6 =Translate!$C$91,Translate!$C$523&\" \"& \"…..\" & \" \"& Translate!$C$524,Translate!$C$523 &\" \"& 'INPUT_Pre-check'!$D$6 &\" \"&Translate!$C$524)","v":"What is the average electricity retail tariff in USD per kWh for all end users in ….. or in the area of interest?"},{"$f":"Translate!$C$527","v":"• Area of interest local electricity supply cost in USD per kWh"},{"$f":"Translate!$C$529","v":"Retail electricity tariff (average of all end-users) in USD/kWh"},null,{"$f":"Translate!$C$531","v":"Reference for least penalty will be 1USD/kWh, with the most expensive power, rounded up to the next whole number (0.61)"},null,{"$f":"H49/COUNTA(B50:B51)","v":1.6666666666666666E-2},{"$f":"H50*J50","v":0},{"$f":"E50","v":0}]
["ii)",{"$f":"IF('INPUT_Pre-check'!$D$6 =Translate!$C$91,Translate!$C$525&\" \"& \"…..\" & \" \"& Translate!$C$526,Translate!$C$525 &\" \"& 'INPUT_Pre-check'!$D$6 &\" \"&Translate!$C$526)","v":"What is the average retail price for diesel in USD per litre in ….. or in the area of interest?"},{"$f":"Translate!$C$528","v":"• Area of interest local average diesel cost in USD/Liter"},{"$f":"Translate!$C$530","v":" Diesel prices in USD/Liter\n"},null,{"$f":"Translate!$C$532","v":"Reference for least penalty will be 3 USD/L the price of Iceland, with the most expensive diesel, rounded up to the next whole number (2.03)"},null,{"$f":"H49/COUNTA(B50:B51)","v":1.6666666666666666E-2},{"$f":"H51*J51","v":0},{"$f":"E51/3","v":0}]
[]
[5,{"$f":"Translate!$C$537","v":"Technical capacity for SPIS"},null,null,{"$f":"Translate!$C$411","v":"Highest Possible Score"},{"$f":"Translate!$C$412","v":"Attained Score"}]
[null,null,null,null,{"$f":"'INPUT_Weight setting'!D21","v":0.1},{"$f":" IF(OR(AND(E56=\"No\",F56=\"Critical\"),AND(E57=\"No\",F57=\"Critical\"),AND(E58=\"No\",F58=\"Critical\")),0,SUM(I56:I58))","v":0.1}]
[null,{"$f":"Translate!$C$409","v":"Questions"},{"$f":"Translate!$C$410","v":"Sample Data Sources"},null,{"$f":"Translate!$C$413","v":"Answer"},{"$f":"Translate!$C$414","v":"Relevance"},null,{"$f":"Translate!$C$430","v":"Weight"},{"$f":"Translate!$C$431","v":"Attained Score"},{"$f":"Translate!$C$432","v":"Raw Score"}]
["a)",{"$f":"IF('INPUT_Pre-check'!$D$6 =Translate!$C$91,Translate!$C$538 &\" \"& \"…..\" &Translate!$C$416,Translate!$C$538 &\" \"& 'INPUT_Pre-check'!$D$6 &Translate!$C$416)","v":"Are there training sessions on solar technologies and applications (design, O&M and repairs) available in …..?"},{"$f":"Translate!$C$542","v":"• Solar systems and technologies courses in educational institutions "},null,"Yes","Inconsequential",null,{"$f":"E54/COUNTA(B56:B58)","v":3.3333333333333333E-2},{"$f":"(J56*H56)","v":3.3333333333333333E-2},{"$f":"IF(E56='Lists 2'!$K$11,VLOOKUP(F56,'Lists 2'!$M$11:$O$15,2,FALSE)/6,VLOOKUP(F56,'Lists 2'!$M$11:$O$15,3,FALSE)/6)","v":1}]
["b)",{"$f":"IF('INPUT_Pre-check'!$D$6 =Translate!$C$91,Translate!$C$539&\" \"& \"…..\" & \" \"& Translate!$C$540,Translate!$C$539 &\" \"& 'INPUT_Pre-check'!$D$6 &\" \"&Translate!$C$540)","v":"Are solar technicians in ….. licensed to carry out their work by the government?"},{"$f":"Translate!$C$543","v":"• Government regulation on licensing of solar technicians"},null,"Yes","Inconsequential",null,{"$f":"E54/COUNTA(B56:B58)","v":3.3333333333333333E-2},{"$f":"(J57*H57)","v":3.3333333333333333E-2},{"$f":"IF(E57='Lists 2'!$K$11,VLOOKUP(F57,'Lists 2'!$M$11:$O$15,2,FALSE)/6,VLOOKUP(F57,'Lists 2'!$M$11:$O$15,3,FALSE)/6)","v":1}]
["c)",{"$f":"Translate!$C$541","v":"Is solar technology part of the curriculum in agricultural courses or programs in agricultural training institutions?"},{"$f":"Translate!$C$544","v":"• Solar systems and technologies courses in educational institutions"},null,"Yes","Inconsequential",null,{"$f":"E54/COUNTA(B56:B58)","v":3.3333333333333333E-2},{"$f":"(J58*H58)","v":3.3333333333333333E-2},{"$f":"IF(E58='Lists 2'!$K$11,VLOOKUP(F58,'Lists 2'!$M$11:$O$15,2,FALSE)/6,VLOOKUP(F58,'Lists 2'!$M$11:$O$15,3,FALSE)/6)","v":1}]
[]
[6,{"$f":"Translate!$C$545","v":"Awareness of solar PV and irrigation technologies "},null,null,{"$f":"Translate!$C$411","v":"Highest Possible Score"},{"$f":"Translate!$C$412","v":"Attained Score"}]
[null,null,null,null,{"$f":"'INPUT_Weight setting'!F21","v":0.1},{"$f":" IF(OR(AND(E64=\"No\",F64=\"Critical\"),AND(E68=\"No\",F68=\"Critical\"),AND(E65=\"No\",F65=\"Critical\"),AND(E69=0,F69=\"Critical\")),0,SUM(I63,I67,))","v":9.1666666666666674E-2}]
[null,{"$f":"Translate!$C$409","v":"Questions"},{"$f":"Translate!$C$410","v":"Sample Data Sources"},null,{"$f":"Translate!$C$413","v":"Answer"},{"$f":"Translate!$C$414","v":"Relevance"},null,{"$f":"Translate!$C$430","v":"Weight"},{"$f":"Translate!$C$431","v":"Attained Score"},{"$f":"Translate!$C$432","v":"Raw Score"}]
["a)",{"$f":"Translate!$C$546","v":"Solar energy"},null,null,null,null,null,{"$f":"E61/COUNTA(B63,B67)","v":0.05},{"$f":"I64+I65+I66","v":4.1666666666666664E-2}]
["i)",{"$f":"IF('INPUT_Pre-check'!$D$6 =Translate!$C$91,Translate!$C$547 &\" \"& \"…..\" &Translate!$C$416,Translate!$C$547 &\" \"& 'INPUT_Pre-check'!$D$6 &Translate!$C$416)","v":"Is there a cumulative increase in the installed capacity of solar energy between the years 2012 - 2020 in …..?"},{"$f":"Translate!$C$550","v":"IRENA dashboard: Trends in Renewable Energy"},null,"Yes","Inconsequential",null,{"$f":"H63/COUNTA(B64:B66)","v":1.6666666666666666E-2},{"$f":"(J64*H64)","v":1.6666666666666666E-2},{"$f":"IF(E64='Lists 2'!$K$11,VLOOKUP(F64,'Lists 2'!$M$11:$O$15,2,FALSE)/6,VLOOKUP(F64,'Lists 2'!$M$11:$O$15,3,FALSE)/6)","v":1}]
["ii)",{"$f":"IF('INPUT_Pre-check'!$D$6 =Translate!$C$91,Translate!$C$548 &\" \"& \"…..\" &Translate!$C$416,Translate!$C$548 &\" \"& 'INPUT_Pre-check'!$D$6 &Translate!$C$416)","v":"Is there a general increase in the annual net additional installed solar energy between the years 2012 - 2020 in …..?"},null,null,"Yes","Inconsequential",null,{"$f":"H63/COUNTA(B64:B66)","v":1.6666666666666666E-2},{"$f":"(J65*H65)","v":1.6666666666666666E-2},{"$f":"IF(E65='Lists 2'!$K$11,VLOOKUP(F65,'Lists 2'!$M$11:$O$15,2,FALSE)/6,VLOOKUP(F65,'Lists 2'!$M$11:$O$15,3,FALSE)/6)","v":1}]
["iii)",{"$f":"Translate!$C$549","v":" What is the solar energy proportion of the total installed energy capacity?"},null,null,0.05,"Inconsequential",null,{"$f":"H63/COUNTA(B64:B66)","v":1.6666666666666666E-2},{"$f":"(J66*H66)","v":8.3333333333333332E-3},{"$f":"IF(F66='Lists 2'!$Q$12,0.5,E66)","v":0.5}]
["b)",{"$f":"Translate!$C$551","v":"Distribution networks for solar and irrigation systems"},null,null,null,null,null,{"$f":"E61/COUNTA(B63,B67)","v":0.05},{"$f":"I68+I69","v":0.05}]
["i)",{"$f":"IF('INPUT_Pre-check'!$D$6 =Translate!$C$91,Translate!$C$552 &\" \"& \"…..\" &Translate!$C$416,Translate!$C$552&\" \"& 'INPUT_Pre-check'!$D$6 &Translate!$C$416)","v":"Is there a presence of suppliers and/or distributors of water pump products from global pump manufacturers in the market in …..?"},{"$f":"Translate!$C$554","v":"• List of major water pump products and suppliers"},"Ebara","Yes","Inconsequential",null,{"$f":"H67/COUNTA(B68:B69)","v":2.5000000000000001E-2},{"$f":"(J68*H68)","v":2.5000000000000001E-2},{"$f":"IF(E68='Lists 2'!$K$11,VLOOKUP(F68,'Lists 2'!$M$11:$O$15,2,FALSE)/6,VLOOKUP(F68,'Lists 2'!$M$11:$O$15,3,FALSE)/6)","v":1}]
["ii)",{"$f":"IF('INPUT_Pre-check'!$D$6 =Translate!$C$91,Translate!$C$553 &\" \"& \"…..\" &Translate!$C$416,Translate!$C$553&\" \"& 'INPUT_Pre-check'!$D$6 &Translate!$C$416)","v":"Is there a presence of suppliers and/or distributors of solar PV systems from global manufacturers in the market in …..?"},{"$f":"Translate!$C$555","v":"• List of major solar PV products and suppliers"},"Ebara","Yes","Inconsequential",null,{"$f":"H67/COUNTA(B68:B69)","v":2.5000000000000001E-2},{"$f":"(J69*H69)","v":2.5000000000000001E-2},{"$f":"IF(E69='Lists 2'!$K$11,VLOOKUP(F69,'Lists 2'!$M$11:$O$15,2,FALSE)/6,VLOOKUP(F69,'Lists 2'!$M$11:$O$15,3,FALSE)/6)","v":1}]
[]
[7,{"$f":"Translate!$C$556","v":"Significance of agriculture in the local economy"},null,null,{"$f":"Translate!$C$411","v":"Highest Possible Score"},{"$f":"Translate!$C$412","v":"Attained Score"}]
[null,null,null,null,{"$f":"'INPUT_Weight setting'!B26","v":0.1},{"$f":" IF(OR(AND(E74=0,F74=\"Critical\"),AND(E76=0,F76=\"Critical\"),AND(E77=0,F77=\"Critical\")),0,SUM(I74:I78))","v":0.05}]
[null,{"$f":"Translate!$C$409","v":"Questions"},{"$f":"Translate!$C$410","v":"Sample Data Sources"},null,{"$f":"Translate!$C$413","v":"Answer"},{"$f":"Translate!$C$414","v":"Relevance"},null,{"$f":"Translate!$C$430","v":"Weight"},{"$f":"Translate!$C$431","v":"Attained Score"},{"$f":"Translate!$C$432","v":"Raw Score"}]
["a)",{"$f":"IF('INPUT_Pre-check'!$D$6 =Translate!$C$91,Translate!$C$557&\" \"& \"…..\" & \" \"& Translate!$C$558,Translate!$C$557 &\" \"& 'INPUT_Pre-check'!$D$6 &\" \"&Translate!$C$558)","v":"What proportion of the employed population in ….. are employed in the agricultural sector?"},{"$f":"Translate!$C$566","v":"World Bank; Indicators per country in 2019 (most recent year); Employment in agriculture (% of total employment)"},null,null,"Inconsequential",null,{"$f":"E72/COUNTA(B74:B78)","v":0.02},{"$f":"(J74*H74)","v":0.01},{"$f":"IF(F74='Lists 2'!$Q$12,0.5,E74)","v":0.5}]
["b)",{"$f":"Translate!$C$559","v":"What proportion of the population is rural?"},{"$f":"Translate!$C$567","v":" World Bank; Rural population (% of total population) in 2020; "},null,null,"Inconsequential",null,{"$f":"E72/COUNTA(B74:B78)","v":0.02},{"$f":"(J75*H75)","v":0.01},{"$f":"IF(F75='Lists 2'!$Q$12,0.5,E75)","v":0.5}]
["c)",{"$f":"IF('INPUT_Pre-check'!$D$6 =Translate!$C$91,Translate!$C$560&\" \"& \"…..\" & \" \"& Translate!$C$561,Translate!$C$560&\" \"& 'INPUT_Pre-check'!$D$6 &\" \"&Translate!$C$561)","v":"What proportion of the GDP in ….. is contributed by its agricultural output?"},{"$f":"Translate!$C$568","v":"World Bank; Indicators per country in 2020  (most recent year); Agriculture, value added (% of GDP)\n"},null,null,"Inconsequential",null,{"$f":"E72/COUNTA(B74:B78)","v":0.02},{"$f":"(J76*H76)","v":0.01},{"$f":"IF(F76='Lists 2'!$Q$12,0.5,E76)","v":0.5}]
["e)",{"$f":"IF('INPUT_Pre-check'!$D$6 =Translate!$C$91,Translate!$C$562&\" \"& \"…..\" & \" \"& Translate!$C$563,Translate!$C$562&\" \"& 'INPUT_Pre-check'!$D$6 &\" \"&Translate!$C$563)","v":"What proportion of the total land in ….. is agricultural land?"},{"$f":"Translate!$C$569","v":"World Bank; Indicators per country in 2018  (most recent year); Agricultural land (% of land area)"},null,null,"Inconsequential",null,{"$f":"E72/COUNTA(B74:B78)","v":0.02},{"$f":"(J77*H77)","v":0.01},{"$f":"IF(F77='Lists 2'!$Q$12,0.5,E77)","v":0.5}]
["d)",{"$f":"IF('INPUT_Pre-check'!$D$6 =Translate!$C$91,Translate!$C$564&\" \"& \"…..\" & \" \"& Translate!$C$565,Translate!$C$564&\" \"& 'INPUT_Pre-check'!$D$6 &\" \"&Translate!$C$565)","v":"What percentage of cultivated land area in ….. is already under irrigation?"},{"$f":"Translate!$C$570","v":"FAO, Aquastat map, Part of cultivated area under irrigation (%)"},null,null,"Inconsequential",null,{"$f":"E72/COUNTA(B74:B78)","v":0.02},{"$f":"(J78*H78)","v":0.01},{"$f":"IF(F78='Lists 2'!$Q$12,0.5,E78)+IF(E78>E77,\"0,25\",\"0\")","v":0.5}]
[]
[8,{"$f":"Translate!$C$571","v":"Land use rights, ownership and tenure "},null,null,{"$f":"Translate!$C$411","v":"Highest Possible Score"},{"$f":"Translate!$C$412","v":"Attained Score"}]
[null,null,null,null,{"$f":"'INPUT_Weight setting'!D26","v":0.1},{"$f":"SUM(I83:I87)","v":8.3333333333333343E-2}]
[null,{"$f":"Translate!$C$409","v":"Questions"},{"$f":"Translate!$C$410","v":"Sample Data Sources"},null,{"$f":"Translate!$C$413","v":"Answer"},{"$f":"Translate!$C$414","v":"Relevance"},null,{"$f":"Translate!$C$430","v":"Weight"},{"$f":"Translate!$C$431","v":"Attained Score"},{"$f":"Translate!$C$432","v":"Raw Score"}]
["a)",{"$f":"IF('INPUT_Pre-check'!$D$6 =Translate!$C$91,Translate!$C$572&\" \"& \"…..\" & \" \"& Translate!$C$573,Translate!$C$572&\" \"& 'INPUT_Pre-check'!$D$6 &\" \"&Translate!$C$573)","v":"What proportion of the total land in ….. is indigenous and community lands?"},{"$f":"Translate!$C$577","v":"Landmark: Global platform of indigenous and community lands"},null,0.6,"Inconsequential",null,{"$f":"$E$81/COUNTA(B83,B85,B87)","v":3.3333333333333333E-2},{"$f":"(J83*H83)","v":1.6666666666666666E-2},{"$f":"IF(F83='Lists 2'!$Q$12,0.5,(1-E83))","v":0.5}]
[null,{"$f":"Translate!$C$574","v":"Impact of population density on SPIS"},{"$f":"Translate!$C$578","v":"Data Sources for Population Density"},{"$f":"Translate!$C$579","v":"Population Density"},null,null,null,{"$f":"$E$81/COUNTA(B83,B85,B87)","v":3.3333333333333333E-2},{"$f":"(J84*H84)","v":3.3333333333333333E-2},{"$f":"IF(E85='Lists 2'!$Y$11,VLOOKUP(F85,'Lists 2'!$M$11:$O$15,2,FALSE)/6,VLOOKUP(F85,'Lists 2'!$M$11:$O$15,3,FALSE)/6)","v":1}]
["b)",{"$f":"Translate!$C$575","v":"Does the population density positively or negatively affect the market for SPIS?"},{"$f":"Translate!$C$580","v":"World Population Density Data Index Mundi"},"<1","Positive","Inconsequential"]
[]
["c)",{"$f":"Translate!$C$576","v":"Does the population density have a positive or negative effect on land availability for agriculture?"},null,null,"Positive","Inconsequential",null,{"$f":"$E$81/COUNTA(B83,B85,B87)","v":3.3333333333333333E-2},{"$f":"(J87*H87)","v":3.3333333333333333E-2},{"$f":"IF(E87='Lists 2'!$Y$11,VLOOKUP(F87,'Lists 2'!$M$11:$O$15,2,FALSE)/6,VLOOKUP(F87,'Lists 2'!$M$11:$O$15,3,FALSE)/6)","v":1}]
[]
[]
[9,{"$f":"Translate!$C$584","v":"Transportation and communication infrastructure "},null,null,{"$f":"Translate!$C$411","v":"Highest Possible Score"},{"$f":"Translate!$C$412","v":"Attained Score"}]
[null,null,null,null,{"$f":"'INPUT_Weight setting'!F26","v":0.1},{"$f":"I93+I99","v":0.05}]
[null,{"$f":"Translate!$C$409","v":"Questions"},{"$f":"Translate!$C$410","v":"Sample Data Sources"},null,{"$f":"Translate!$C$413","v":"Answer"},{"$f":"Translate!$C$414","v":"Relevance"},null,{"$f":"Translate!$C$430","v":"Weight"},{"$f":"Translate!$C$431","v":"Attained Score"},{"$f":"Translate!$C$432","v":"Raw Score"}]
["a)",{"$f":"Translate!$C$585","v":"Transport"},null,null,null,null,null,{"$f":"E91/COUNTA(B93,B99)","v":0.05},{"$f":"I94+I95+I97+I98+I96","v":2.5000000000000001E-2}]
["i)",{"$f":"IF('INPUT_Pre-check'!$D$6 =Translate!$C$91,Translate!$C$586 &\" \"& \"…..\" &Translate!$C$416,Translate!$C$586&\" \"& 'INPUT_Pre-check'!$D$6 &Translate!$C$416)","v":"What is the quality of air transport infrastructure score of …..?"},{"$f":"Translate!$C$591","v":"Global mobility data, Country snapshot "},null,null,"Inconsequential",null,{"$f":"H93/COUNTA(B94:B98)","v":0.01},{"$f":"(J94*H94)","v":5.0000000000000001E-3},{"$f":"(IF(F94='Lists 2'!$Q$12,3.5,E94))/7","v":0.5}]
["ii)",{"$f":"IF('INPUT_Pre-check'!$D$6 =Translate!$C$91,Translate!$C$587 &\" \"& \"…..\" &Translate!$C$416,Translate!$C$587&\" \"& 'INPUT_Pre-check'!$D$6 &Translate!$C$416)","v":"What is the quality of port infrastructure score of …..?"},null,null,null,"Inconsequential",null,{"$f":"H93/COUNTA(B94:B98)","v":0.01},{"$f":"(J95*H95)","v":5.0000000000000001E-3},{"$f":"(IF(F95='Lists 2'!$Q$12,3.5,E95))/7","v":0.5}]
["iii)",{"$f":"IF('INPUT_Pre-check'!$D$6 =Translate!$C$91,Translate!$C$588 &\" \"& \"…..\" &Translate!$C$416,Translate!$C$588&\" \"& 'INPUT_Pre-check'!$D$6 &Translate!$C$416)","v":"What is the quality of road infrastructure score of …..?"},null,null,null,"Inconsequential",null,{"$f":"H93/COUNTA(B94:B98)","v":0.01},{"$f":"(J96*H96)","v":5.0000000000000001E-3},{"$f":"(IF(F96='Lists 2'!$Q$12,3.5,E96))/7","v":0.5}]
["iv)",{"$f":"IF('INPUT_Pre-check'!$D$6 =Translate!$C$91,Translate!$C$589 &\" \"& \"…..\" &Translate!$C$416,Translate!$C$589&\" \"& 'INPUT_Pre-check'!$D$6 &Translate!$C$416)","v":"What is the quality of railroad infrastructure score of …..?"},null,null,null,"Inconsequential",null,{"$f":"H93/COUNTA(B94:B98)","v":0.01},{"$f":"(J97*H97)","v":5.0000000000000001E-3},{"$f":"(IF(F97='Lists 2'!$Q$12,3.5,E97))/7","v":0.5}]
["v)",{"$f":"IF('INPUT_Pre-check'!$D$6 =Translate!$C$91,Translate!$C$590 &\" \"& \"…..\" &Translate!$C$416,Translate!$C$590&\" \"& 'INPUT_Pre-check'!$D$6 &Translate!$C$416)","v":"What is the overall logistics performance index score (2018) of …..?"},{"$f":"Translate!$C$592","v":"Logistics performance index: Quality of trade and transport-related infrastructure (1=low to 5=high)"},null,null,"Inconsequential",null,{"$f":"H93/COUNTA(B94:B98)","v":0.01},{"$f":"(J98*H98)","v":5.0000000000000001E-3},{"$f":"(IF(F98='Lists 2'!$Q$12,2.5,E98))/5","v":0.5}]
["b)",{"$f":"Translate!$C$593","v":"Communication"},null,null,null,null,null,{"$f":"E91/COUNTA(B93,B99)","v":0.05},{"$f":"I100+I101+I102","v":2.5000000000000001E-2}]
["i)",{"$f":"IF('INPUT_Pre-check'!$D$6 =Translate!$C$91,Translate!$C$594 &\" \"& \"…..\" &Translate!$C$416,Translate!$C$594&\" \"& 'INPUT_Pre-check'!$D$6 &Translate!$C$416)","v":"What is the mobile-cellular telephone subscriptions per 100 inhabitants value in …..?"},{"$f":"Translate!$C$597","v":"International Telecommunications Union, global ICT Development Index (IDI) statistics"},null,null,"Inconsequential",null,{"$f":"H99/COUNTA(B100:B102)","v":1.6666666666666666E-2},{"$f":"(J100*H100)","v":8.3333333333333332E-3},{"$f":"(IF(F100='Lists 2'!$Q$12,50,E100))/100","v":0.5}]
["i)",{"$f":"IF('INPUT_Pre-check'!$D$6 =Translate!$C$91,Translate!$C$595 &\" \"& \"…..\" &Translate!$C$416,Translate!$C$595&\" \"& 'INPUT_Pre-check'!$D$6 &Translate!$C$416)","v":"What is the active mobile-broadband subscriptions per 100 inhabitants value in …..?"},null,null,null,"Inconsequential",null,{"$f":"H99/COUNTA(B100:B102)","v":1.6666666666666666E-2},{"$f":"(J101*H101)","v":8.3333333333333332E-3},{"$f":"(IF(F101='Lists 2'!$Q$12,50,E101))/100","v":0.5}]
["iii)",{"$f":"IF('INPUT_Pre-check'!$D$6 =Translate!$C$91,Translate!$C$596 &\" \"& \"…..\" &Translate!$C$416,Translate!$C$596&\" \"& 'INPUT_Pre-check'!$D$6 &Translate!$C$416)","v":"What is the overall ICT Development Index value - IDI - (2017) in …..?"},null,null,null,"Inconsequential",null,{"$f":"H99/COUNTA(B100:B102)","v":1.6666666666666666E-2},{"$f":"(J102*H102)","v":8.3333333333333332E-3},{"$f":"(IF(F102='Lists 2'!$Q$12,5,E102))/10","v":0.5}]
[]
[]
[null,null,{"$f":"Translate!$C$628","v":"Got more recent data sources? "}]
[null,null,{"$f":"Translate!$C$629","v":"PLEASE SHARE "}]
[null,null,{"$f":"Translate!$C$630","v":" and help us to improve our tools."}]
[null,null,{"$f":"Translate!$C$631","v":"Thank you."}]

{"sheet":"OUTPUT_Result","index":5,"n_rows":52,"n_cols":12,"rows_kept":52,"cut":false,"hidden":false,"merged":[[51,1,51,12],[6,1,6,12],[8,1,8,4],[22,1,22,12],[8,7,8,12],[1,2,1,10],[3,9,3,10],[4,9,4,10],[3,7,3,8],[4,7,4,8],[4,2,4,6],[3,2,3,6]]}
[]
[null,null,{"$f":"Translate!$C$599","v":"OUTPUT - Market Assessment Results"}]
[]
[null,{"$f":"Translate!$C$600","v":"Country:"},{"$f":"'INPUT_Pre-check'!D6","v":"Select the country of Interest"},null,null,null,null,{"$f":"Translate!$C$602","v":"Assessment date:"},null,{"$f":"'INPUT_Pre-check'!D8","v":"00:00:00"}]
[null,{"$f":"Translate!$C$601","v":"Specific area of interest:"},{"$f":"'INPUT_Pre-check'!D7","v":0},null,null,null,null,{"$f":"Translate!$C$603","v":"Assessor name:"},null,{"$f":"'INPUT_Pre-check'!D9","v":0}]
[]
[null,{"$f":"Translate!$C$604","v":"A. Market Potential for SPIS: Score and Relevances"}]
[]
[null,{"$f":"Translate!$C$605","v":"Total Score (%)"},null,null,null,null,null,{"$f":"Translate!$C$606","v":"Overview of Relevance Ratings"}]
[]
[]
[]
[]
[]
[]
[]
[]
[]
[]
[]
[]
[]
[null,{"$f":"Translate!$C$607","v":"B. Market Potential for SPIS: Overall Score"}]
[]
[]
[]
[null,null,null,null,null,null,null,null,null,null,null,{"$f":"Translate!$C$619","v":"Major Market Barrier"}]
[null,null,null,null,null,null,null,null,null,null,null,{"$f":"Translate!$C$620","v":"Minor Market Barrier"}]
[null,null,null,null,null,null,null,null,null,null,null,{"$f":"Translate!$C$621","v":"Minor Market Strength"}]
[null,null,null,null,null,null,null,null,null,null,null,{"$f":"Translate!$C$622","v":"Major Market Strength"}]
[]
[]
[]
[]
[]
[]
[]
[]
[]
[]
[]
[]
[]
[]
[]
[]
[]
[]
[]
[]
[]
[null,{"$f":"Translate!$C$623","v":"C. Market Potential for SPIS: Comparative Score to Weight Setting"}]

{"sheet":"Translate","index":6,"n_rows":677,"n_cols":7,"rows_kept":677,"cut":false,"hidden":false,"merged":[[1,1,2,2],[4,1,4,8],[6,1,12,1]]}
[]
[null,{"$f":"$C$15","v":"Do not modify this sheet"}]
[]
[]
[null,{"$f":"$C$16","v":"Reference Row"}]
[null,{"$f":"$C$17","v":"Selected Language:"},{"$f":"'READ ME'!$D$3","v":"English"},"English","Français","Español","العربية"]
[null,{"$f":"$C$18","v":"Sheet name"},{"$f":"HLOOKUP($C$6,$D$6:$I$701,ROW()-ROW($B$5),FALSE)","v":"READ ME"},"READ ME","LISER MOI","LÉEME","اقرأ هذه الصفحة"]
[null,null,{"$f":"HLOOKUP($C$6,$D$6:$I$701,ROW()-ROW($B$5),FALSE)","v":"INPUT_Pre-check"},"INPUT_Pre-check","INTRANT_Vérification préliminaire","ENTRADA_Precontrol","المدخلات_التحقق المسبق"]
[null,null,"INPUT_Weight setting","INPUT_Weight setting","INTRANT_Facteurs de pondération","ENTRADA_Ajuste de valoración","المدخلات_تحديد الأهمية"]
[null,null,"INPUT_Geophysical Parameters","INPUT_Geophysical Parameters","INTRANT_Paramètres géophysique","ENTRADA_Parámetros Geofísicos","المدخلات_المعلمات الجيوفيزيائية "]
[null,null,"INPUT_Business Conditions","INPUT_Business Conditions","INTRANT_Environnement économique","ENTRADA_Condiciones de Mercado","المدخلات_شروط السوق"]
[null,null,"OUTPUT_Result","OUTPUT_Result","PRODUIT_RÉSULTAT","SALIDA_Resultados","المخرجات_النتيجة"]
[null,null,"Translate","Translate","Traduire","Traducción","ترجمة"]
[]
[null,{"$f":"$C$13","v":"Translate"},"Do not modify this sheet","Do not modify this sheet","Ne modifiez pas cette feuille","No modifique esta hoja","لا تعدل هذه الصفحة"]
[null,null,"Reference Row","Reference Row","Ligne de référence","Fila de referencia","صف مرجعي"]
[null,null,"Selected Language:","Selected Language:","Langue sélectionnée:","Idioma seleccionado:","اللغة المختارة:"]
[null,null,"Sheet name","Sheet name","Nom de la feuille","Nombre de la hoja","اسم الصفحة"]
[]
[null,{"$f":"$C$7","v":"READ ME"},"Select language","Select language","Sélectionner la langue","Seleccione el idioma","اختار اللغة"]
[null,null,"Read Me Sheet","Read Me Sheet","Feuille Lisez-moi","Léeme","اقرأ هذه الصفحة"]
[null,null,"Market – Market Assessment tool","Market – Market Assessment tool","MARCHÉ – Outil d'analyse du marché","MERCADO – Herramienta de Evaluación de Mercado","السوق – أداة تقييم السوق"]
[null,null,"Introduction","Introduction","Introduction","Introducción","مقدمة"]
[null,null,"This tool complements the module MARKET in the SPIS Toolbox. The tool serves to determine geophysical parameters highlighted as make or break. If any of the parameters scores a 0, the area is considered to have very poor potential for SPIS. A ‘yes’ from this evaluation allows consideration of other parameters.","This tool complements the module MARKET in the SPIS Toolbox. The tool serves to determine geophysical parameters highlighted as make or break. If any of the parameters scores a 0, the area is considered to have very poor potential for SPIS. A ‘yes’ from this evaluation allows consideration of other parameters.","Cet outil vient compléter le module \"MARCHÉ\" de la boîte à outils SPIS. Il sert à déterminer les paramètres géophysiques décisifs. Si l'un des paramètres obtient un score de 0, la zone est considérée comme ayant un potentiel très faible pour les SPIS. Un \"Oui\" dans cette évaluation permet de prendre en compte d'autres paramètres.","Esta herramienta complementa el módulo \"MERCADO\" en la Caja de herramientas de SPIS. La herramienta sirve para determinar los parámetros geofísicos determinantes para el éxito o fracaso de un SPIS. Si cualquiera de los parámetros obtiene un puntaje de 0, se considera que el área tiene muy poco potencial para SPIS. Un 'sí' de esta evaluación permite la consideración de otros parámetros.","تكمّل هذه الأداة وحدة \"السوق\" الخاصة بصندوق الأدوات لأنظمة الريّ بالطاقة الشمسية (SPIS Toolbox). تعمل الأداة على تحديد المعلمات الجيوفيزيائية المميزة. إذا سجل أي من المعلمات 0 ، فإن المنطقة تعتبر ذات إمكانات ضعيفة جدًا لـ SPIS. تسمح الإجابة \"نعم\" في هذا التقييم بأخذ معايير أخرى بعين الاعتبار."]
[null,null,"Tips & Tricks","Tips & Tricks","Conseils et Astuces","Consejos y trucos","نصائح وحيل"]
[null,null,"● Make sure that macro is always enabled for the proper functioning of this tool.","● Make sure that macro is always enabled for the proper functioning of this tool.","● Assurez-vous que les macros sont toujours activées pour le bon fonctionnement de cet outil.","● Asegúrese de que la macro esté siempre habilitada para el correcto funcionamiento de esta herramienta.","● تأكد من تمكين الماكرو دائمًا من أجل حسن سير هذه الأداة"]
[null,null,"● Only enter values into white (non-coloured) cells.","● Only enter values into white (non-coloured) cells.","● Saisissez des valeurs uniquement dans les cellules blanches. ","● Introduzca solamente valores en celdas en blanco (no coloreadas).","● أدخل القيم فقط في الخلايا البيضاء (غير الملونة)."]
[null,null,"● Tool may contain illustrative sample values. Please adjust or remove.","● Tool may contain illustrative sample values. Please adjust or remove.","● Cet outil peut contenir des valeurs données à titres d'exemple. Veuillez les ajuster ou les supprimer.","● La herramienta puede contener valores ilustrativos de ejemplo. Por favor, ajustar o eliminar.","● قد تحتوي الأداة على قيم عينة توضيحية. يرجى التعديل أو الإزالة."]
[null,null,"● This tool contains numerous critical formulas or calculations in colored cells.","● This tool contains numerous critical formulas or calculations in colored cells.","● Cet outil contient de nombreuses formules importantes ou des calculs dans les cellules colorées.","● Esta herramienta contiene numerosas fórmulas o cálculos críticos en celdas coloreadas.","● تحتوي هذه الأداة على العديد من الصيغ أو الحسابات الهامة في الخلايا الملونة."]
[null,null,"● The sheets in this tool are linked and values are automatically calculated and transferred between the sheets.","● The sheets in this tool are linked and values are automatically calculated and transferred between the sheets.","● Les feuilles de cet outil sont liées et les valeurs sont automatiquement calculées et transférées d'une feuille à l'autre.","● Las hojas de esta herramienta están referenciadas y los valores se calculan y transfieren automáticamente entre las hojas.","● يتم ربط الأوراق الموجودة في هذه الأداة ويتم حساب القيم تلقائيًا ونقلها بين الأوراق."]
[null,null,"● You can access data sources to get the required information by clicking on the provided links.","● You can access data sources to get the required information by clicking on the provided links.","● Vous pouvez accéder aux sources de données pour obtenir les informations requises en cliquant sur les liens fournis.","● Puede acceder a las fuentes de datos para obtener la información requerida utilizando los enlaces recomendados.","● يمكنك الوصول إلى مصادر البيانات للحصول على المعلومات المطلوبة من خلال النقر على الروابط المتوفرة."]
[null,null,"● For the multilanguage option to work properly, do NOT delete sheets.","● For the multilanguage option to work properly, do NOT delete sheets.","● Pour que l'option multilingue fonctionne correctement, ne supprimez PAS les feuilles.","● Para que la opción de varios idiomas funcione correctamente, NO elimine las hojas.","● لكي يعمل خيار اللغات المتعددة بشكل صحيح ، لا تحذف الصفحات"]
[null,null,"● Make sure that this file is always saved as \".xlsm\".    \n","● Make sure that this file is always saved as \".xlsm\".    \n","● Assurez-vous que ce fichier est toujours enregistré sous \".xlsm\".    \n","● Asegúrese de que este archivo siempre se guarde como \".xlsm\".","● تأكد من حفظ هذا الملف دائمًا باسم \".xlsm\""]
[null,null,"Overview","Overview","Aperçu","Sinopsis","نظرة عامة"]
[null,null,"This tool comprises the following sheet:","This tool comprises the following sheet:","Cet outil est composé des feuilles suivantes:","Esta herramienta incluye las siguientes hojas:","تتكون هذه الأداة من الصفحات التالية:"]
[null,null,"Allows the first check for SPIS suitability to proceed with the assessment","Allows the first check for SPIS suitability to proceed with the assessment","Permet une première vérification de l'aptitude du SPIS à faire l'objet d'une évaluation","Permite un primer control de aptitud del SPIS para proceder con la evaluación detallada.","يسمح بالتحقق الأول من ملاءمة SPIS لمتابعة التقييم"]
[null,null,"Provides a description of parameters and allows for adjusting weights","Provides a description of parameters and allows for adjusting weights","Fournit une description des paramètres et permet d'ajuster les coefficients de pondération","Proporciona una descripción de los parámetros y permite ajustar una valoración del impacto de las condiciones de mercado","يقدم وصفًا للمعلمات ويسمح بضبط الأهمية"]
[null,null,"For defining geophysical parameters in the target area","For defining geophysical parameters in the target area","Permet de définir les paramètres géophysiques dans la région cible","Para definir los parámetros geofísicos en el área de interés","لتحديد المعلمات الجيوفيزيائية في المنطقة المستهدفة"]
[null,null,"For defining business relevant parameters relevant to the target area","For defining business relevant parameters relevant to the target area","Permet de définir les paramètres économiques pertinents pour la zone cible","Para definir los parámetros relevantes de negocio importantes para el área objetivo","لتحديد المعلمات التجارية ذات الصلة بالمنطقة المستهدفة"]
[null,null,"Shows a graphic overview of the market potential of SPIS within an area","Shows a graphic overview of the market potential of SPIS within an area","PRODUIT_RÉSULTAT : donne un aperçu graphique du potentiel de marché d'un SPIS dans une région","Muestra una descripción gráfica del potencial de mercado de SPIS en un área","يعرض نظرة عامة بيانية لإمكانيات السوق لـ SPIS داخل منطقة ما"]
[null,null,"About","About","En savoir plus","Acerca de","حول"]
[null,null,"Published by: ","Published by: ","Publié par: ","Publicado por: ","نشرت من قبل:"]
[null,null,"Responsible:","Responsible:","Responsables:","Responsable:","مسؤول:"]
[null,null,"Contact:","Contact:","Contact:","Contacto: ","اتصال:"]
[null,null,"Download link:","Download link:","Lien de téléchargement:","Enlace descarga: ","رابط التحميل:"]
[null,null,"About:","About:","À propos de: ","Acerca de:","حول:"]
[null,null,"Version:","Version:","Version:","Versión:","إصدار:"]
[null,null,"GIZ & FAO","GIZ & FAO","GIZ et FAO","GIZ & FAO","الوكالة الألمانية للتعاون الدولي (GIZ) ومنظمة الأغذية والزراعة (FAO)"]
[null,null,"GIZ project \"Water and Energy for Food (WE4F)\"","GIZ project \"Water and Energy for Food (WE4F)\"","Projet de la GIZ « Les innovations dans l’agriculture et la production alimentaire protègent le climat (PEEPA/WE4F) » (Water and Energy for Food)","GIZ project \"Water and Energy for Food (WE4F)\"","مشروع الوكالة الألمانية للتعاون الدولي \"المياه والطاقة من أجل الغذاء Water and Energy for Food (WE4F)\""]
[null,null,"Water and Energy for Food Grand Challenge at:  ","Water and Energy for Food Grand Challenge at:  ","Eau et Energie pour l'Alimentation (PEEPA). Disponible à l’adresse :  ","Water and Energy for Food Grand Challenge at:  ","التحدي الكبير للمياه والطاقة من أجل الغذاء في:"]
[null,null,"3.0 (June 2021)","3.0 (June 2021)","3.0 (Juin 2021)","3.0 (Junio 2021)","3.0 (يونيو 2021)"]
[null,null,"The Toolbox on Solar Powered Irrigation Systems (SPIS) is a legacy project of the global initiative Powering Agriculture: An Energy Grand Challenge for Development (PAEGC). In 2012, the United States Agency for International Development (USAID), the Swedish International Development Cooperation Agency (Sida), the German Federal Ministry for Economic Cooperation and Development (BMZ), Duke Energy, and the Overseas Private Investment Corporation (OPIC) combined resources to support new and sustainable approaches to accelerate the development and deployment of clean energy solutions for increasing agriculture productivity.\n\nThe Toolbox on SPIS has now been embraced for further development by PAEGC's successor program Water and Energy for Food (WE4F). WE4F is a joint international initiative of the European Union (EU), German Federal Ministry for Economic Cooperation and Development (BMZ), the Ministry of Foreign Affairs of the Kingdom of the Netherlands, Sweden through the Swedish International Development Cooperation Agency (Sida), and the U.S. Agency for International Development (USAID). WE4F aims to increase food production along the value chain through a more sustainable and efficient usage of water and/or energy.","The Toolbox on Solar Powered Irrigation Systems (SPIS) is a legacy project of the global initiative Powering Agriculture: An Energy Grand Challenge for Development (PAEGC). In 2012, the United States Agency for International Development (USAID), the Swedish International Development Cooperation Agency (Sida), the German Federal Ministry for Economic Cooperation and Development (BMZ), Duke Energy, and the Overseas Private Investment Corporation (OPIC) combined resources to support new and sustainable approaches to accelerate the development and deployment of clean energy solutions for increasing agriculture productivity.\n\nThe Toolbox on SPIS has now been embraced for further development by PAEGC's successor program Water and Energy for Food (WE4F). WE4F is a joint international initiative of the European Union (EU), German Federal Ministry for Economic Cooperation and Development (BMZ), the Ministry of Foreign Affairs of the Kingdom of the Netherlands, Sweden through the Swedish International Development Cooperation Agency (Sida), and the U.S. Agency for International Development (USAID). WE4F aims to increase food production along the value chain through a more sustainable and efficient usage of water and/or energy.","La boîte à outils pour les systèmes d’irrigation à énergie solaire (Solar Powered Irrigation Systems, SPIS) est un projet hérité de l'initiative mondiale « Propulser l’agriculture : un grand défi énergétique pour le développement » (Powering Agriculture: An Energy Grand Challenge for Development – PAEGC). En 2012, l’Agence des États-Unis pour le développement international (USAID), l’Agence suédoise de coopération internationale au développement (Sida), le ministère fédéral allemand de la Coopération économique et du Développement (BMZ), Duke Energy et l’Overseas Private Investment Cooperation (OPIC) ont mis leurs ressources en commun pour soutenir des approches nouvelles et durables afin d'accélérer le développement et le déploiement des solutions énergétiques propres pour accroître la productivité agricole.\n\nLa boîte à outils sur les SPIS a maintenant été adoptée pour un développement ultérieur par le programme successeur du PAEGC, Eau et Energie pour l'Alimentation (PEEPA) - Water and Energy for Food (WE4F). WE4F/PEEPA est une initiative commune de l'Union européenne, du Ministère fédéral allemand de la coopération économique et du développement (BMZ), du Ministère des affaires étrangères du royaume des Pays-Bas, de l’Agence suédoise de développement (Sida) et de l’Agence de développement des États-Unis (USAID). WE4F/PEEPA vise à accroître la production alimentaire tout au long de la chaîne de valeur grâce à une utilisation plus durable et plus efficace de l'eau et/ou de l'énergie.","La publicación de la Caja de herramientas de sistemas de riego solar ha sido posible gracias al apoyo brindado por la iniciativa mundial Powering Agriculture: An Energy Grand Challenge for Development (PAEGC) (Energización Rural: Un gran desafío energético para el desarrollo). En 2012, la Agencia de los Estados Unidos para el Desarrollo Internacional (USAID), la Agencia Sueca de Cooperación Internacional para el Desarrollo (Sida), el Ministerio Federal de Cooperación Económica y Desarrollo (BMZ) de Alemania, la empresa de energía Duke Energy Corporation y la Corporación de Inversiones Privadas en el Extranjero (OPIC) juntaron recursos para crear la iniciativa PAEGC. El objetivo de PAEGC es fomentar nuevos enfoques sostenibles con el fin de acelerar el desarrollo y asegurar el establecimiento de energías limpias que incrementen la productividad y/o el valor de la agricultura en países en desarrollo y regiones emergentes sin acceso a fuentes de energía confiables, asequibles y limpias.","يعتبر صندوق الأدوات الخاص بأنظمة الري التي تعمل بالطاقة الشمسية (SPIS) مشروعًا هاما للمبادرة العالمية \"دعم الزراعة: تحدي الطاقة الكبير من أجل التنمية\" Powering Agriculture: An Energy Grand Challenge for Development (PAEGC). في عام 2012 ، قامت الوكالة الأمريكية للتنمية الدولية (USAID) ، والوكالة السويدية للتعاون الإنمائي الدولي (ٍSida) ، والوزارة الفيدرالية الألمانية للتعاون الاقتصادي والتنمية (BMZ) ، وشركة Duke Energy ، ومؤسسة الاستثمار الخاص لما وراء البحار (OPIC) بجهود مشتركة لدعم الأساليب الجديدة والمستدامة لتسريع تطوير ونشر حلول الطاقة النظيفة لزيادة الإنتاجية الزراعية.\n\nتم اعتماد صندوق SPIS الآن لمزيد من التطوير من قبل البرنامج اللاحق لـ PAEGC \"الماء والطاقة من اجل الغذاء\" Water and Energy for Food (WE4F). الاخير هو مبادرة دولية مشتركة من الاتحاد الأوروبي (EU) ، والوزارة الاتحادية الألمانية للتعاون الاقتصادي والتنمية (BMZ) ، ووزارة الشؤون الخارجية لمملكة هولندا ، والسويد من خلال الوكالة السويدية للتعاون الإنمائي الدولي (Sida) ، والوكالة الأمريكية للتنمية الدولية (USAID). تهدف WE4F إلى زيادة إنتاج الغذاء على امتداد سلاسل القيمة الغذائية من خلال استخدام المياه و / أو الطاقة بطريقة أكثر استدامة وكفاءة."]
[null,null,"The designations employed and the presentation of material in this information product do not imply the expression of any opinion whatsoever on the part of Deutsche Gesellschaft für Internationale Zusammenarbeit (GIZ) GmbH, Food and Agriculture Organization of the United Nations (FAO) or any of the PAEGC Founding Partners concerning the legal or development status of any country, territory, city or area or of its authorities, or concerning the delimitation of its frontiers or boundaries. The mention of specific companies or products of manufacturers, whether or not these have been patented, does not imply that these have been endorsed or recommended by GIZ, FAO, or any of the PAEGC Founding Partners in preference to others of a similar nature that are not mentioned. The views expressed in this information product are those of the author and do not necessarily reflect the views or policies of GIZ, FAO, or any of the PAEGC Founding Partners.","The designations employed and the presentation of material in this information product do not imply the expression of any opinion whatsoever on the part of Deutsche Gesellschaft für Internationale Zusammenarbeit (GIZ) GmbH, Food and Agriculture Organization of the United Nations (FAO) or any of the PAEGC Founding Partners concerning the legal or development status of any country, territory, city or area or of its authorities, or concerning the delimitation of its frontiers or boundaries. The mention of specific companies or products of manufacturers, whether or not these have been patented, does not imply that these have been endorsed or recommended by GIZ, FAO, or any of the PAEGC Founding Partners in preference to others of a similar nature that are not mentioned. The views expressed in this information product are those of the author and do not necessarily reflect the views or policies of GIZ, FAO, or any of the PAEGC Founding Partners.","Les appellations employées dans ce produit d’information et la présentation des documents qui y figurent n’impliquent de la part de la Deutsche Gesellschaft für Internationale Zusammenarbeit (GIZ) GmbH, de l’Organisation des Nations unies pour l’alimentation et l’agriculture (FAO) ou de l’un des partenaires fondateurs de l’initiative PAEGC aucune prise de position quant au statut juridique ou au stade de développement des pays, territoires, villes ou zones ou de leurs autorités, ni quant au tracé de leurs frontières ou limites. La mention de sociétés déterminées ou de produits de fabricants, qu’ils soient ou non brevetés, n’entraîne de la part de la GIZ, de la FAO ou de l’un des partenaires fondateurs du PAEGC aucune approbation ou recommandation desdits produits de préférence à d’autres de nature analogue qui ne sont pas cités. Les opinions exprimées dans ce produit d’information sont celles des auteurs et ne reflètent pas nécessairement celles de la GIZ, de la FAO, ou de l’un des partenaires fondateurs du PAEGC.","Las denominaciones empleadas y la presentación del material en este producto informativo no implican juicio alguno por parte de la Deutsche Gesellschaft für Internationale Zusammenarbeit (GIZ) GmbH, la Organización de las Naciones Unidas para la Alimentación y la Agricultura (FAO), o los socios fundadores de la iniciativa PAEGC, sobre la condición jurídica o el grado de desarrollo de ninguno de los países, territorios, ciudades o zonas citados o de sus autoridades, ni respecto de la delimitación de sus fronteras o límites. La mención de empresas o productos de fabricantes en particular, estén o no patentados, no implica que la GIZ, la FAO o alguno de los socios fundadores de la iniciativa PAEGC los aprueben o recomienden, dándoles preferencia sobre otros de naturaleza similar que no se mencionan. Las opiniones expresadas en este producto informativo son las de su(s) autor(es) o autora(s), y no reflejan necesariamente los puntos de vista o las políticas de la GIZ, la FAO o ninguno de los socios fundadores de la iniciativa PAEGC.","التسميات المستخدمة وطريقة عرض المواد في هذا المنتج المعلوماتي لا تعبر عن أي رأي من جانب Deutsche Gesellschaft für Internationale Zusammenarbeit (GIZ) GmbH أو منظمة الأغذية والزراعة للأمم المتحدة (FAO) أو أي من الشركاء المؤسسين لـ PAEGC فيما يتعلق بالوضع القانوني أو التنموي لأي بلد أو إقليم أو مدينة أو منطقة أو لسلطاتها ، أو فيما يتعلق بترسيم حدودها أو نطاقاتها. إن ذكر شركات أو منتجات معينة من الشركات المصنعة ، سواء تم تسجيل براءات اختراع لها أم لا ، لا يعني أن هذه الشركات أو المنتجات قد تم اعتمادها أو التوصية بها من قبل GIZ أو منظمة الأغذية والزراعة أو أي من الشركاء المؤسسين لـ PAEGC او تفضيلها على الشركات أو المنتجات الاخرى غير مذكورة من نفس الطبيعة. الآراء الواردة في هذا المنتج المعلوماتي هي آراء المؤلف ولا تعكس بالضرورة آراء أو سياسات الوكالة الألمانية للتعاون الدولي أو منظمة الأغذية والزراعة أو أي من الشركاء المؤسسين  لـ PAEGC."]
[null,null,"GIZ, FAO and the PAEGC Founding Partners encourage the use, reproduction and dissemination of material in this information product. Except where otherwise indicated, material may be copied, downloaded and printed for private study, research and teaching purposes, or for use in non-commercial products or services, provided that appropriate acknowledgement of GIZ and FAO as the source and copyright holder is given.","GIZ, FAO and the PAEGC Founding Partners encourage the use, reproduction and dissemination of material in this information product. Except where otherwise indicated, material may be copied, downloaded and printed for private study, research and teaching purposes, or for use in non-commercial products or services, provided that appropriate acknowledgement of GIZ and FAO as the source and copyright holder is given.","La GIZ, la FAO et les partenaires fondateurs du PAEGC encouragent l’utilisation, la reproduction et la diffusion des informations contenues dans ce document. Sauf indication contraire, ces dernières peuvent être copiées, téléchargées et imprimées à des fins privées d’étude, de recherche et d’enseignement, ou pour être utilisées dans des produits ou services non commerciaux, à condition que la GIZ et la FAO soient clairement indiquées en tant que sources des informations et détentrices du droit d’auteur.","La GIZ, la FAO y los socios fundadores de la iniciativa PAEGC fomentan la utilización, la reproducción y la difusión del material presentado en este producto informativo. A menos que se indique lo contrario, el material puede ser copiado, descargado e impreso con fines de estudio privado, enseñanza e investigación científica, o para su utilización en productos o servicios no comerciales, siempre que se otorgue a la GIZ y la FAO el debido reconocimiento como fuentes y como titulares de los derechos de autor.","تشجع الوكالة الألمانية للتعاون الدولي ومنظمة الأغذية والزراعة والشركاء المؤسسين لـ PAEGC على استخدام واستنساخ ونشر المواد في هذا المنتج المعلوماتي. يمكن نسخ المواد وتنزيلها وطباعتها للدراسة الخاصة ، ولأغراض البحث والتعليم ، أو لاستخدامها في المنتجات أو الخدمات غير التجارية ، ما لم يُذكر خلاف ذلك ، شريطة تقديم إقرار مناسب من الوكالة الألمانية للتعاون الدولي ومنظمة الأغذية والزراعة كمصدر وصاحب حقوق التأليف والنشر."]
[null,null,"© GIZ and FAO, 2021","© GIZ and FAO, 2021","© GIZ et FAO, 2021","© GIZ & FAO, 2021","© GIZ و FAO, 2021"]
[]
[null,{"$f":"$C$8","v":"INPUT_Pre-check"},"INPUT - Pre-check","INPUT - Pre-check","INTRANT - Vérification préliminaire","ENTRADA - Precontrol","المدخلات - التحقق المسبق"]
[null,null,"Country:","Country:","Pays :","País:","الدولة:"]
[null,null,"Specific area of interest:","Specific area of interest:","Zone spécifique concernée :","Área de interés:","منطقة الاهتمام المحددة:"]
[null,null,"Assessment date:","Assessment date:","Date de l'évaluation :","Fecha de evaluación:","تاريخ التقييم:"]
[null,null,"Assessor name:","Assessor name:","Nom de l’évaluateur :","Nombre del evaluador/a:","اسم المُقَيِّم:"]
[null,null,"Critical Geophysical Parameters","Critical Geophysical Parameters","Paramètres géophysiques décisifs","Parámetros geofísicos críticos","المعلمات الجيوفيزيائية الحاسِمة"]
[null,null,"Questions","Questions","Questions","Preguntas","أسئلة"]
[null,null,"Sample Data Sources","Sample Data Sources","Sources des données","Fuente de datos de muestra","عينة من مصادر البيانات"]
[null,null,"Highest Possible Score","Highest Possible Score","Meilleur score possible","Puntuación más alta posible","أعلى نتيجة ممكنة"]
[null,null,"Attained Score","Attained Score","Score obtenu","Puntuación alcanzada","النتيجة المحققة"]
[null,null,"Answer","Answer","Réponse","Respuesta","إجابة"]
[null,null,"Suitability","Suitability","Aptitude","Aptitud","ملاءمة"]
[null,null,"What is the major land cover found in the area?","What is the major land cover found in the area?","Quel est le type d'occupation des sols prédominant dans la zone concernée ?","¿Cuál es la cobertura de terreno predominante en el área?","ما هو الغطاء الأرضي الرئيسي الموجود في المنطقة؟"]
[null,null,"What is the average annual solar irradiation in the area? (kWh/kW peak - PVOUT value)","What is the average annual solar irradiation in the area? (kWh/kW peak - PVOUT value)","Quelle est l'irradiation solaire annuelle moyenne de la région ? (kWh/kW crête - valeur PVOUT)","¿Cuál es la irradiación solar anual promedio (kWh/kW pico - valor PVOUT)?","ما هو المتوسط السنوي للإشعاع الشمسي في المنطقة؟ (كيلوواط ساعة / كيلو واط ذروة - قيمة PVOUT)"]
[null,null,"What are the average monthly temperature and precipitation values in","What are the average monthly temperature and precipitation values in","Quelles sont les valeurs mensuelles moyennes des températures et des précipitations en","¿Cuáles son los valores promedio mensuales de temperatura y precipitación en","ما هي متوسط درجات الحرارة الشهرية وقيم هطول الأمطار في"]
[null,null,{"$f":"HLOOKUP($C$6,$D$6:$I$701,ROW()-ROW($B$5),FALSE)","v":"?"},"?","?","?","؟"]
[null,null,"Monthly average temperature (°C)","Monthly average temperature (°C)","Températures moyennes mensuelles (°C)","Temperatura promedio mensual (°C)","المتوسط الشهري لدرجة الحرارة (درجة مئوية)"]
[null,null,"Monthly average precipitation (mm)","Monthly average precipitation (mm)","Précipitations moyennes mensuelles (mm)","Precipitación media mensual (mm)","متوسط هطول الأمطار الشهري (مم)"]
[null,null,"Aridity Index (Harouna & Carlson 1994)","Aridity Index (Harouna & Carlson 1994)","Indice d'aridité (Harouna & Carlson 1994)","Índice de aridez (Harouna & Carlson 1994)","مؤشر الجفاف (Harouna & Carlson 1994)"]
[null,null,"Jan","Jan","janv.","enero","يناير"]
[null,null,"Feb","Feb","févr.","feb.","فبراير"]
[null,null,"Mar","Mar","mars","marzo","مارس"]
[null,null,"Apr","Apr","avril","abr.","أبريل"]
[null,null,"May","May","mai","mayo","مايو"]
[null,null,"Jun","Jun","juin","jun.","يونيو"]
[null,null,"Jul","Jul","juil.","jul.","يوليو"]
[null,null,"Aug","Aug","août","agosto","أغسطس"]
[null,null,"Sep","Sep","sept.","sept.","سبتمبر"]
[null,null,"Oct","Oct","oct.","oct.","أكتوبر"]
[null,null,"Nov","Nov","nov.","nov.","نوفمبر"]
[null,null,"Dec","Dec","déc.","dic.","ديسمبر"]
[null,null,"Global Land Cover","Global Land Cover","Couverture terrestre mondiale","Cobertura terrestre global","الغطاء الأرضي العالمي"]
[null,null,"Global Solar Atlas","Global Solar Atlas","Atlas solaire mondial","Atlas solar global","أطلس الطاقة الشمسية العالمي"]
[null,null,"AQUASTAT - Climate Information Tool","AQUASTAT - Climate Information Tool","AQUASTAT - Outil d'information sur le climat","AQUASTAT - Herramienta de información climática","أداة معلومات المناخ - AQUASTAT  "]
[null,"From \"List 2\" worksheet","Select the country of Interest","Select the country of Interest","Sélectionnez le pays d'intérêt","Seleccione el país de interés","اختر الدولة"]
[null,null,"Afghanistan","Afghanistan","Afghanistan","Afganistán ","أفغانستان"]
[null,null,"Albania","Albania","Albanie ","Albania","ألبانيا"]
[null,null,"Algeria","Algeria","Algérie ","Argelia","الجزائر"]
[null,null,"Andorra","Andorra","Andorre ","Andorra","أندورا"]
[null,null,"Angola","Angola","Angola ","Angola","أنغولا"]
[null,null,"Antigua and Barbuda","Antigua and Barbuda","Antigua-et-Barbuda","Antigua y Barbuda","أنتيغوا وبربودا"]
[null,null,"Argentina","Argentina","Argentine ","Argentina ","الأرجنتين"]
[null,null,"Armenia","Armenia","Arménie ","Armenia","أرمينيا"]
[null,null,"Australia","Australia","Australie ","Australia","أستراليا"]
[null,null,"Austria","Austria","Autriche ","Austria","النمسا"]
[null,null,"Azerbaijan","Azerbaijan","Azerbaïdjan ","Azerbaiyán","أذربيجان"]
[null,null,"Bahamas ","Bahamas ","Bahamas ","Bahamas ","جزر البهاما"]
[null,null,"Bahrain","Bahrain","Bahreïn","Bahrein","البحرين"]
[null,null,"Bangladesh","Bangladesh","Bangladesh ","Bangladesh","بنغلاديش"]
[null,null,"Barbados","Barbados","Barbade ","Barbados","بربادوس"]
[null,null,"Belarus","Belarus","Bélarus ","Belarús","بيلاروس"]
[null,null,"Belgium","Belgium","Belgique ","Bélgica","بلجيكا"]
[null,null,"Belize","Belize","Belize ","Belice","بليز"]
[null,null,"Benin","Benin","Bénin ","Benin","بنن"]
[null,null,"Bhutan","Bhutan","Bhoutan ","Bhután","بوتان"]
[null,null,"Bolivia ","Bolivia ","Bolivie ","Bolivia ","بوليفيا "]
[null,null,"Bosnia and Herzegovina","Bosnia and Herzegovina","Bosnie-Herzégovine ","Bosnia y Herzegovina","البوسنة والهرسك"]
[null,null,"Botswana","Botswana","Botswana ","Botswana","بوتسوانا"]
[null,null,"Brazil","Brazil","Brésil ","Brasil ","البرازيل"]
[null,null,"Brunei Darussalam","Brunei Darussalam","Brunéi Darussalam ","Brunei Darussalam","بروني دار السلام"]
[null,null,"Bulgaria","Bulgaria","Bulgarie ","Bulgaria","بلغاريا"]
[null,null,"Burkina Faso","Burkina Faso","Burkina Faso ","Burkina Faso","بوركينا فاسو"]
[null,null,"Burundi","Burundi","Burundi ","Burundi","بوروندي"]
[null,null,"Cabo Verde","Cabo Verde","Cabo Verde","Cabo Verde","كابو فيردي"]
[null,null,"Cambodia","Cambodia","Cambodge ","Camboya","كمبوديا"]
[null,null,"Cameroon","Cameroon","Cameroun ","Camerún ","الكاميرون"]
[null,null,"Canada","Canada","Canada ","Canadá ","كندا"]
[null,null,"Central African Republic ","Central African Republic ","République centrafricaine ","República Centroafricana ","جمهورية أفريقيا الوسطى"]
[null,null,"Chad","Chad","Tchad ","Chad ","تشاد"]
[null,null,"Chile","Chile","Chili ","Chile","شيلي"]
[null,null,"China","China","Chine ","China","الصين"]
[null,null,"Colombia","Colombia","Colombie ","Colombia","كولومبيا"]
[null,null,"Comoros ","Comoros ","Comores ","Comoras ","جزر القمر"]
[null,null,"Congo ","Congo ","Congo ","Congo ","الكونغو"]
[null,null,"Cook Islands ","Cook Islands ","Îles Cook ","Islas Cook ","جزر كوك"]
[null,null,"Costa Rica","Costa Rica","Costa Rica ","Costa Rica","كوستاريكا"]
[null,null,"Côte d'Ivoire","Côte d'Ivoire","Côte d'Ivoire ","Côte d’Ivoire","كوت ديفوار"]
[null,null,"Croatia","Croatia","Croatie ","Croacia","كرواتيا"]
[null,null,"Cuba","Cuba","Cuba","Cuba","كوبا"]
[null,null,{"$f":"HLOOKUP($C$6,$D$6:$I$701,ROW()-ROW($B$5),FALSE)","v":"Cyprus"},"Cyprus","Chypre","Chipre","قبرص"]
[null,null,"Czechia","Czechia","Tchéquie ","Chequia","تشيكيا"]
[null,null,"Democratic People's Republic of Korea ","Democratic People's Republic of Korea ","République populaire démocratique de Corée ","República Popular Democrática de Corea ","جمهورية كوريا الشعبية الديمقراطية"]
[null,null,"Democratic Republic of the Congo ","Democratic Republic of the Congo ","République démocratique du Congo ","República Democrática del Congo ","جمهورية الكونغو الديمقراطية"]
[null,null,"Denmark","Denmark","Danemark ","Dinamarca","الدانمرك"]
[null,null,"Djibouti","Djibouti","Djibouti","Djibouti","جيبوتي"]
[null,null,"Dominica","Dominica","Dominique ","Dominica","دومينيكا"]
[null,null,"Dominican Republic ","Dominican Republic ","République dominicaine ","República Dominicana ","الجمهورية الدومينيكية"]
[null,null,"Ecuador","Ecuador","Équateur ","Ecuador ","إكوادور"]
[null,null,"Egypt","Egypt","Égypte ","Egipto","مصر"]
[null,null,"El Salvador","El Salvador","El Salvador","El Salvador","السلفادور"]
[null,null,"Equatorial Guinea","Equatorial Guinea","Guinée équatoriale ","Guinea Ecuatorial","غينيا الاستوائية"]
[null,null,"Eritrea","Eritrea","Érythrée ","Eritrea","إريتريا"]
[null,null,"Estonia","Estonia","Estonie ","Estonia","إستونيا"]
[null,null,"Eswatini","Eswatini","Eswatini ","Eswatini","إسواتيني"]
[null,null,"Ethiopia","Ethiopia","Éthiopie ","Etiopía","إثيوبيا"]
[null,null,"Fiji","Fiji","Fidji ","Fiji","فيجي"]
[null,null,"Finland","Finland","Finlande ","Finlandia","فنلندا"]
[null,null,"France","France","France ","Francia","فرنسا"]
[null,null,"Gabon","Gabon","Gabon ","Gabón ","غابون"]
[null,null,"Gambia ","Gambia ","Gambie ","Gambia","غامبيا"]
[null,null,"Georgia","Georgia","Géorgie ","Georgia","جورجيا"]
[null,null,"Germany","Germany","Allemagne ","Alemania","ألمانيا"]
[null,null,"Ghana","Ghana","Ghana ","Ghana","غانا"]
[null,null,"Greece","Greece","Grèce ","Grecia","اليونان"]
[null,null,"Grenada","Grenada","Grenade ","Granada","غرينادا"]
[null,null,"Guatemala","Guatemala","Guatemala ","Guatemala","غواتيمالا"]
[null,null,"Guinea","Guinea","Guinée ","Guinea","غينيا"]
[null,null,"Guinea-Bissau","Guinea-Bissau","Guinée-Bissau ","Guinea-Bissau","غينيا - بيساو"]
[null,null,"Guyana","Guyana","Guyana ","Guyana","غيانا"]
[null,null,"Haiti","Haiti","Haïti","Haití","هايتي"]
[null,null,"Honduras","Honduras","Honduras ","Honduras","هندوراس"]
[null,null,"Hungary","Hungary","Hongrie ","Hungría","هنغاريا"]
[null,null,"Iceland","Iceland","Islande ","Islandia","آيسلندا"]
[null,null,"India","India","Inde ","India ","الهند"]
[null,null,"Indonesia","Indonesia","Indonésie ","Indonesia","إندونيسيا"]
[null,null,"Iran ","Iran ","Iran ","Irán ","إيران "]
[null,null,"Iraq","Iraq","Iraq ","Iraq ","العراق"]
[null,null,"Ireland","Ireland","Irlande ","Irlanda","أيرلندا"]
[null,null,"Israel","Israel","Israël","Israel","إسرائيل"]
[null,null,"Italy","Italy","Italie ","Italia","إيطاليا"]
[null,null,"Jamaica","Jamaica","Jamaïque ","Jamaica","جامايكا"]
[null,null,"Japan","Japan","Japon ","Japón ","اليابان"]
[null,null,"Jordan","Jordan","Jordanie ","Jordania","الأردن"]
[null,null,"Kazakhstan","Kazakhstan","Kazakhstan ","Kazajstán","كازاخستان"]
[null,null,"Kenya","Kenya","Kenya ","Kenya","كينيا"]
[null,null,"Kiribati","Kiribati","Kiribati","Kiribati","كيريباس"]
[null,null,"Kuwait","Kuwait","Koweït ","Kuwait","الكويت"]
[null,null,"Kyrgyzstan","Kyrgyzstan","Kirghizistan ","Kirguistán","قيرغيزستان"]
[null,null,"Lao People's Democratic Republic ","Lao People's Democratic Republic ","République démocratique populaire lao ","República Democrática Popular Lao ","جمهورية لاو الديمقراطية الشعبية"]
[null,null,"Latvia","Latvia","Lettonie ","Letonia","لاتفيا"]
[null,null,"Lebanon","Lebanon","Liban ","Líbano ","لبنان"]
[null,null,"Lesotho","Lesotho","Lesotho ","Lesotho","ليسوتو"]
[null,null,"Liberia","Liberia","Libéria ","Liberia","ليبريا"]
[null,null,"Libya","Libya","Libye ","Libia","ليبيا"]
[null,null,"Liechtenstein","Liechtenstein","Liechtenstein ","Liechtenstein","ليختنشتاين"]
[null,null,"Lithuania","Lithuania","Lituanie ","Lituania","ليتوانيا"]
[null,null,"Luxembourg","Luxembourg","Luxembourg ","Luxemburgo","لكسمبرغ"]
[null,null,"Madagascar","Madagascar","Madagascar","Madagascar","مدغشقر"]
[null,null,"Malawi","Malawi","Malawi ","Malawi","ملاوي"]
[null,null,"Malaysia","Malaysia","Malaisie ","Malasia","ماليزيا"]
[null,null,"Maldives","Maldives","Maldives ","Maldivas","ملديف"]
[null,null,"Mali","Mali","Mali ","Malí","مالي"]
[null,null,"Malta","Malta","Malte","Malta","مالطة"]
[null,null,{"$f":"HLOOKUP($C$6,$D$6:$I$701,ROW()-ROW($B$5),FALSE)","v":"Marshall Islands "},"Marshall Islands ","Îles Marshall ","Islas Marshall ","جزر مارشال"]
[null,null,"Mauritania","Mauritania","Mauritanie ","Mauritania","موريتانيا"]
[null,null,"Mauritius","Mauritius","Maurice","Mauricio","موريشيوس"]
[null,null,"Mexico","Mexico","Mexique ","México","المكسيك"]
[null,null,"Micronesia ","Micronesia ","Micronésie ","Micronesia ","ميكرونيزيا "]
[null,null,"Monaco","Monaco","Monaco","Mónaco","موناكو"]
[null,null,"Mongolia","Mongolia","Mongolie ","Mongolia","منغوليا"]
[null,null,"Montenegro","Montenegro","Monténégro ","Montenegro","الجبل الأسود"]
[null,null,"Morocco","Morocco","Maroc ","Marruecos","المغرب"]
[null,null,"Mozambique","Mozambique","Mozambique ","Mozambique","موزامبيق"]
[null,null,"Myanmar","Myanmar","Myanmar ","Myanmar","ميانمار"]
[null,null,"Namibia","Namibia","Namibie ","Namibia","ناميبيا"]
[null,null,"Nauru","Nauru","Nauru","Nauru","ناورو"]
[null,null,"Nepal","Nepal","Népal ","Nepal","نيبال"]
[null,null,"Netherlands ","Netherlands ","Pays-Bas ","Países Bajos ","هولندا"]
[null,null,"New Zealand","New Zealand","Nouvelle-Zélande ","Nueva Zelandia","نيوزيلندا"]
[null,null,"Nicaragua","Nicaragua","Nicaragua ","Nicaragua","نيكاراغوا"]
[null,null,"Niger ","Niger ","Niger ","Níger ","النيجر"]
[null,null,"Nigeria","Nigeria","Nigéria ","Nigeria","نيجيريا"]
[null,null,"North Macedonia","North Macedonia","Macédoine du Nord ","Macedonia del Norte","مقدونيا الشمالية"]
[null,null,"Norway","Norway","Norvège ","Noruega","النرويج"]
[null,null,"Oman","Oman","Oman","Omán","عمان"]
[null,null,"Pakistan","Pakistan","Pakistan ","Pakistán ","باكستان"]
[null,null,"Palau","Palau","Palaos ","Palau","بالاو"]
[null,null,"Palestine","Palestine","Palestine","Palestina","فلسطين"]
[null,null,"Panama","Panama","Panama ","Panamá","بنما"]
[null,null,"Papua New Guinea","Papua New Guinea","Papouasie-Nouvelle-Guinée ","Papua Nueva Guinea","بابوا غينيا الجديدة"]
[null,null,"Paraguay","Paraguay","Paraguay ","Paraguay ","باراغواي"]
[null,null,"Peru","Peru","Pérou ","Perú ","بيرو"]
[null,null,"Philippines ","Philippines ","Philippines ","Filipinas","الفلبين"]
[null,null,"Poland","Poland","Pologne ","Polonia","بولندا"]
[null,null,"Portugal","Portugal","Portugal ","Portugal","البرتغال"]
[null,null,"Qatar","Qatar","Qatar ","Qatar","قطر"]
[null,null,"Republic of Korea ","Republic of Korea ","République de Corée ","República de Corea ","جمهورية كوريا"]
[null,null,"Republic of Moldova ","Republic of Moldova ","République de Moldova ","República de Moldova ","جمهورية مولدوفا"]
[null,null,"Romania","Romania","Roumanie ","Rumania","رومانيا"]
[null,null,"Russian Federation ","Russian Federation ","Fédération de Russie ","Federación de Rusia ","الاتحاد الروسي"]
[null,null,"Rwanda","Rwanda","Rwanda ","Rwanda","رواندا"]
[null,null,"Saint Kitts and Nevis","Saint Kitts and Nevis","Saint-Kitts-et-Nevis","Saint Kitts y Nevis","سانت كيتس ونيفس"]
[null,null,"Saint Lucia","Saint Lucia","Sainte-Lucie","Santa Lucía","سانت لوسيا"]
[null,null,"Saint Vincent and the Grenadines","Saint Vincent and the Grenadines","Saint-Vincent-et-les Grenadines","San Vicente y las Granadinas","سانت فنسنت وجزر غرينادين"]
[null,null,"Samoa","Samoa","Samoa ","Samoa","ساموا"]
[null,null,"San Marino","San Marino","Saint-Marin","San Marino","سان مارينو"]
[null,null,"Sao Tome and Principe","Sao Tome and Principe","Sao Tomé-et-Principe","Santo Tomé y Príncipe","سان تومي وبرينسيبي"]
[null,null,"Saudi Arabia","Saudi Arabia","Arabie saoudite ","Arabia Saudita ","المملكة العربية السعودية"]
[null,null,"Senegal","Senegal","Sénégal ","Senegal ","السنغال"]
[null,null,"Serbia","Serbia","Serbie ","Serbia","صربيا"]
[null,null,"Seychelles","Seychelles","Seychelles ","Seychelles","سيشيل"]
[null,null,"Sierra Leone","Sierra Leone","Sierra Leone ","Sierra Leona","سيراليون"]
[null,null,"Singapore","Singapore","Singapour","Singapur","سنغافورة"]
[null,null,"Slovakia","Slovakia","Slovaquie ","Eslovaquia","سلوفاكيا"]
[null,null,"Slovenia","Slovenia","Slovénie ","Eslovenia","سلوفينيا"]
[null,null,"Solomon Islands","Solomon Islands","Îles Salomon ","Islas Salomón ","جزر سليمان"]
[null,null,"Somalia","Somalia","Somalie ","Somalia","الصومال"]
[null,null,"South Africa","South Africa","Afrique du Sud ","Sudáfrica","جنوب أفريقيا"]
[null,null,"South Sudan","South Sudan","Soudan du Sud ","Sudán del Sur","جنوب السودان"]
[null,null,"Spain","Spain","Espagne ","España","إسبانيا"]
[null,null,"Sri Lanka","Sri Lanka","Sri Lanka","Sri Lanka","سري لانكا"]
[null,null,"Sudan ","Sudan ","Soudan ","Sudán ","السودان"]
[null,null,"Suriname","Suriname","Suriname ","Suriname","سورينام"]
[null,null,"Sweden","Sweden","Suède ","Suecia","السويد"]
[null,null,"Switzerland","Switzerland","Suisse ","Suiza","سويسرا"]
[null,null,"Syria","Syria","Syrie ","Siria ","سورية"]
[null,null,"Tajikistan","Tajikistan","Tadjikistan ","Tayikistán","طاجيكستان"]
[null,null,{"$f":"HLOOKUP($C$6,$D$6:$I$701,ROW()-ROW($B$5),FALSE)","v":"Tanzania "},"Tanzania ","Tanzanie ","Tanzanía ","تنزانيا"]
[null,null,"Thailand","Thailand","Thaïlande ","Tailandia","تايلند"]
[null,null,"Timor-Leste","Timor-Leste","Timor-Leste ","Timor-Leste","تيمور- ليشتي"]
[null,null,"Togo","Togo","Togo ","Togo ","توغو"]
[null,null,"Tonga","Tonga","Tonga ","Tonga","تونغا"]
[null,null,"Trinidad and Tobago","Trinidad and Tobago","Trinité-et-Tobago ","Trinidad y Tabago","ترينيداد وتوباغو"]
[null,null,"Tunisia","Tunisia","Tunisie ","Túnez","تونس"]
[null,null,"Turkey","Turkey","Turquie ","Turquía","تركيا"]
[null,null,"Turkmenistan","Turkmenistan","Turkménistan ","Turkmenistán","تركمانستان"]
[null,null,"Tuvalu","Tuvalu","Tuvalu ","Tuvalu","توفالو"]
[null,null,"Uganda","Uganda","Ouganda ","Uganda","أوغندا"]
[null,null,"Ukraine","Ukraine","Ukraine ","Ucrania","أوكرانيا"]
[null,null,"United Arab Emirates ","United Arab Emirates ","Émirats arabes unis ","Emiratos Árabes Unidos ","الإمارات العربية المتحدة"]
[null,null,"United Kingdom","United Kingdom","Royaume-Uni","Reino Unido","المملكة المتحدة"]
[null,null,"United States of America ","United States of America ","États-Unis d'Amérique ","Estados Unidos de América ","الولايات المتحدة الأمريكية"]
[null,null,"Uruguay","Uruguay","Uruguay ","Uruguay ","أوروغواي"]
[null,null,"Uzbekistan","Uzbekistan","Ouzbékistan ","Uzbekistán","أوزبكستان"]
[null,null,"Vanuatu","Vanuatu","Vanuatu","Vanuatu","فانواتو"]
[null,null,"Venezuela ","Venezuela ","Venezuela ","Venezuela ","فنزويلا "]
[null,null,"Viet Nam","Viet Nam","Viet Nam ","Viet Nam","فييت نام"]
[null,null,"Yemen","Yemen","Yémen ","Yemen ","اليمن"]
[null,null,"Zambia","Zambia","Zambie ","Zambia","زامبيا"]
[null,null,"Zimbabwe","Zimbabwe","Zimbabwe ","Zimbabwe","زمبابوي"]
[null,null,"Land cover/land use is seen to be the pre-requisite parameter before evaluation of other geophysical parameters because it helps determine feasible locations for agriculture for which other parameters may be considered.","Land cover/land use is seen to be the pre-requisite parameter before evaluation of other geophysical parameters because it helps determine feasible locations for agriculture for which other parameters may be considered.","La couverture/l'utilisation des terres est considérée comme le paramètre prérequis avant l'évaluation d'autres paramètres géophysiques, car elle aide à déterminer les emplacements possibles pour l'agriculture, pour lesquels d'autres paramètres peuvent être pris en compte.","Se considera que el uso de la tierra/cobertura de tierra es el parámetro previo a la evaluación de otros parámetros geofísicos porque ayuda a determinar lugares factibles para la agricultura para los cuales se pueden considerar otros parámetros.","يُنظر إلى الغطاء الأرضي / استخدام الأراضي على أنه المعلمة المطلوبة مسبقًا قبل تقييم المعلمات الجيوفيزيائية الأخرى لأنه يساعد في تحديد المواقع الممكنة للزراعة ، والذي عن طريقه يمكن النظر في معايير أخرى."]
[null,null,"Cropland, rainfed","Cropland, rainfed","Terres cultivées, pluviales","Tierras de cultivo, secano","أراضي زراعية بعلية"]
[null,null,"Cropland irrigated or post-flooding","Cropland irrigated or post-flooding","Terres cultivées irriguées ou post-inondation","Tierras de cultivo irrigadas o posteriores a las inundaciones","أراضي زراعية مروية أو ما بعد الفيضانات"]
[null,null,"Mosaic crop land with natural vegetation","Mosaic crop land with natural vegetation","Terres cultivées en mosaïque avec végétation naturelle","Tierra de cultivos de mosaico con vegetación natural","أراضي زراعية ذات نباتات طبيعية (غطاء نباتي طبيعي)"]
[null,null,"Light forest open (tree cover up to 40%)","Light forest open (tree cover up to 40%)","Forêt claire ouverte (couverture arborée jusqu'à 40%)","Bosque claro (cobertura de árboles hasta 40%)","غابة غير كثيفة مفتوحة (غطاء شجري يصل إلى 40٪)"]
[null,null,"Medium forest open to closed (tree cover above 40%)","Medium forest open to closed (tree cover above 40%)","Forêt moyenne ouverte à fermée (couverture arborée supérieure à 40%)","Bosque medio abierto a cerrado (cobertura arbórea por encima de 40%)","غابة متوسطة الكثافة مفتوحة إلى مغلقة (غطاء شجري أعلى من 40٪)"]
[null,null,"Dense forest closed (tree cover above 40%)","Dense forest closed (tree cover above 40%)","Forêt dense fermée (couverture arborée supérieure à 40%)","Bosque denso (cobertura arbórea superior al 40%)","غابة كثيفة مغلقة (غطاء شجري أعلى من 40٪)"]
[null,null,"Shrubland","Shrubland","Arbustes ","Matorral","أراضي الشجيرات"]
[null,null,"Grassland","Grassland","Pâturage","Pradera","أراضي عشبية"]
[null,null,"Lichens and mosses","Lichens and mosses","Lichens et mousses","Líquenes y musgos","أشنات ونباتات حزازية"]
[null,null,"Semi arid sparse vegetation","Semi arid sparse vegetation","Végétation clairsemée semi-aride","Vegetación escasa semi-árida ","أراضي شبه قاحلة مع نباتات متفرقة "]
[null,null,"Flood plains fresh water","Flood plains fresh water","Plaine d'inondation eau douce ","Terreno inundable agua dulce","سهول فيضية مع مياه عذبة"]
[null,null,"Flood plains brackish water","Flood plains brackish water","Plaine d'inondation eau saumâtre","Terreno inundable agua salobre","سهول فيضية مع مياه قليلة الملوحة"]
[null,null,"Urban areas","Urban areas","Zones urbaines","Áreas urbanas ","مناطق حضرية"]
[null,null,"Bare areas (sand dunes, gravel plains, etc)","Bare areas (sand dunes, gravel plains, etc)","Zones dénudées (dunes de sable, plaines de gravier, etc.)","Áreas sin vegetación (dunas de arena, llanuras de grava, etc.) ","مناطق جرداء (كثبان رملية ، سهول حصوية ، إلخ)"]
[null,null,"Water bodies","Water bodies","Plans d'eau","Cuerpos de agua","اجسام مائية"]
[null,null,"Permanent snow and ice","Permanent snow and ice","Neige et glace permanentes","Nieve y hielo permanentes","الثلج والجليد الدائم"]
[null,null,"Solar irradiance: Refers to the amount of power incident per unit area on the earth's surface in units of watts per square meter. The value required for this input is the Global horizontal irradiance (GHI) which is the sum of direct (DNI) and diffuse (DHI) solar radiation.","Solar irradiance: Refers to the amount of power incident per unit area on the earth's surface in units of watts per square meter. The value required for this input is the Global horizontal irradiance (GHI) which is the sum of direct (DNI) and diffuse (DHI) solar radiation.","Irradiation solaire: Fait référence à la mesure de densité de puissance, appelée l'éclairement énergétique/irradiance, exprimé en watts par mètre carré (W/m²). La valeur requise pour cette entrée est l'irradiance horizontale globale (GHI) qui est la somme du rayonnement solaire direct (DNI) et diffus (DHI).","Irradiación solar: Se refiere a la cantidad de energía incidente por unidad de área en la superficie de la tierra en unidad de vatios por metro cuadrado. El valor requerido es la irradiancia horizontal global (GHI), que es la suma de la radiación solar directa (DNI) y difusa (DHI).","الإشعاع الشمسي: يشير إلى مقدار الأشعة الشمسية الساقطة على مساحةٍ معينة على سطح الأرض (واط / متر مربع). القيمة المطلوبة لهذا الإدخال هي الإشعاع الأفقي العالمي (GHI) وهو مجموع الإشعاع الشمسي الأفقي المباشر (DNI) و الإشعاع الشمسي الأفقي المنتشر (DHI)."]
[null,null,"Highly Suitable","Highly Suitable","Très apte","Muy adecuado","مناسب للغاية"]
[null,null,"Moderately Suitable","Moderately Suitable","Moyennement apte ","Moderadamente adecuado","مستقر إلى حد ما"]
[null,null,"Marginally Suitable","Marginally Suitable","Peu apte","Marginalmente adecuado","مناسب بشكل هامشي"]
[null,null,"Not Suitable","Not Suitable","Non apte","No adecuado","غير مناسب"]
[null,null,"Above 1460","Above 1460","Au-dessus de 1460","Por encima de 1460","فوق 1460"]
[null,null,"Low Irrigation Requirement","Low Irrigation Requirement","Faible besoin d'irrigation","Requisito de riego bajo","متطلبات الري منخفضة"]
[null,null,"Amount of arid months:","Amount of arid months:","Nombre de mois arides :","Cantidad de meses áridos:","عدد الأشهر الجافة:"]
[null,null,"Critical Geophysical Parameters NOT IDEAL for SPIS","Critical Geophysical Parameters NOT IDEAL for SPIS","Paramètres géophysiques critiques NON IDÉAUX pour SPIS","Parámetros geofísicos críticos - NO IDEAL para SPIS","المعلمات الجيوفيزيائية الحاسِمة ليست مثالية لـ SPIS"]
[null,null,"Proceed to \"INPUT_Weight Setting\"","Proceed to \"INPUT_Weight Setting\"","Se reporter à \"INTRANT_Facteurs de pondération\"","Proceda a \"ENTRADA_Ajuste de Valoración\"","تابع إلى \"المدخلات_تحديد الأهمية\""]
[null,null,"SPIS Suitability Scale","SPIS Suitability Scale","Echelle d'aptitude d'un SPIS","Escala de aptitud de SPIS","مقياس الملاءمة SPIS"]
[null,null,"Parameter","Parameter","Paramètre","Parámetro","المَعْلمة"]
[null,null,"Land Cover","Land Cover","Occupation des sols","Cobertura Terrestre","الغطاء الأرضي"]
[null,null,"Solar Irradiation","Solar Irradiation","Irradiation solaire","Irradiación solar","الإشعاع الشمسي"]
[null,null,"Precipitation","Precipitation","Précipitations","Precipitación","الأمطار"]
[null,null,"Score","Score","Score","Puntaje","نتيجة"]
[null,null,"Raw Score","Raw Score","Score brut","Puntaje crudo","نتيجة صافية "]
[null,null,"Tavg","Tavg","Tmoy","Tmed","متوسط درجة الحرارة"]
[null,null,"Pavg","Pavg","Pmoy","Pmed","معدل الأمطار"]
[]
[null,{"$f":"$C$9","v":"INPUT_Weight setting"},"INPUT - Weight setting","INPUT - Weight setting","INTRANT - Facteurs de pondération","ENTRADA - Ajuste de valoración","المدخلات - تحديد الأهمية"]
[null,null,"Geophysical  Parameters:","Geophysical  Parameters:","Paramètres géophysiques :","Parámetros Geofísicos:","المعلمات الجيوفيزيائية:"]
[null,null,"Non-critical Geophysical Parameters","Non-critical Geophysical Parameters","Paramètres géophysiques non critiques","Parámetros Geofísicos no críticos","المعلمات الجيوفيزيائية الغير حاسِمة"]
[null,null,"Additional parameters that are key to the market assessment for SPIS. These do not affect the general viability of SPIS; they affect the success of SPIS adoption in a region as per prevailing geophysical conditions (e.g. groundwater table, frost occurrence, topography, agricultural production farming system, etc.). ","Additional parameters that are key to the market assessment for SPIS. These do not affect the general viability of SPIS; they affect the success of SPIS adoption in a region as per prevailing geophysical conditions (e.g. groundwater table, frost occurrence, topography, agricultural production farming system, etc.). ","Paramètres complémentaires essentiels à l’évaluation du marché d’un SPIS. Ils n’affectent pas la viabilité générale d’un SPIS mais le succès de son adoption dans une région en fonction des conditions géophysiques dominantes (par ex. nappe phréatique, présence de gel, topographie, système de production agricole, etc.).","Parámetros adicionales que son clave para la evaluación del mercado para SPIS. Estos no afectan la viabilidad general de SPIS; afectan el éxito de la adopción de SPIS en una región según las condiciones geofísicas prevalecientes (por ejemplo, nivel freático, presencia de heladas, topografía, sistema agrícola de producción agrícola, etc.).","المعلمات الإضافية التي تعتبر أساسية لتقييم السوق لـ SPIS. هذه لا تؤثر على الجدوى العام لنظام SPIS ؛ تؤثر على نجاح اعتماد SPIS في منطقة ما وفقًا للظروف الجيوفيزيائية السائدة (مثل منسوب المياه الجوفية ، حدوث الصقيع ، التضاريس ، ونظام الإنتاج الزراعي ، وما إلى ذلك)."]
[null,null,{"$f":"HLOOKUP($C$6,$D$6:$I$701,ROW()-ROW($B$5),FALSE)","v":"Business Conditions:"},"Business Conditions:","Conditions économiques :","Condiciones económicas:","الظروف الاقتصادية:"]
[null,null,"1. Government Interventions","1. Government Interventions","1. Action gouvernementale","1. Intervenciones del gobierno","1. عمل الحكومة"]
[null,null,"Evaluation of government interventions as a business environment parameter for SPIS, looking at policies, rules, and regulations that govern the irrigation and solar sectors. ","Evaluation of government interventions as a business environment parameter for SPIS, looking at policies, rules, and regulations that govern the irrigation and solar sectors. ","Évaluation de l'action gouvernementale en tant que paramètre de l’environnement économique d’un SPIS, en consultant les politiques, les règles et les régulations qui régissent les secteurs solaires et ceux de l’irrigation.","Evaluación de las intervenciones del gobierno como un parámetro del entorno empresarial para SPIS, analizando las políticas, normas y reglamentos que gobiernan los sectores del riego y la energía solar.","تقييم العمل الحكومي كمعيار للبيئة الاقتصادية لنظام SPIS ، من خلال استشارة السياسات والقواعد واللوائح التي تحكم قطاعي الطاقة الشمسية والري"]
[null,null,"2. Development Organizations Interventions","2. Development Organizations Interventions","2. Action des organismes de développement","2. Intervenciones de organizaciones de desarrollo","2. عمل منظمات التنمية"]
[null,null,"This section evaluates interventions by development organizations that can present a significant influence on the adoption of SPIS within a country or region. ","This section evaluates interventions by development organizations that can present a significant influence on the adoption of SPIS within a country or region. ","Cette section évalue l'action des organismes de développement susceptibles d’avoir une influence significative sur l’adoption de SPIS dans un pays ou une région.","Esta sección evalúa las intervenciones de las organizaciones de desarrollo que pueden influir de manera significativa en la adopción de SPIS dentro de un país o región.","يقيم هذا القسم عمل وكالات التنمية التي قد يكون لها تأثير كبير على اعتماد SPIS في بلد أو منطقة."]
[null,null,"3. Financing","3. Financing","3. Financement","3. Financiación","3. التمويل"]
[null,null,"The parameter looks at the ability of end-users to meet the high capital cost for SPIS including financial support from  the government, development agencies, and private sector.","The parameter looks at the ability of end-users to meet the high capital cost for SPIS including financial support from  the government, development agencies, and private sector.","Ce paramètre examine la capacité des utilisateurs finaux à faire face aux coûts d’investissement élevés d’un SPIS ainsi que les subventions du gouvernement, des agences de développement et du secteur privé","El parámetro analiza la capacidad de los usuarios finales para cubrir el alto costo de capital de SPIS, incluyendo el apoyo financiero del gobierno, las agencias de desarrollo y el sector privado.","تبحث هذه المعلمة في قدرة المستخدمين النهائيين على تلبية تكاليف الاستثمار المرتفعة لنظام SPIS بالإضافة إلى الإعانات المقدمة من الحكومة ووكالات التنمية والقطاع الخاص."]
[null,null,"4. Availability and Cost of Alternatives","4. Availability and Cost of Alternatives","4. Disponibilité et coûts des énergies non solaires","4. Disponibilidad y Costo de Alternativas","4. توافر وتكاليف الطاقات غير الشمسية"]
[null,null,"Criterion considers the availability and cost of competing sources of power for irrigation systems. ","Criterion considers the availability and cost of competing sources of power for irrigation systems. ","Ce critère examine l’existence de sources d’énergie concurrentielles pour les systèmes d’irrigation et leur coût.","Considera la disponibilidad y el costo de las fuentes de energía competidoras para los sistemas de riego.","يفحص هذا المعيار وجود مصادر طاقة تنافسية لأنظمة الري وتكلفتها."]
[null,null,"5. Technical Capacity","5. Technical Capacity","5. Capacité technique","5. Capacidad Técnica","5. القدرة التقنية"]
[null,null,"This section evaluates the in-country capacity of personnel to design,  implement and maintain SPIS systems.","This section evaluates the in-country capacity of personnel to design,  implement and maintain SPIS systems.","Cette section évalue les compétences du personnel des pays dans la conception, la mise en œuvre et l'entretien des SPIS.","Esta sección evalúa la capacidad del personal en el país para diseñar, implementar y mantener sistemas SPIS.","يقوم هذا القسم بتقييم مهارات موظفي الدولة في تصميم أنظمة SPIS وتنفيذها وصيانتها."]
[null,null,"6. Awareness of SPIS Technologies","6. Awareness of SPIS Technologies","6. Sensibilisation aux technologies des SPIS","6. Conocimiento de las Tecnologías SPIS","6. الوعي بتقنيات الري بالطاقة الشمسية"]
[null,null,"Parameter assesses the general awareness of solar technologies such as solar lighting and heating systems, and irrigation systems such as pumps in the country.","Parameter assesses the general awareness of solar technologies such as solar lighting and heating systems, and irrigation systems such as pumps in the country.","Ce paramètre évalue la sensibilisation générale de la population du pays concerné aux technologies solaires telles que l’éclairage et le chauffage solaires et aux systèmes d’irrigation à énergie solaire tels que les pompes solaires.","Evalúa la conciencia general de las tecnologías solares en el país, como la iluminación solar y los sistemas de calefacción, y los sistemas de riego (bombas solares).","يقيم هذا المقياس الوعي العام لسكان البلد المعني بتقنيات الطاقة الشمسية مثل الإضاءة والتدفئة بالطاقة الشمسية وأنظمة الري التي تعمل بالطاقة الشمسية مثل المضخات الشمسية."]
[null,null,"7. Significance of Agriculture to Local Economy","7. Significance of Agriculture to Local Economy","7. Part de l’agriculture dans l’économie locale","7. Importancia de la Agricultura para la Economía Local","7. حصة الزراعة في الاقتصاد المحلي"]
[null,null,"This section evaluates the importance of agriculture to the target area's economy by assessing its contribution to GDP and employment along with the proportion of arable land used for agriculture.","This section evaluates the importance of agriculture to the target area's economy by assessing its contribution to GDP and employment along with the proportion of arable land used for agriculture.","Cette section évalue l’importance de l’agriculture pour l’économie de la région cible en évaluant sa contribution au PIB et à l’emploi ainsi que la proportion de terres arables utilisées pour l’agriculture.","Esta sección evalúa la importancia del sector agrícola para la economía del área a evaluar, determinando su contribución al PIB y al empleo junto con la proporción de tierra cultivable utilizada para la agricultura.","يقيم هذا القسم أهمية الزراعة لاقتصاد المنطقة المستهدفة من خلال تقييم مساهمتها في الناتج المحلي الإجمالي والعمالة وكذلك نسبة الأراضي الصالحة للزراعة المستخدمة للزراعة."]
[null,null,"8. Land Tenure","8. Land Tenure","8. Régime foncier","8. Tenencia de la Tierra","8. حيازة الأرضي"]
[null,null,"This parameter seeks an understanding of land tenure rights which can hinder or promote the adoption of SPIS. Not only do tenure rights inform investment security, but may also serve as collateral for loans.","This parameter seeks an understanding of land tenure rights which can hinder or promote the adoption of SPIS. Not only do tenure rights inform investment security, but may also serve as collateral for loans.","Ce paramètre s'intéresse aux droits fonciers susceptibles d’entraver ou au contraire de favoriser l’adoption des SPIS. Importants en termes de sécurité d’investissement, les droits fonciers peuvent aussi servir à garantir les prêts.","Este parámetro busca una comprensión de los derechos de tenencia de la tierra que pueden obstaculizar o promover la adopción de SPIS. Los derechos de tenencia no solo determinan la seguridad de la inversión, sino también pueden servir como garantía para los préstamos.","تسعى هذه المعلمة إلى فهم حقوق حيازة الأراضي التي يمكن أن تعرقل أو تعزز اعتماد SPIS. لا يقتصر دور حقوق الحيازة على توفير المعلومات لأمن الاستثمار ، بل قد تكون أيضًا بمثابة ضمان للقروض."]
[null,null,"9. Transport and Communication Infrastructure","9. Transport and Communication Infrastructure","9. Infrastructures de transport et de communication","9. Infraestructura de transporte y comunicación","9. البنية التحتية للنقل والاتصالات"]
[null,null,"This section evaluates the availability of infrastructure and communication systems such as roads and mobile networks in enabling supply chains and easing the movement of people and goods.","This section evaluates the availability of infrastructure and communication systems such as roads and mobile networks in enabling supply chains and easing the movement of people and goods.","Cette section évalue la disponibilité des infrastructures et des systèmes de communication tels que les routes et les réseaux mobiles pour faciliter les chaînes d’approvisionnement ainsi que la circulation des personnes et des biens.","Esta sección evalúa la disponibilidad de infraestructura y sistemas de comunicación, como carreteras y redes móviles, para habilitar las cadenas de suministro y facilitar el movimiento de personas y bienes.","يقيم هذا القسم مدى توفر البنية التحتية وأنظمة الاتصالات مثل الطرق والشبكات المتنقلة في تمكين سلاسل التوريد وتسهيل حركة الأشخاص والبضائع."]
[null,null,"Parameter","Parameter","Paramètre","Parámetro","معلمة"]
[null,null,"Government Interventions","Government Interventions","Action gouvernementale","Intervenciones del gobierno","عمل الحكومة"]
[null,null,"Development Organizations Interventions","Development Organizations Interventions","Action des agences de développement","Intervenciones de organizaciones de desarrollo","عمل منظمات التنمية"]
[null,null,"Financing","Financing","Financement","Financiación","التمويل"]
[null,null,"Availability and Cost of Alternatives","Availability and Cost of Alternatives","Disponibilité et coûts des énergies non solaires","Disponibilidad y Costo de Alternativas","توافر وتكاليف الطاقة غير الشمسية"]
[null,null,"Technical Capacity","Technical Capacity","Capacité technique","Capacidad Técnica","القدرة التقنية"]
[null,null,"Awareness of Solar PV and Irrigation Technologies","Awareness of Solar PV and Irrigation Technologies","Sensibilisation aux technologies PV et d'irrigation à énergie solaire","Conocimiento de las Tecnologías SPIS","الوعي بتقنيات الري الكهروضوئي والطاقة الشمسية"]
[null,null,"Significance of Agriculture to the Local Economy","Significance of Agriculture to the Local Economy","Part de l'agriculture dans l'économie locale","Importancia de la Agricultura para la Economía Local","حصة الزراعة في الاقتصاد المحلي"]
[null,null,"Land Tenure","Land Tenure","Régime foncier","Tenencia de la Tierra","حيازة الأراضي"]
[null,null,"Transport and Communication Infrastructure","Transport and Communication Infrastructure","Infrastructures de transport et de communication","Infraestructura de transporte y comunicación","البنية التحتية للنقل والاتصالات"]
[null,null,"Non-critical Geophysical Parameters","Non-critical Geophysical Parameters","Paramètres géophysiques non critiques","Parámetros Geofísicos no críticos","المعلمات الجيوفيزيائية الغير حاسِمة"]
[null,null,"Total","Total","Total","Total","المجموع"]
[null,null,"Ignore","Ignore","Négligeable","Ignorar","تجاهل"]
[null,null,"Inconsequential","Inconsequential","Inconséquente","Inconsecuente","غير مهم"]
[null,null,"Slightly important","Slightly important","Peu importante ","Ligeramente importante","مهم نوعًا ما"]
[null,null,"Important","Important","Importante","Importante","مهم"]
[null,null,"Very important","Very important","Très importante","Muy importante","مهم جدا"]
[null,null,"Critical","Critical","Critique","Crítico/a","حرج (حاسم)"]
[null,null,"Weight setting","Weight setting","Pondération","Ajuste de valoración","تحديد الأهمية"]
[null,null,"Percentage","Percentage","Pourcentage","Porcentaje","النسبة المئوية"]
[null,null,"Score","Score","Score","Puntaje","النتيجة"]
[]
[null,{"$f":"$C$10","v":"INPUT_Geophysical Parameters"},"INPUT - Geophysical Parameters","INPUT - Geophysical Parameters","INTRANT - Paramètres géophysique","ENTRADA - Parámetros Geofísicos","المدخلات - المعلمات الجيوفيزيائية "]
[null,null,"Additional Geophysical Parameters","Additional Geophysical Parameters","Paramètres géophysiques supplémentaires","Parámetros geofísicos adicionales","المعلمات الجيوفيزيائية الإضافية"]
[null,null,"Questions","Questions","Questions","Preguntas","أسئلة"]
[null,null,"Sample Data Sources","Sample Data Sources","Sources des données","Fuente de datos de muestra","عينة من مصادر البيانات"]
[null,null,"Highest Possible Score","Highest Possible Score","Meilleur score possible","Puntuación más alta posible","أعلى نتيجة ممكنة"]
[null,null,"Attained Score","Attained Score","Score obtenu","Puntuación alcanzada","النتيجة المحققة"]
[null,null,"Answer","Answer","Réponse","Respuesta","إجابة"]
[null,null,"Relevance","Relevance","Pertinence","Relevancia","ملاءمة"]
[null,null,"What is the average groundwater table earmarked for SPIS?","What is the average groundwater table earmarked for SPIS?","Quel est le niveau de nappe phréatique adapté à un SPIS?","¿Cuál es el nivel freático promedio establecido para SPIS?","ما هو مستوى المياه الجوفية المناسب لنظام SPIS؟"]
[null,null,"What is the minimum annual ambient temperature and in particular the frequency of frost?","What is the minimum annual ambient temperature and in particular the frequency of frost?","Quelle est la température ambiante annuelle minimum et notamment la fréquence du gel ?","¿Cuál es la temperatura ambiente anual mínima en relación con la frecuencia de heladas?","ما هو الحد الأدنى من درجة الحرارة المحيطة السنوية وعلى وجه الخصوص تواتر الصقيع؟"]
[null,null,"What is the general topography of the area considered?","What is the general topography of the area considered?","Quelle est la topographie générale de la zone considérée ?","¿Cómo se considera la topografía general del área?","ما هي التضاريس العامة للمنطقة المعتبرة؟"]
[null,null,"What is the predominant type of agricultural production system?","What is the predominant type of agricultural production system?","Quel est le type de système de production agricole prédominant ?","¿Cuál es el principal tipo de producción en el sistema agrícola del área?","ما هو النوع السائد لنظام الإنتاج الزراعي؟"]
[null,null,"Estimated depth of groundwater resources","Estimated depth of groundwater resources","Estimation de la profondeur de la nappe phréatique","Profundidad estimada de los recursos de aguas subterráneas","العمق المقدر لموارد المياه الجوفية"]
[null,null,"AQUASTAT - Climate Information Tool","AQUASTAT - Climate Information Tool","AQUASTAT - Outil d'information sur le climat","AQUASTAT - Herramienta de información climática","أداة معلومات المناخ - AQUASTAT  "]
[null,null,"What is the slope of the area?","What is the slope of the area?","Quelle est la pente de la région concernée ?","¿Cuál es la pendiente del área?","ما هو منحدر المنطقة المعنية؟"]
[null,null,"Farming Systems Maps FAO","Farming Systems Maps FAO","Cartes des systèmes agricoles de la FAO","Mapas de Sistemas de Agricultura FAO","خرائط النظم الزراعية لمنظمة الأغذية والزراعة FAO"]
[null,null,"Up to 7 m","Up to 7 m","Jusqu'à 7 m","Hasta 7 m","ما يصل إلى 7 م"]
[null,null,"7 m - 25 m","7 m - 25 m","7 m - 25 m","7 m - 25 m","7 م - 25 م"]
[null,null,"25 m - 50 m","25 m - 50 m","25 m - 50 m","25 m - 50 m","25 م - 50 م"]
[null,null,"50 m - 100 m","50 m - 100 m","50 m - 100 m","50 m - 100 m","50 م - 100 م"]
[null,null,"Beyond 100 m","Beyond 100 m","Au-delà de 100 m","Más allá de 100 m","أكثر من 100 متر"]
[null,null,"Unknown","Unknown","Inconnu","Desconocido","مجهول"]
[null,null,"Below 1 °C","Below 1 °C","Inférieur à 1 °C ","Por debajo de 1 °C","أقل من 1 °م"]
[null,null,{"$f":"HLOOKUP($C$6,$D$6:$I$701,ROW()-ROW($B$5),FALSE)","v":"1 °C to 30 °C"},"1 °C to 30 °C","De 1 °C à 30 °C ","Entre 1 °C y 30 °C","من 1 °م إلى 30 °م"]
[null,null,"Flat","Flat","Plane","Plano","مسطح"]
[null,null,"Moderate","Moderate","Modérée","Moderado","معتدل"]
[null,null,"Steep","Steep","Escarpée","Empinado","شَديد الإنْحِدار"]
[null,null,"Seasonal Crops","Seasonal Crops","Cultures saisonnières ","Cultivos estacionales","محاصيل موسمية"]
[null,null,"Perennial Crops","Perennial Crops","Cultures vivaces ","Cultivos perennes","محاصيل معمرة"]
[null,null,"Small Livestock","Small Livestock","Petit élevage","Ganado pequeño","ثروة حيوانية صغيرة"]
[null,null,"Large Livestock","Large Livestock","Grand élevage","Ganado grande","ثروة حيوانية كبيرة"]
[null,null,"Seasonal and Perennial Crops","Seasonal and Perennial Crops","Cultures saisonnières et vivaces ","Cultivos estacionales y perennes","محاصيل موسمية ومعمرة"]
[null,null,"Livestock and Crops","Livestock and Crops","Cultures et élevages","Ganadería y cultivos","ثروة حيوانية ومحاصيل"]
[null,null,"Your score is below 50 % of your initial values for Geophysical Parameters! Please revise your weight setting!","Your score is below 50 % of your initial values for Geophysical Parameters! Please revise your weight setting!","Votre score est inférieur à 50 % de vos valeurs initiales pour les paramètres géophysiques ! Veuillez réviser les facteurs de pondération !","¡Su puntuación está por debajo del 50% de sus valores iniciales para los parámetros geofísicos! ¡Revise la ajuste de valoración","النتيجة أقل من 50٪ من القيم الأولية للمعلمات الجيوفيزيائية ! يرجى مراجعة تحديد الأهمية !"]
[null,null,"Weight","Weight","Pondération","valoración","الأهمية"]
[null,null,"Attained Score","Attained Score","Score obtenu","Puntuación alcanzada","النتيجة المحققة"]
[null,null,"Raw Score","Raw Score","Score brut","Puntaje crudo","النتيجة الصافية "]
[]
[null,{"$f":"$C$11","v":"INPUT_Business Conditions"},"INPUT - Business Conditions Parameters","INPUT - Business Conditions Parameters","INTRANT_Environnement économique","ENTRADA_Condiciones de Mercado","المدخلات_شروط السوق"]
[null,null,"Government Interventions","Government Interventions","Action gouvernementale","Intervenciones del gobierno","عمل الحكومة"]
[null,null,"Questions","Questions","Questions","Preguntas","أسئلة"]
[null,null,"Sample Data Sources","Sample Data Sources","Sources des données","Fuente de datos de muestra","عينة من مصادر البيانات"]
[null,null,"Highest Possible Score","Highest Possible Score","Meilleur score possible","Puntuación más alta posible","أعلى نتيجة ممكنة"]
[null,null,"Attained Score","Attained Score","Score obtenu","Puntuación alcanzada","النتيجة المحققة"]
[null,null,"Answer","Answer","Réponse","Respuesta","إجابة"]
[null,null,"Relevance","Relevance","Pertinence","Relevancia","ملاءمة"]
[null,null,{"$f":"HLOOKUP($C$6,$D$6:$I$701,ROW()-ROW($B$5),FALSE)","v":"Are there government, national and local policies and laws promoting solar and irrigation equipment in"},"Are there government, national and local policies and laws promoting solar and irrigation equipment in","Existe-t-il des politiques et des lois gouvernementales et locales de promotion des équipements solaires et d'irrigation en","¿El gobierno, las políticas y leyes nacionales y locales fomentan el uso de equipos de riego solar en","هل توجد سياسات وقوانين حكومية ، وطنية ومحلية تعزز معدات الطاقة الشمسية والري بالطاقة الشمسية في"]
[null,null,{"$f":"HLOOKUP($C$6,$D$6:$I$701,ROW()-ROW($B$5),FALSE)","v":"?"},"?","?","?","؟"]
[null,null,{"$f":"HLOOKUP($C$6,$D$6:$I$701,ROW()-ROW($B$5),FALSE)","v":"• Government irrigation and/or solar policies, laws, bills, acts, sector development plans\n• Licensing of solar technicians, suppliers and  or contractor companies\n• Government tax regulation such as duty and VAT exemptions"},"• Government irrigation and/or solar policies, laws, bills, acts, sector development plans\n• Licensing of solar technicians, suppliers and  or contractor companies\n• Government tax regulation such as duty and VAT exemptions","• Politiques, projets de loi, lois, décrets, plans de développement sectoriels émis par le gouvernement en matière d'irrigation et/ou d'énergie solaire\n• Accréditation des techniciens, des fournisseurs et des entreprises sous-traitantes du solaire\n• Réglementations douanières et fiscales telles qu'exonérations des droits de douane et de TVA","• Políticas de riego y / o energía solar, leyes, planes de desarrollo del sector\n• Licencias de técnicos en energía solar, proveedores y / o empresas contratistas\n• Regulación fiscal del gobierno como exenciones de impuestos y aranceles","• السياسات الحكومية المتعلقة بالري و / أو الطاقة الشمسية ، القوانين ، الفواتير والمراسيم وخطط تنمية القطاع\n• اعتماد الفنيين والموردين ومقاولي الطاقة الشمسية\n• اللوائح الجمركية والضريبية الحكومية مثل الإعفاءات من الرسوم الجمركية وضريبة القيمة المضافة"]
[null,null,"Clean energy development policies","Clean energy development policies","Politiques de développement des énergies renouvelables","Políticas de desarrollo de energía limpia","سياسات تنمية الطاقة النظيفة"]
[null,null,"Renewable Energy Targets and Policies, 2020: Table 6, Pg. 84","Renewable Energy Targets and Policies, 2020: Table 6, Pg. 84","Objectifs et politiques en matière d'énergies renouvelables, 2020 : Tableau 6, p. 84","Metas y políticas de energía renovable, 2020: Cuadro 6, pág. 84","أهداف وسياسات الطاقة المتجددة ، 2020: الجدول 6 ، ص. 84"]
[null,null,"Asia Pacific countries policy documents","Asia Pacific countries policy documents","Documents de politique générale des Pays de l'Asie-Pacifique","Documentos de política de países de Asia-Pacífico","وثائق سياسات دول آسيا والمحيط الهادئ"]
[null,null,"Are there government programs in","Are there government programs in","Existe-t-il des programmes gouvernementaux en","¿Hay programas gubernamentales en","هل هناك في"]
[null,null,"promoting SPIS devices?","promoting SPIS devices?","faisant la promotion des équipements SPIS?","que fomenten el uso de dispositivos SPIS?","البرامج الحكومية التي تروج لأجهزة SPIS؟"]
[null,null,"• Irrigation and solar programs supported by government resources","• Irrigation and solar programs supported by government resources","• Programme d'irrigation et d'énergie solaires soutenus par des ressources gouvernementales","• Programas de riego y energía solar apoyados por recursos del gobierno","• برامج الري والطاقة الشمسية مدعومة بموارد حكومية\n"]
[null,null,"Are there relevant government ministries and/bodies providing support to the sector in","Are there relevant government ministries and/bodies providing support to the sector in","Existe-t-il des ministères et/ou des organismes gouvernementaux compétents qui apportent un soutien au secteur en","¿Existen ministerios y instituciones relevantes del gobierno que brinden apoyo al sector?","هل توجد وزارات و / هيئات حكومية ذات صلة تقدم الدعم للقطاع في"]
[null,null,"• Agriculture and energy ministries with engagement in SPIS sector\n• Government irrigation organizations, boards, groups\n• Government organizations providing SPIS related information\n• Government quality and standards regulation and enforcement","• Agriculture and energy ministries with engagement in SPIS sector\n• Government irrigation organizations, boards, groups\n• Government organizations providing SPIS related information\n• Government quality and standards regulation and enforcement","• Les ministères de l'agriculture et de l'énergie intervenant dans le secteur des SPIS\n• Organismes, comités, groupes de travail gouvernementaux du secteur de l'irrigation\n• Organismes gouvernementaux fournissant des informations relatives aux SPIS\n• Réglementation et application de la qualité et des normes gouvernementales","• Ministerios de agricultura y energía con participación en el sector SPIS\n• Organizaciones gubernamentales de riego, juntas, grupos\n• Organizaciones gubernamentales que brindan información relacionada con SPIS\n• Regulación y cumplimiento de normas gubernamentales de calidad y estándares","• وزارتا الزراعة والطاقة مع المشاركة في قطاع SPIS\n• منظمات الري و المجالس و المجموعات الحكومية\n• المنظمات الحكومية التي توفر المعلومات ذات الصلة بنظام SPIS\n• اللوائح الحكومية للجودة والمعايير وإنفاذها"]
[null,null,"Stand alone systems regulations and incentives","Stand alone systems regulations and incentives","Réglementations spécifiques des systèmes et incitations","Regulaciones e incentivos de sistemas aislados","القوانين والحوافز المتعلقة بالأنظمة القائمة بذاتها"]
[null,null,"Yes","Yes","Oui","Sí","نعم"]
[null,null,"No","No","Non","No","لا"]
[null,null,"Unknown","Unknown","Inconnu","Desconocido","مجهول"]
[null,null,"Weight","Weight","Pondération","valoración","الأهمية"]
[null,null,"Attained Score","Attained Score","Score obtenu","Puntuación alcanzada","النتيجة المحققة"]
[null,null,"Raw Score","Raw Score","Score brut","Puntaje crudo","النتيجة الصافية "]
[null,null,"Development Organizations Interventions","Development Organizations Interventions","Action des agences de développement","Intervenciones de organizaciones de desarrollo","عمل منظمات التنمية"]
[null,null,"Are there national programs provided in","Are there national programs provided in","Existe-t-il des programmes nationaux mis en place en","¿Existen programas nacionales  ofrecidos en","هل توجد برامج وطنية متوفرة في"]
[null,null,"by non-government institutions that promote the adoption of irrigation?","by non-government institutions that promote the adoption of irrigation?","par des institutions non-gouvernementales qui promeuvent l'adoption de l'irrigation ?","por instituciones no gubernamentales que promuevan la adopción del riego?","من قبل المؤسسات غير الحكومية التي تروج لتبني الري؟"]
[null,null,"Are there national programs provided in","Are there national programs provided in","Existe-t-il des programmes nationaux mis en place en","¿Existen programas nacionales  ofrecidos en","هل توجد برامج وطنية متوفرة في"]
[null,null,"by non-government institutions specifically promoting the adoption of SPIS devices?","by non-government institutions specifically promoting the adoption of SPIS devices?","par des institutions non-gouvernementales promouvant spécifiquement l'adoption des dispositifs SPIS ?","por instituciones no gubernamentales que promuevan específicamente la adopción de dispositivos SPIS?","من قبل المؤسسات غير الحكومية التي تروج على وجه التحديد لاعتماد أجهزة SPIS؟"]
[null,null,"List of possible* development agencies and multilateral organizations: ","List of possible* development agencies and multilateral organizations: ","Liste* d'agences de développement et organisations multilatérales :","Lista de posibles * agencias de desarrollo y organizaciones multilaterales:","قائمة لوكالات التنمية الممكنة * والمنظمات المتعددة الأطراف:"]
[null,null,"African Development Bank","African Development Bank","Banque africaine de développement","Banco Africano de Desarrollo","بنك التنمية الأفريقي"]
[null,null,"CGIAR (Consultative Group for International Agricultural Research)","CGIAR (Consultative Group for International Agricultural Research)","CGIAR (Groupe consultatif pour la recherche agricole internationale)","CGIAR (Grupo Consultivo para la Investigación Agrícola Internacional)","CGIAR (المجموعة الاستشارية للبحوث الزراعية الدولية)"]
[null,null,"DFID (Department for International Development - United Kingdom)","DFID (Department for International Development - United Kingdom)","DFID (Département du Développement international - Royaume Uni)","DFID (Departamento de Desarrollo Internacional - Reino Unido)","DFID (وزارة التنمية الدولية - المملكة المتحدة)"]
[null,null,"FAO (Food and Agriculture Organization) ","FAO (Food and Agriculture Organization) ","FAO (Organisation pour l'alimentation et l'agriculture) ","FAO ( Organización para la Alimentación y la Agricultura) "," FAO (منظمة الأغذية والزراعة)"]
[null,null,"GACSA (Global Alliance For Climate-Smart Agriculture)","GACSA (Global Alliance For Climate-Smart Agriculture)","GACSA (Alliance mondiale pour une agriculture intelligente face au climat)","GACSA (Alianza Global para la Agricultura Climáticamente Inteligente)","GACSA (التحالف العالمي للزراعة الذكية مناخياً)"]
[null,null,"GIZ (German Corporation for International Cooperation GmbH)","GIZ (German Corporation for International Cooperation GmbH)","GIZ (agence de coopération internationale allemande pour le développement)","GIZ (Sociedad Alemana para la Cooperación Internacional)","GIZ (المؤسسة الألمانية للتعاون الدولي)"]
[null,null,"IFAD (International Fund for Agriculture Development)","IFAD (International Fund for Agriculture Development)","IFAD (Fonds international de développement agricole)","IFAD (Fondo Internacional de Desarrollo Agrícola)","IFAD (الصندوق الدولي للتنمية الزراعية)"]
[null,null,"JICA (Japan International Cooperation Agency)","JICA (Japan International Cooperation Agency)","JICA (Agence japonaise de coopération internationale)","JICA (Agencia Japonesa de Cooperación Internacional)"," JICA (الوكالة اليابانية للتعاون الدولي)"]
[null,null,"Nordic Development Fund","Nordic Development Fund","Fonds nordique de développement","Fondo de desarrollo nórdico","صندوق التنمية الاسكندنافي"]
[null,null,"OECD (Organisation for Economic Co-operation and Development)","OECD (Organisation for Economic Co-operation and Development)","OECD (Organisation de coopération et de développement économiques)","OECD (Organización para la Cooperación y el Desarrollo Económicos)","OECD (منظمة التعاون الاقتصادي والتنمية)"]
[null,null,"OFID (OPEC Fund for International Development)","OFID (OPEC Fund for International Development)","OFID (Fonds de l'OPEP pour le développement international)","OFID (Fondo OPEP para el Desarrollo Internacional)","OFID (صندوق الأوبك للتنمية الدولية)"]
[null,null,"SIDA (Swedish International Development Cooperation Agency)","SIDA (Swedish International Development Cooperation Agency)","SIDA (Agence suédoise de développement et coopération internationale)","SIDA (Agencia Sueca Internacional de Cooperación al Desarrollo)","SIDA (الوكالة السويدية للتعاون الإنمائي الدولي)"]
[null,null,"USAID (United States Agency for International Development)","USAID (United States Agency for International Development)","USAID (Agence des États-Unis pour le développement international)","USAID (Agencia de los Estados Unidos para el Desarrollo Internacional)","USAID (الوكالة الأمريكية للتنمية الدولية)"]
[null,null,"World Bank Group","World Bank Group","Groupe de la Banque mondiale","Grupo del Banco Mundial","مجموعة البنك الدولي"]
[null,null,"World Food Programme","World Food Programme","Programme alimentaire mondial","Programa Mundial de Alimentos","برنامج الأغذية العالمي"]
[null,null,"List of possible* facilities and funds:","List of possible* facilities and funds:","Liste* d'organismes et de fonds :","Lista de posibles * instalaciones y fondos:","قائمة التسهيلات والأموال الممكنة *:"]
[null,null,"CTF (Clean Technology Fund)","CTF (Clean Technology Fund)","CTF (Clean Technology Fund)","CTF (Fondo de Tecnologías Limpias)","CTF (صندوق التكنولوجيا النظيفة)"]
[null,null,{"$f":"HLOOKUP($C$6,$D$6:$I$701,ROW()-ROW($B$5),FALSE)","v":"EcoMicro"},"EcoMicro","EcoMicro","EcoMicro","EcoMicro"]
[null,null,"GEF (Global Environment Facility)","GEF (Global Environment Facility)","GEF (Fonds pour l'environnement mondial)","GEF (Fondo Mundial para el Medio Ambiente)","GEF (صندوق البيئة العالمي)"]
[null,null,"GPRBA (Global Partnership for Results-Based Approaches)","GPRBA (Global Partnership for Results-Based Approaches)","GPRBA (Partenariat mondial pour des approches axées sur les résultats)","GPRBA (Alianza mundial para enfoques basados en resultados)","GPRBA (الشراكة العالمية للنهج القائمة على النتائج)"]
[null,null,"ICBA","ICBA","ICBA","ICBA","ICBA"]
[null,null,"ICBA (International Center for Biosaline Agriculture)","ICBA (International Center for Biosaline Agriculture)","ICBA (Centre International d'Agriculture Biosaline)","ICBA (Centro Internacional de Agricultura Biosalina)","ICBA (المركز الدولي للزراعة الملحية)"]
[null,null,"List of possible* research centers and other NGOs:","List of possible* research centers and other NGOs:","Liste* des centres de recherche et autres ONG :","Lista de posibles * centros de investigación y otras ONG:","قائمة بمراكز البحث الممكنة * والمنظمات غير الحكومية الأخرى:"]
[null,null,"AAA (Adaptation of African Agriculture)","AAA (Adaptation of African Agriculture)","AAA (Adaptation de l'Agriculture Africaine)","AAA (Adaptación de la agricultura africana)","AAA (التكيف مع الزراعة الأفريقية)"]
[null,null,"AGRA","AGRA","AGRA","AGRA","AGRA"]
[null,null,"Energy 4Impact","Energy 4Impact","Energy 4Impact","Energy 4Impact","Energy 4Impact"]
[null,null,"IFPRI (International Food Policy Research Institute)","IFPRI (International Food Policy Research Institute)","IFPRI (Institut international de recherche sur les politiques alimentaires)","IFPRI (Instituto Internacional de Investigación sobre Políticas Alimentarias)","IFPRI (المعهد الدولي لبحوث السياسات الغذائية)"]
[null,null,"Lutheran World Relief","Lutheran World Relief","Lutheran World Relief","Lutheran World Relief","Lutheran World Relief"]
[null,null,"The Practica Foundation","The Practica Foundation","The Practica Foundation","The Practica Foundation","The Practica Foundation"]
[null,null,"Enter for your country relevant actors in the cell to the right","Enter for your country relevant actors in the cell to the right","Entrez pour votre pays les acteurs pertinents dans la cellule à droite","Ingrese los actores relevantes para su país en la celda de la derecha","أدخل لبلدك الجهات الفاعلة ذات الصلة في الخلية الموجودة علىى اليمين"]
[null,null,"* List is not exhaustive","* List is not exhaustive","* Liste non exhaustive","* Lista no exhaustiva","* القائمة ليست شاملة"]
[null,null,"Financing","Financing","Financement","Financiación","التمويل"]
[null,null,"End users' financial ability","End users' financial ability","Capacité financière des utilisateurs finaux","Capacidad financiera de los usuarios finales","القدرة المالية للمستخدمين النهائيين"]
[null,null,"What proportion of the rural population in","What proportion of the rural population in","Quelle proportion de la population rurale en","¿Qué proporción de la población rural en","ما هي نسبة سكان الريف في"]
[null,null,"is poor according to the Multidimentional Poverty Index (MPI)?","is poor according to the Multidimentional Poverty Index (MPI)?","est pauvre selon l'Indice de Pauvreté Multidimensionnelle (IPM) ?","es pobre según el Índice de Pobreza Multidimensional (IPM)?","الفقراء حسب مؤشر الفقر متعدد الأبعاد (MPI)؟"]
[null,null,"What is the Gross National Income (GNI) per capita value of","What is the Gross National Income (GNI) per capita value of","Quelle est la valeur du Revenu National Brut (RNB) par habitant en","¿Cuál es el valor del Renta Nacional Bruta (RNB) per cápita en","ما هي قيمة نصيب الفرد من الدخل القومي الإجمالي (GNI) في"]
[null,null,"OPHI Global MPI Interactive Databank: Population in multidimensional poverty (H) (%), Rural MPI Poor","OPHI Global MPI Interactive Databank: Population in multidimensional poverty (H) (%), Rural MPI Poor","Banque de données interactive OPHI Global MPI: Population en situation de pauvreté multidimensionnelle (H) (%), Rural MPI Pauvre","Banco de datos interactivo OPHI Global MPI: Población en pobreza multidimensional (H) (%), IPM rural Pobre","بنك البيانات التفاعلي OPHI Global MPI: السكان الذين يعيشون في فقر متعدد الأبعاد (H) (٪) ، فقراء الريف MPI"]
[null,null,"World Bank data: GNI per capita, Atlas method (current US$) 2020","World Bank data: GNI per capita, Atlas method (current US$) 2020","Données de la Banque mondiale : RNB par habitant, méthode Atlas (US$ courants) 2020","Datos del Banco Mundial: INB per cápita, método Atlas (US $ actuales) 2020","بيانات البنك الدولي: نصيب الفرد من الدخل القومي الإجمالي ، طريقة أطلس (بالأسعار الجارية للدولار الأمريكي) 2020"]
[null,null,"Low income ($1,005 or less)","Low income ($1,005 or less)","Faible revenu (1 005 $ ou moins)","Bajos ingresos ($ 1 005 o menos)","دخل منخفض (1005 دولار أو أقل)"]
[null,null,"Lower Middle Income ($1,006 to $3,955)","Lower Middle Income ($1,006 to $3,955)","Revenu moyen inférieur (1 006 $ à 3 955 $)","Ingresos medios bajos ($ 1 006 a $ 3 955)","دخل متوسط منخفض (1006 دولار إلى 3955 دولار)"]
[null,null,"Upper Middle Income ($3,956 to $12,235)","Upper Middle Income ($3,956 to $12,235)","Revenu moyen supérieur (3 956 $ à 12 235 $)","Ingresos medios altos ($ 3 956 a $ 12 235)","دخل متوسط مرتفع (3956 دولار إلى 12235 دولار)"]
[null,null,"High Income ($12.236 or more)","High Income ($12.236 or more)","Revenu élevé (12 236 $ ou plus)","Ingresos altos ($ 12 236 o más)","دخل مرتفع (12236 دولار أو أكثر)"]
[null,null,"Availability of financial institution support","Availability of financial institution support","Existence de soutien par des institutions financières","Disponibilidad de apoyo de instituciones financieras","توافر دعم المؤسسات المالية"]
[null,null,"What proportion of the population above the age of 15 in","What proportion of the population above the age of 15 in","Quelle est la proportion de la population âgée de plus de 15 ans en","¿Qué proporción de la población mayor de 15 años en","ما هي نسبة السكان فوق سن 15 في"]
[null,null,"own a financial account?","own a financial account?","qui dispose d'un propre compte dans une institution financière ?","posee una cuenta bancaria? ","التي تملك حساب مالي؟"]
[null,null,"What is the proportion of the population above the age of 15 in","What is the proportion of the population above the age of 15 in","Quelle est la proportion de la population âgée de plus de 15 ans en","¿Cuál es la proporción de la población mayor de 15 años en","ما هي نسبة السكان فوق سن 15 في"]
[null,null,"which borrowed from a financial institution in the given year*?","which borrowed from a financial institution in the given year*?","qui a contracté un emprunt auprès d'une institution financière au cours d'une année donnée* ?","que pidió un préstamo de una institución bancaria en el año dado *?","التي اقترضت من مؤسسة مالية في سنة معينة *؟"]
[null,null,"i) Account  (% age 15+) based on country\nii) Formal borrowing  (% age 15+) based on country","i) Account  (% age 15+) based on country\nii) Formal borrowing  (% age 15+) based on country","i) Compte (% âge 15+) basé sur le pays\nii) Emprunt officiel (% âge 15+) basé sur le pays","i) Cuenta (% de más de 15 años) según el país\nii) Préstamo formal (% de más de 15 años) según el país","1) الحساب (٪ من العمر 15 عامًا فأكثر) حسب الدولة\n2) الاقتراض الرسمي (٪ من العمر 15 عامًا فأكثر) على أساس البلد"]
[null,null,"World Bank, Financial Inclusion Data","World Bank, Financial Inclusion Data","Banque mondiale, Données sur l'inclusion financière","Banco Mundial, datos de inclusión financiera","البنك الدولي ، بيانات الشمول المالي"]
[null,null,"* given year is the most recent year Data is available","* given year is the most recent year Data is available","* l'année donnée est l'année la plus récente dans les données disponibles ","* año dado: aquel con los datos disponibles más recientes","* سنة معينة هي آخر سنة تتوفر فيها البيانات"]
[null,null,"What is the ranking of","What is the ranking of","Quel est le positionnement de","¿Cuál es la facilidad para obtener clasificación de crédito en","ما هو ترتيب"]
[null,null,"in the ease of getting credit?","in the ease of getting credit?","dans le classement de la facilité d'obtention de prêt ?","?","في سهولة الحصول على الائتمان؟"]
[null,null,"Are there any government economic incentives affecting the adoption of SPIS devices in","Are there any government economic incentives affecting the adoption of SPIS devices in","Existe-t-il des incitatifs économiques gouvernementaux qui influent sur l'adoption des dispositifs SPIS en","¿Hay algún incentivo económico del gobierno que afecte la adopción de dispositivos SPIS en","هل هناك أي حوافز اقتصادية حكومية تؤثر على اعتماد أجهزة SPIS في"]
[null,null,"World Bank Ease of doing Business 2017","World Bank Ease of doing Business 2017","Banque mondiale - Classement des économies (facilité à faire des affaires) 2017","Clasificación de crédito 2017","سهولة ممارسة الأعمال من البنك الدولي 2017"]
[null,null,{"$f":"HLOOKUP($C$6,$D$6:$I$701,ROW()-ROW($B$5),FALSE)","v":"• Government tax exemptions, subsidies, rebates, credits etc. given to customers of SPIS products, suppliers or other intermediaries such as financiers"},"• Government tax exemptions, subsidies, rebates, credits etc. given to customers of SPIS products, suppliers or other intermediaries such as financiers","• Exonérations fiscales, subventions, rabais, crédits, etc. accordés aux clients des produits SPIS, aux fournisseurs ou à d'autres intermédiaires tels que les financiers","• Exenciones de impuestos gubernamentales, subsidios, reembolsos, créditos, etc. otorgados a clientes de productos SPIS, proveedores u otros intermediarios tales como financieros","• الإعفاءات الضريبية الحكومية والإعانات والخصومات والائتمانات وما إلى ذلك الممنوحة لعملاء منتجات الري بالطاقة الشمسية ، الموردين أو الوسطاء الآخرين مثل الممولين"]
[null,null,"Ranking between 1 and 186. If none, leave blank","Ranking between 1 and 186. If none, leave blank","Classement entre 1 et 186. Si aucun, laissez vide","Clasificación entre 1 y 186. Si no hay ninguno, déjelo en blanco","الترتيب بين 1 و 186. إذا لم يكن كذلك ، اترك الخلية فارغة"]
[null,null,{"$f":"HLOOKUP($C$6,$D$6:$I$701,ROW()-ROW($B$5),FALSE)","v":"Availability and cost of alternative sources of power for pumping"},"Availability and cost of alternative sources of power for pumping","Disponibilité et coût des sources d'énergie non solaires pour le pompage","Disponibilidad y costo de alternativas fuentes de energía para el bombeo","توافر وتكلفة مصادر الطاقة البديلة للضخ"]
[null,null,"Availability of competitive alternative power sources","Availability of competitive alternative power sources","Disponibilité de sources d’énergie alternatives concurrentielles ","Disponibilidad de fuentes alternativas competitivas de energía","توافر مصادر طاقة بديلة تنافسية"]
[null,null,"Does","Does",". ","¿Tiene","هل تمتلك"]
[null,null,"have fossil fuel resources that it exploits?","have fossil fuel resources that it exploits?","possède-t-elle des ressources en énergie fossile qu'elle exploite ? ","recursos de combustibles fósiles que explota?","موارد وقود أحفوري تستغلها؟"]
[null,null,"Is the area of interest in close proximity (within 5 km of a grid access point) to the grid or is the rural electrification rate of","Is the area of interest in close proximity (within 5 km of a grid access point) to the grid or is the rural electrification rate of","La zone concernée se trouve-t-elle à proximité immédiate du réseau (à moins de 5 km d'un point d'accès au réseau) ou le taux d'électrification rurale de","¿El área de interés está muy cerca (a menos de 5 km de un punto de acceso a la red) de la red o la tasa de electrificación rural de","هل منطقة الاهتمام على مقربة (في نطاق 5 كيلومترات من نقطة وصول الشبكة) من الشبكة أم أن معدل كهربة الريف في"]
[null,null,"greater than 80%?","greater than 80%?","est-il supérieur à 80 % ?","es mayor al 80 %?","أكبر من 80٪؟"]
[null,null,"What is the frequency of power outages in the area of interest or in","What is the frequency of power outages in the area of interest or in","Quelle est la fréquence des coupures d'électricité dans la zone concernée ou en","¿Cuál es la frecuencia de caídas de corriente en el área de interés o en","ما هو تواتر انقطاع التيار الكهربائي في منطقة الاهتمام او في"]
[null,null,"National fossil fuel reserves","National fossil fuel reserves","Réserves nationales en énergie fossile","Reservas nacionales de combustibles fósiles","الاحتياطيات الوطنية الوقود الأحفوري"]
[null,null,"African grid","African grid","Afrique - Réseau électrique","Red africana","الشبكة الأفريقية"]
[null,null,"European grid","European grid","Europe - Réseau électrique","Red europea","الشبكة الأوروبية"]
[null,null,"USA grid","USA grid","USA - Réseau électrique","Red estadounidense","شبكة الولايات المتحدة الأمريكية"]
[null,null,"Australian grid ","Australian grid ","Australie - Réseau électrique","Red australiana","الشبكة الأسترالية"]
[null,null,"Access to electricity, the rural electrification rate","Access to electricity, the rural electrification rate","Accès à l'électricité, taux d'électrification rurale","Acceso a la electricidad, tasa de electrificación rural","الحصول على الكهرباء ومعدل كهربة الريف"]
[null,null,"Tracking SDG 7 ","Tracking SDG 7 ","Suivi de SDG 7 ","Seguimiento de SDG 7","تتبع الهدف 7 من SDGs"]
[null,null,"Grid maps","Grid maps","Cartes du réseau","Mapa de redes","خرائط الشبكة"]
[null,null,"For better accuracy use country-specific grid data","For better accuracy use country-specific grid data","Pour plus de précision, consulter les données réseau spécifiques à chaque pays","Para una mayor precisión, utilice datos específicos del país","للحصول على دقة أفضل ، استخدم بيانات الشبكة الخاصة بالبلد"]
[null,null,"• Area of interest local electricity supply reliability","• Area of interest local electricity supply reliability","• Fiabilité de l'approvisionnement local en électricité de la zone concernée ","• Fiabilidad local del suministro de electricidad en el área de interés","• مجال الاهتمام بموثوقية إمدادات الكهرباء المحلية"]
[null,null,"Power outages frequency ","Power outages frequency ","Fréquence des coupures d'électricité ","Frecuencia de caídas de corriente","تردد انقطاع التيار الكهربائي"]
[null,null,"Subsidies","Subsidies","Subventions","Subsidios","الإعانات"]
[null,null,"Is there a grid subsidy in","Is there a grid subsidy in","Y a-t-il une subvention de réseau en","¿Existe un subsidio a la red en","هل هناك دعم للشبكة الكهربائية في"]
[null,null," or in the area of interest including for the cost of electricity and/or connection fee to the grid?"," or in the area of interest including for the cost of electricity and/or connection fee to the grid?","ou dans la zone concernée, y compris pour les frais d'électricité et/ou les frais de raccordement au réseau ? ","o en el área de interés, incluyendo el costo de la electricidad y / o la tarifa de conexión a la red?","أو في المنطقة المعنية بما في ذلك تكلفة الكهرباء و / أو رسوم التوصيل بالشبكة؟"]
[null,null,{"$f":"HLOOKUP($C$6,$D$6:$I$701,ROW()-ROW($B$5),FALSE)","v":"Is there a fuel subsidy in"},"Is there a fuel subsidy in","Y a-t-il une subvention pour le carburant en","¿Existe un subsidio al combustible en","هل يوجد دعم للوقود في"]
[null,null,"or in the area of interest?","or in the area of interest?","ou dans la zone concernée ? ","o en el área de interés? ","أو في المنطقة المعنية؟"]
[null,null,"• Area of interest local electricity supply regulation","• Area of interest local electricity supply regulation","• Réglementation locale de l'approvisionnement en électricité de la zone concernée ","• Área de interés regulación de suministro de electricidad local","• التنظيم المحلي لإمدادات الكهرباء في المنطقة المعنية"]
[null,null,"• Area of interest local fuel supply regulation","• Area of interest local fuel supply regulation","• Réglementation locale de l'approvisionnement en carburant de la zone concernée ","• Área de interés regulación de suministro de combustible local","• اللوائح المحلية التي تنظم توريد الوقود للمنطقة المعنية"]
[null,null,{"$f":"HLOOKUP($C$6,$D$6:$I$701,ROW()-ROW($B$5),FALSE)","v":"Presence of national electricity subsidy "},"Presence of national electricity subsidy ","Existence d'une subvention nationale à l'électricité","Subsidio nacional de electricidad","وجود دعم وطني للكهرباء"]
[null,null,{"$f":"HLOOKUP($C$6,$D$6:$I$701,ROW()-ROW($B$5),FALSE)","v":"Presence of national fuel subsidy (e.g. of diesel and kerosene)"},"Presence of national fuel subsidy (e.g. of diesel and kerosene)","Existence d'une subvention nationale au carburant (diesel, kérosène, etc.)","Subsidio nacional al combustible (diesel, queroseno, etc.)","وجود دعم وطني للوقود (ديزل ، كيروسين ، إلخ)"]
[null,null,"Cost comparison","Cost comparison","Comparaison des coûts ","Comparación de costos","مقارنة التكاليف"]
[null,null,"What is the average electricity retail tariff in USD per kWh for all end users in","What is the average electricity retail tariff in USD per kWh for all end users in","Quel est le tarif moyen de l'électricité en USD par kWh pour les agriculteurs en","¿Cuál es la tarifa minorista de electricidad promedio en USD por kWh para todos los usuarios finales en","ما هو متوسط تعرفة الكهرباء بالتجزئة بالدولار الأمريكي لكل كيلوواط ساعة لجميع المستخدمين النهائيين في"]
[null,null,"or in the area of interest?","or in the area of interest?","ou dans la zone concernée ? ","o en el área de interés?","أو في منطقة الاهتمام؟"]
[null,null,"What is the average retail price for diesel in USD per litre in","What is the average retail price for diesel in USD per litre in","Quel est le prix de détail moyen du diesel en USD par litre en","¿Cuál es el precio promedio de venta al público de diésel en USD por litro en","ما هو متوسط سعر التجزئة للديزل بالدولار الأمريكي للتر الواحد في"]
[null,null,"or in the area of interest?","or in the area of interest?","ou dans la zone concernée ?","o en el área de interés?","أو في المنطقة المعنية؟"]
[null,null,"• Area of interest local electricity supply cost in USD per kWh","• Area of interest local electricity supply cost in USD per kWh","• Coût de l'approvisionnement local en électricité en USD par kWh dans la zone concernée ","• Costo del suministro local de electricidad en USD por kWh en área de interés","• تكلفة إمداد الكهرباء المحلية بالدولار الأمريكي لكل كيلو وات ساعة في المنطقة المعنية"]
[null,null,"• Area of interest local average diesel cost in USD/Liter","• Area of interest local average diesel cost in USD/Liter","• Coût moyen local du diesel en USD/Litre de la zone concernée ","• Costo promedio local de diesel en USD por litro en área de interés","• متوسط ​​التكلفة المحلية للديزل بالدولار الأمريكي / لتر في المنطقة المعنية"]
[null,null,"Retail electricity tariff (average of all end-users) in USD/kWh","Retail electricity tariff (average of all end-users) in USD/kWh","Tarif de l'électricité (moyenne de tous les consommateurs finaux) en USD/kWh","Tarifa de electricidad minorista (promedio de todos los usuarios finales) en USD / kWh","تعرفة الكهرباء (متوسط ​​جميع المستهلكين النهائيين) بالدولار الأمريكي / كيلوواط ساعة"]
[null,null," Diesel prices in USD/Liter\n"," Diesel prices in USD/Liter\n","Prix du diesel en USD/Liter","Precios de diesel USD / litro","سعر الديزل بالدولار الأمريكي / لتر"]
[null,null,"Reference for least penalty will be 1USD/kWh, with the most expensive power, rounded up to the next whole number (0.61)","Reference for least penalty will be 1USD/kWh, with the most expensive power, rounded up to the next whole number (0.61)","La référence pour la pénalité la moins élevée sera de 1 USD/kWh, avec l'électricité la plus chère, arrondie au nombre entier supérieur (0,61)","La referencia para una penalización mínima será de 1 USD / kWh, con la potencia más cara, redondeada al siguiente número entero (0,61)","سيكون الحد الأدنى للعقوبة هو 1 دولار أمريكي / كيلوواط ساعة ، مع أغلى كهرباء ، مقربة إلى الرقم الصحيح التالي (0.61)"]
[null,null,"Reference for least penalty will be 3 USD/L the price of Iceland, with the most expensive diesel, rounded up to the next whole number (2.03)","Reference for least penalty will be 3 USD/L the price of Iceland, with the most expensive diesel, rounded up to the next whole number (2.03)","La référence pour la pénalité la moins élevée sera de 3 USD/L , prix de l'Islande, avec le diesel le plus cher, arrondie au nombre entier supérieur (2.03)","La referencia para la multa mínima será de 3 USD / litro el precio de Islandia, con el diésel más caro, redondeado al siguiente número entero (2.03)","سيكون الحد الأدنى للعقوبة هو 3 دولارات أمريكية / لتر ، وهو السعر الأيسلندي ، مع أغلى ديزل ، مقربًا إلى الرقم الصحيح التالي (2.03)"]
[null,null,"Low","Low","Basse","Baja","منخفض"]
[null,null,"Regular","Regular","Régulière","Regular","منتظم"]
[null,null,"High","High","Haute","Alta","مرتفع"]
[null,null,"Very High","Very High","Très Haute","Muy Alta","مرتفع جدا"]
[null,null,"Technical capacity for SPIS","Technical capacity for SPIS","Capacité technique pour SPIS","Capacidad técnica por SPIS","القدرة التقنية لنظام SPIS"]
[null,null,"Are there training sessions on solar technologies and applications (design, O&M and repairs) available in","Are there training sessions on solar technologies and applications (design, O&M and repairs) available in","Existe-t-il des sessions de formation sur les technologies solaires et leurs applications (conception, O&M et réparations) en","¿Hay sesiones de capacitación sobre tecnologías y aplicaciones solares (Diseño, operación, mantenimiento y reparaciones) disponibles en","هل توجد دورات تدريبية حول تقنيات وتطبيقات الطاقة الشمسية (التصميم والتشغيل والصيانة والإصلاحات) متوفرة في"]
[null,null,"Are solar technicians in","Are solar technicians in","Les techniciens solaires en","¿Los técnicos de energía solar en","هل تقنيو الطاقة الشمسية في"]
[null,null,"licensed to carry out their work by the government?","licensed to carry out their work by the government?","ont-ils été accrédités par le gouvernement pour effectuer ce travail ?","tienen licencia para llevar a cabo su trabajo por parte del gobierno?","مرخص لهم بمزاولة عملهم من قبل الحكومة؟"]
[null,null,"Is solar technology part of the curriculum in agricultural courses or programs in agricultural training institutions?","Is solar technology part of the curriculum in agricultural courses or programs in agricultural training institutions?","La technologie solaire est-elle intégrée au programme d'études des cours ou des programmes agricoles dispensés par les établissements de formation agricole ?","¿La tecnología solar forma parte del currículo en cursos o programas agrícolas en instituciones de capacitación agrícola?","هل تكنولوجيا الطاقة الشمسية جزء من المنهج الدراسي في الدورات أو البرامج الزراعية في مؤسسات التدريب الزراعي؟"]
[null,null,"• Solar systems and technologies courses in educational institutions ","• Solar systems and technologies courses in educational institutions ","• Cours sur les systèmes et technologies solaires dans les établissements d'enseignement","• Cursos de sistemas y tecnologías solares en instituciones educativas","• دورات نظم وتقنيات الطاقة الشمسية في المؤسسات التعليمية"]
[null,null,"• Government regulation on licensing of solar technicians","• Government regulation on licensing of solar technicians","• Réglementation gouvernementale sur l'accréditation des techniciens solaires ","• Reglamento gubernamental sobre licencias de técnicos de energía solar","• اللائحة الحكومية بشأن ترخيص فنيي الطاقة الشمسية"]
[null,null,"• Solar systems and technologies courses in educational institutions","• Solar systems and technologies courses in educational institutions","• Cours sur les systèmes et les technologies solaires des établissements d'enseignement","• Cursos de sistemas y tecnologías solares en instituciones educativas","• دورات نظم وتقنيات الطاقة الشمسية في المؤسسات التعليمية"]
[null,null,"Awareness of solar PV and irrigation technologies ","Awareness of solar PV and irrigation technologies ","Sensibilisation aux technologies PV et d’irrigation à énergie solaire","Conocimiento de tecnologías de SPIS y de riego","التوعية باستخدام الطاقة الشمسية وتقنيات الري"]
[null,null,"Solar energy","Solar energy","Énergie solaire","Energía solar","الطاقة الشمسية"]
[null,null,"Is there a cumulative increase in the installed capacity of solar energy between the years 2012 - 2020 in","Is there a cumulative increase in the installed capacity of solar energy between the years 2012 - 2020 in","Y a-t-il une augmentation cumulative de la puissance installée de l'énergie solaire entre 2012 et 2020 en","¿Ha habido un aumento cumulativo en la capacidad instalada de energía solar entre los años 2012 - 2020 en ","هل هناك زيادة تراكمية في السعة المركبة للطاقة الشمسية بين الأعوام 2012 - 2020 في"]
[null,null,"Is there a general increase in the annual net additional installed solar energy between the years 2012 - 2020 in","Is there a general increase in the annual net additional installed solar energy between the years 2012 - 2020 in","Y a-t-il une augmentation générale de l'énergie solaire nette additionnelle annuelle installée entre 2012 et 2020 en","¿Hay un aumento general en la energía solar adicional neta anual instalada entre los años 2012 - 2020 en ","هل هناك زيادة عامة في صافي الطاقة الشمسية الإضافية السنوية المركبة بين الأعوام 2012 - 2020 في"]
[null,null," What is the solar energy proportion of the total installed energy capacity?"," What is the solar energy proportion of the total installed energy capacity?"," Quelle est la part de l'énergie solaire dans la capacité énergétique totale installée ?","¿Cuál es la proporción de energía solar de la capacidad total de energía instalada?","  ما هي نسبة الطاقة الشمسية من إجمالي سعة الطاقة المركبة؟"]
[null,null,"IRENA dashboard: Trends in Renewable Energy","IRENA dashboard: Trends in Renewable Energy","IRENA dashboard: Tendances des énergies renouvelables","IRENA dashboard: Tendencias en energías renovables","IRENA dashboard: الاتجاهات في الطاقة المتجددة"]
[null,null,"Distribution networks for solar and irrigation systems","Distribution networks for solar and irrigation systems","Réseaux de distribution pour systèmes solaires et d'irrigation à énergie solaire","Redes de distribución para sistemas solares y de riego","شبكات توزيع لأنظمة الطاقة الشمسية والري"]
[null,null,"Is there a presence of suppliers and/or distributors of water pump products from global pump manufacturers in the market in","Is there a presence of suppliers and/or distributors of water pump products from global pump manufacturers in the market in","Existe-t-il des fournisseurs et/ou des distributeurs de systèmes de pompes à eau de marque mondiale sur le marché en","¿Existen proveedores y / o distribuidores de productos de bombeo de agua de fabricantes internacionales en el mercado del","هل يوجد موردون و / أو موزعون لمنتجات مضخات المياه من من الشركات المصنعة العالمية في السوق في"]
[null,null,"Is there a presence of suppliers and/or distributors of solar PV systems from global manufacturers in the market in","Is there a presence of suppliers and/or distributors of solar PV systems from global manufacturers in the market in","Existe-t-il des fournisseurs et/ou des distributeurs de systèmes photovoltaïques solaires de marque mondiale sur le marché en","¿Existen proveedores y / o distribuidores de sistemas solares de fabricantes globales en el mercado del","هل يوجد موردون و / أو موزعون لأنظمة الطاقة الشمسية الكهروضوئية من الشركات المصنعة العالمية في السوق في"]
[null,null,"• List of major water pump products and suppliers","• List of major water pump products and suppliers","• Liste des principaux systèmes et fournisseurs de pompes à eau ","• Lista de los principales productos y proveedores de bombas de agua","• قائمة المنتجات والموردين الرئيسيين لمضخات المياه"]
[null,null,"• List of major solar PV products and suppliers","• List of major solar PV products and suppliers","• Liste des principaux systèmes et fournisseurs de solaire PV ","• Lista de los principales productos y proveedores de energía solar fotovoltaica","• قائمة المنتجات والموردين الرئيسيين للطاقة الشمسية"]
[null,null,"Significance of agriculture in the local economy","Significance of agriculture in the local economy","Part de l'agriculture dans l'économie locale","Importancia de la agricultura para la economía local","أهمية الزراعة في الاقتصاد المحلي"]
[null,null,"What proportion of the employed population in","What proportion of the employed population in","Quelle proportion de la population active en","¿Qué proporción de la población ocupada en ","ما هي نسبة السكان العاملين في"]
[null,null,"are employed in the agricultural sector?","are employed in the agricultural sector?","est employée dans le secteur agricole ?","está empleada trabaja en el sector agrícola?","الذين يعملون في القطاع الزراعي؟"]
[null,null,"What proportion of the population is rural?","What proportion of the population is rural?","Quelle est la proportion de la population rurale ?","¿Qué proporción de la población es rural?","ما هي نسبة سكان الريف؟"]
[null,null,"What proportion of the GDP in","What proportion of the GDP in","Quelle part du PIB en","¿Qué proporción del PIB del","ما هي نسبة الناتج المحلي الإجمالي في"]
[null,null,"is contributed by its agricultural output?","is contributed by its agricultural output?","est apportée par sa production agricole ?","es de origen agrícola? ","التي يساهم بها ناتجها الزراعي؟"]
[null,null,"What proportion of the total land in","What proportion of the total land in","Quelle proportion du total des terres en","¿Qué proporción de la tierra total en","ما هي نسبة مجموع الأراضي في"]
[null,null,"is agricultural land?","is agricultural land?","sont des terres agricoles ?","es tierra agrícola?","هي أراضي زراعية؟"]
[null,null,"What percentage of cultivated land area in","What percentage of cultivated land area in","Quel pourcentage des terres cultivées en","¿Qué porcentaje de las tierras cultivadas en","ما هي نسبة مساحة الأرض المزروعة في"]
[null,null,"is already under irrigation?","is already under irrigation?","est déjà irrigué ?","es de regadío?","المروية بالفعل؟"]
[null,null,"World Bank; Indicators per country in 2019 (most recent year); Employment in agriculture (% of total employment)","World Bank; Indicators per country in 2019 (most recent year); Employment in agriculture (% of total employment)","Banque mondiale - Indicateurs par pays en 2019 (données les plus récentes) - Emplois dans l'agriculture (% du total des emplois)","Empleo en Agricultura\n (% del empleo total, indicadores por país en 2019, año más reciente) (Banco Mundial)","البنك الدولي؛ المؤشرات لكل بلد في عام 2019 (آخر سنة) ؛ العمالة في الزراعة (٪ من إجمالي العمالة)"]
[null,null," World Bank; Rural population (% of total population) in 2020; "," World Bank; Rural population (% of total population) in 2020; "," Banque mondiale - Population rurale (% de la population totale) en 2020"," Población rural\n (% de la población total en 2020) \n(Banco Mundial)","  البنك الدولي؛ سكان الريف (٪ من إجمالي السكان) في عام 2020 ؛"]
[null,null,"World Bank; Indicators per country in 2020  (most recent year); Agriculture, value added (% of GDP)\n","World Bank; Indicators per country in 2020  (most recent year); Agriculture, value added (% of GDP)\n","Banque mondiale - Indicateurs par pays en 2020 (données les plus récentes) - Agriculture, valeur ajoutée (% du PIB)\n","Agricultura, valor agregado \n(% del PIB, Indicadores por país en 2020, año más reciente)\n(Banco Mundial)\n","البنك الدولي ؛ المؤشرات لكل بلد في عام 2020 (آخر سنة) ؛ الزراعة ، القيمة المضافة (٪ من الناتج المحلي الإجمالي)\n"]
[null,null,"World Bank; Indicators per country in 2018  (most recent year); Agricultural land (% of land area)","World Bank; Indicators per country in 2018  (most recent year); Agricultural land (% of land area)","Banque mondiale - Indicateurs par pays en 2018 (données les plus récentes) - Terres agricoles (% du territoire)"," Tierra agrícola \n(% del área de tierra, Indicadores por país en 2018, año más reciente)\n(Banco Mundial)","بنك عالمي؛ المؤشرات لكل بلد في عام 2018 (آخر سنة) ؛ الأرض الزراعية (٪ من مساحة الأرض)"]
[null,null,"FAO, Aquastat map, Part of cultivated area under irrigation (%)","FAO, Aquastat map, Part of cultivated area under irrigation (%)","FAO, carte Aquastat - Part de la superficie cultivée irriguée (%)","Área cultivada en regadío\n (% del área total cultivada)\n(FAO, mapa Aquastat)","منظمة الأغذية والزراعة ، خريطة Aquastat ، جزء من المساحة المزروعة المروية (٪)"]
[null,null,"Land use rights, ownership and tenure ","Land use rights, ownership and tenure ","Droits d'utilisation des terres, propriété et régime foncier","Derechos de uso del suelo, propiedad y tenencia","حقوق استخدام الأراضي والملكية والحيازة"]
[null,null,"What proportion of the total land in","What proportion of the total land in","Quelle proportion de la superficie totale des terres en","¿Qué proporción de la superficie total en","ما هي نسبة إجمالي الأراضي في"]
[null,null,"is indigenous and community lands?","is indigenous and community lands?","est constituée de terres autochtones et communautaires ?","es de tierras indígenas y comunitarias?","هي أراضي السكان الأصليين والمجتمع؟"]
[null,null,"Impact of population density on SPIS","Impact of population density on SPIS","Impact de la densité de population sur les SPIS","Impacto de la densidad de población en SPIS","تأثير الكثافة السكانية على نظام SPIS"]
[null,null,"Does the population density positively or negatively affect the market for SPIS?","Does the population density positively or negatively affect the market for SPIS?","La densité de population a-t-elle un effet positif ou négatif sur le marché des SPIS ?","¿La densidad de población afecta positivamente o negativamente el mercado para SPIS?","هل الكثافة السكانية تؤثر سلبا أو إيجابا على سوق SPIS؟"]
[null,null,"Does the population density have a positive or negative effect on land availability for agriculture?","Does the population density have a positive or negative effect on land availability for agriculture?","La densité de population a-t-elle un effet positif ou négatif sur la surface de terres agricoles disponibles ?","¿Tiene la densidad de población un efecto positivo o negativo en la disponibilidad de tierras de uso agrícola?","هل الكثافة السكانية لها تأثير إيجابي أو سلبي على توافر الأراضي للزراعة؟"]
[null,null,{"$f":"HLOOKUP($C$6,$D$6:$I$701,ROW()-ROW($B$5),FALSE)","v":"Landmark: Global platform of indigenous and community lands"},"Landmark: Global platform of indigenous and community lands","LandMark : Plate-forme mondiale des terres autochtones et communautaires","LandMark: plataforma global de tierras indígenas y comunitarias","LandMark: منصة عالمية لأراضي السكان الأصليين والمجتمعات"]
[null,null,"Data Sources for Population Density","Data Sources for Population Density","Sources de données sur la densité de population","Fuentes de datos para densidad de población","مصادر البيانات للكثافة السكانية"]
[null,null,"Population Density","Population Density","Densité de population","Densidad de población","الكثافة السكانية"]
[null,null,"World Population Density Data Index Mundi","World Population Density Data Index Mundi","Index Mundi - Densité de population - Monde","Datos de Densidad de Población Mundial","بيانات الكثافة السكانية في العالم - مؤشر Mundi"]
[null,null,"Positive","Positive","Positif","Positivo","إيجابي"]
[null,null,"Negative","Negative","Négatif","Negativo","سلبي"]
[null,null,"Unkown","Unkown","Inconnu","Desconocido","مجهول"]
[null,null,"Transportation and communication infrastructure ","Transportation and communication infrastructure ","Infrastructures de transport et de communication","Infraestructura de transporte y comunicación","البنية التحتية للنقل والاتصالات"]
[null,null,{"$f":"HLOOKUP($C$6,$D$6:$I$701,ROW()-ROW($B$5),FALSE)","v":"Transport"},"Transport","Transport","Transporte","المواصلات"]
[null,null,"What is the quality of air transport infrastructure score of","What is the quality of air transport infrastructure score of","Quel est le score de qualité des infrastructures du transport aérien de","¿Cómo es la calidad de la infraestructura del transporte aéreo en","ما هي درجة جودة البنية التحتية للنقل الجوي في"]
[null,null,"What is the quality of port infrastructure score of","What is the quality of port infrastructure score of","Quel est le score de qualité des infrastructures portuaires de","¿Cómo es la calidad de la infraestructura portuaria en","ما هي درجة جودة البنية التحتية للموانئ في"]
[null,null,"What is the quality of road infrastructure score of","What is the quality of road infrastructure score of","Quel est le score de qualité des infrastructures du réseau routier de","¿Cómo es la calidad de las autovías en","ما هي درجة جودة البنية التحتية للطرق في"]
[null,null,"What is the quality of railroad infrastructure score of","What is the quality of railroad infrastructure score of","Quel est le score de qualité des infrastructures du réseau ferroviaire de","¿Cómo es la calidad de la infraestructura ferroviaria en","ما هي جودة درجة البنية التحتية للسكك الحديدية في"]
[null,null,"What is the overall logistics performance index score (2018) of","What is the overall logistics performance index score (2018) of","Quel est le niveau de l'indice de performance logistique global (2018) de","¿Qué puntuación alcanzó el índice de rendimiento logístico (2018) en","ما هي درجة مؤشر الأداء اللوجستي العام (2018) في"]
[null,null,"Global mobility data, Country snapshot ","Global mobility data, Country snapshot ","Données sur la mobilité à travers le monde - Aperçu par pays \n","Datos de movilidad global \n","بيانات التنقل العالمية ، لمحة عن البلد"]
[null,null,"Logistics performance index: Quality of trade and transport-related infrastructure (1=low to 5=high)","Logistics performance index: Quality of trade and transport-related infrastructure (1=low to 5=high)","Indice de performance logistique : Qualité de l'infrastructure commerciale et des transports (1=faible à 5=élevée)","Índice de rendimiento logístico: calidad del comercio y la infraestructura relacionada con el transporte (1 = bajo a 5 = alto)","مؤشر أداء الخدمات اللوجستية: جودة التجارة والبنية التحتية المتعلقة بالنقل (1 = منخفض إلى 5 = مرتفع)"]
[null,null,"Communication","Communication","Communication","Comunicación","التواصل"]
[null,null,"What is the mobile-cellular telephone subscriptions per 100 inhabitants value in","What is the mobile-cellular telephone subscriptions per 100 inhabitants value in","Quel est le nombre d'abonnés à des services de téléphonie mobile cellulaire pour 100 habitants en","¿Cuál es el número de suscripciones de telefonía móvil por cada 100 habitantes en","ما هو عدد المشتركين في خدمات الهاتف المحمول لكل 100 نسمة في"]
[null,null,{"$f":"HLOOKUP($C$6,$D$6:$I$701,ROW()-ROW($B$5),FALSE)","v":"What is the active mobile-broadband subscriptions per 100 inhabitants value in"},"What is the active mobile-broadband subscriptions per 100 inhabitants value in","Quel est le nombre d'abonnements actifs au haut-débit mobile pour 100 habitants en","¿Cuál es el número de suscripciones activas de banda ancha móvil por cada 100 habitantes en","ما هو عدد الاشتراكات النشطة في خدمات النطاق العريض للهواتف المحمولة لكل 100 نسمة في"]
[null,null,{"$f":"HLOOKUP($C$6,$D$6:$I$701,ROW()-ROW($B$5),FALSE)","v":"What is the overall ICT Development Index value - IDI - (2017) in"},"What is the overall ICT Development Index value - IDI - (2017) in","Quel est l'indice de développement des TIC global  - IDI - (2017) en","¿Cuál fue el valor general del Índice de Desarrollo ICT Development Index (IDI) (2017) en","ما هو مؤشر تنمية تكنولوجيا المعلومات والاتصالات العالمي - IDI - (2017) في"]
[null,null,"International Telecommunications Union, global ICT Development Index (IDI) statistics","International Telecommunications Union, global ICT Development Index (IDI) statistics","Union internationale des télécommunications, statistiques de l'indice mondial de développement des TIC (IDI)","Unión Internacional de Telecomunicaciones, estadísticas globales del ICT Development Index (IDI)","الاتحاد الدولي للاتصالات ، إحصاءات مؤشر تنمية تكنولوجيا المعلومات والاتصالات في العالم (IDI)"]
[]
[null,{"$f":"$C$12","v":"OUTPUT_Result"},"OUTPUT - Market Assessment Results","OUTPUT - Market Assessment Results","RÉSULTAT PRODUIT - Résultats de l’analyse du marché  ","SALIDA - Resultados de la Evaluación de Mercado","المخرجات - نتائج تقييم السوق"]
[null,null,"Country:","Country:","Pays :","País:","الدولة:"]
[null,null,"Specific area of interest:","Specific area of interest:","Zone spécifique concernée :","Área de interés:","منطقة الاهتمام المحدد:"]
[null,null,"Assessment date:","Assessment date:","Date d'évaluation :","Fecha de evaluación:","تاريخ التقييم:"]
[null,null,"Assessor name:","Assessor name:","Nom de l'évaluateur :","Nombre del evaluador/a:","اسم المقيم:"]
[null,null,"A. Market Potential for SPIS: Score and Relevances","A. Market Potential for SPIS: Score and Relevances","A. Potentiel de marché pour SPIS : scores et pertinences","A. Potencial de Mercado para SPIS: Puntuaciones y Relevancias","أ. إمكانات السوق لـ SPIS: النتيجة والملاءمة"]
[null,null,"Total Score (%)","Total Score (%)","Score total (%)","Puntuación Total (%)","مجموع النقاط (٪)"]
[null,null,"Overview of Relevance Ratings","Overview of Relevance Ratings","Aperçu des résultats de pertinence ","Sinopsis de las Valoraciones de Relevancia","نظرة عامة على تقييمات الملاءمة"]
[null,null,"B. Market Potential for SPIS: Overall Score","B. Market Potential for SPIS: Overall Score","B. Potentiel de marché pour SPIS : score global","B. Potencial de Mercado para SPIS: Puntuación Total","ب. إمكانات السوق لـ SPIS: النتيجة الإجمالية"]
[null,null,"Attained Score as % of Highest Possible Score","Attained Score as % of Highest Possible Score","Score obtenu en % du score maximum possible ","Puntuación obtenida en porcentaje de la puntuación máxima posible","النتيجة المحققة كنسبة مئوية من أعلى نتيجة ممكنة"]
[null,null,"Geophysical Parameters","Geophysical Parameters","Paramètres géophysiques","Parámetros Geofísicos","المعلمات الجيوفيزيائية"]
[null,null,"Government interventions","Government interventions","Action gouvernementale","Intervenciones del gobierno","عمل الحكومة"]
[null,null,"Development organizations interventions","Development organizations interventions","Action des agences de développement","Intervenciones de organizaciones de desarrollo","عمل منظمات التنمية"]
[null,null,"Financing","Financing","Financement","Financiación","التمويل"]
[null,null,"Availability and cost of alternatives","Availability and cost of alternatives","Disponibilité et coûts des énergies non solaires","Disponibilidad y Costo de Alternativas","توافر وتكاليف الطاقة غير الشمسية"]
[null,null,"Technical capacity for SPIS","Technical capacity for SPIS","Capacité technique","Capacidad Técnica","القدرة التقنية لنظام SPIS"]
[null,null,"Awareness of solar PV and irrigation technologies","Awareness of solar PV and irrigation technologies","Sensibilisation aux technologies PV et d'irrigation à énergie solaire","Conocimiento de las Tecnologías SPIS","الوعي بتقنيات الري الكهروضوئي والطاقة الشمسية"]
[null,null,"Significance of agriculture to the local economy","Significance of agriculture to the local economy","Importance de l'agriculture pour l'économie locale","Importancia de la Agricultura para la Economía Local","أهمية الزراعة للاقتصاد المحلي"]
[null,null,"Land use rights, ownership, and tenure","Land use rights, ownership, and tenure","Régime foncier","Tenencia de la Tierra","حقوق استخدام الأراضي والملكية والحيازة"]
[null,null,"Transport and communication infrastructure","Transport and communication infrastructure","Infrastructures de transport et de communication","Infraestructura de transporte y comunicación","البنية التحتية للنقل والاتصالات"]
[null,null,"Major Market Barrier","Major Market Barrier","Obstacle majeur à l'accès au marché","Barreras de Mercado Altas","حاجز السوق رئيسي"]
[null,null,"Minor Market Barrier","Minor Market Barrier","Obstacle mineur à l'accès au marché","Barreras de Mercado Bajas","حاجز السوق طفيف"]
[null,null,"Minor Market Strength","Minor Market Strength","Puissance de marché mineure","Fuerza de Mercado Baja","قوة السوق طفيفة"]
[null,null,"Major Market Strength","Major Market Strength","Puissance de marché majeure","Mayor Fuerza de Mercado ","قوة السوق رئيسية"]
[null,null,"C. Market Potential for SPIS: Comparative Score to Weight Setting","C. Market Potential for SPIS: Comparative Score to Weight Setting","C. Potentiel de marché pour SPIS : Score comparé à la pondération","C. Potencial de Mercado de SPIS: Puntuación Comparada con el Ajuste de Valoración","ج. إمكانات السوق لـ SPIS: مقارنة النتيجة بتحديد الاهمية"]
[null,null,"Attained Score  (%) in relation to Weight Setting","Attained Score  (%) in relation to Weight Setting","Score obtenu  (%) par rapport à la pondération","Puntuación Obtenida (%) en Relación con el Ajuste de Valoración ","النتيجة المحققة ٪ فيما يتعلق بتحديد الاهمية"]
[null,null,"Initial weight setting","Initial weight setting","Pondération initiale","Ajuste de valoración inicial","تحديد الاهمية الأولي"]
[null,null,"Actually attained score ","Actually attained score ","Score actuellement obtenu ","Puntuación obtenida realmente","النتيجة التي تم تحقيقها بالفعل"]
[]
[null,"From \"List 2\" worksheet","Got more recent data sources? ","Got more recent data sources? ","Vous disposez de sources de données plus actuelles? ","¿Conoce fuentes de datos más recientes?","هل لديك المزيد من مصادر البيانات الحديثة؟"]
[null,null,"PLEASE SHARE ","PLEASE SHARE ","MERCI DE NOUS LES COMMUNIQUER","POR FAVOR COMPARTA","نشكرك على التواصل معنا"]
[null,null," and help us to improve our tools."," and help us to improve our tools."," et de nous aider à améliorer cet outil.","y ayúdenos a mejorar nuestras herramientas.","  وساعدنا في تحسين هذه الأداة."]
[null,null,"Thank you.","Thank you.","Nous apprécions votre coopération.","Gracias","نقدر تعاونكم."]
[null,null,0]
[null,null,0]
[null,null,0]
[null,null,0]
[null,null,0]
[null,null,0]
[null,null,0]
[null,null,0]
[null,null,0]
[null,null,0]
[null,null,0]
[null,null,0]
[null,null,0]
[null,null,0]
[null,null,0]
[null,null,0]
[null,null,0]
[null,null,{"$f":"HLOOKUP($C$6,$D$6:$I$701,ROW()-ROW($B$5),FALSE)","v":0}]
[null,null,0]
[null,null,0]
[null,null,0]
[null,null,0]
[null,null,0]
[null,null,0]
[null,null,0]
[null,null,0]
[null,null,0]
[null,null,0]
[null,null,0]
[null,null,0]
[null,null,0]
[null,null,0]
[null,null,0]
[null,null,0]
[null,null,0]
[null,null,0]
[null,null,0]
[null,null,0]
[null,null,0]
[null,null,0]
[null,null,0]
[null,null,0]
[null,null,0]
[null,null,0]
[null,null,0]
[null,null,0]

{"sheet":"Calculations","index":7,"n_rows":36,"n_cols":7,"rows_kept":36,"cut":false,"hidden":true,"merged":[]}
[]
[]
[null,"Enabling SPIS Business Factors",{"$f":"Translate!C625","v":"Initial weight setting"},{"$f":"Translate!C626","v":"Actually attained score "},"Difference ",null,"Attained Score"]
[1,"Geophysical Parameters",{"$f":"'INPUT_Geophysical Parameters'!E6","v":0.1},{"$f":"'INPUT_Geophysical Parameters'!F6","v":9.0000000000000011E-2},{"$f":"C4-D4","v":9.999999999999995E-3},{"$f":"100%-C4","v":0.9},{"$f":"D4/C4","v":0.9}]
[2,"Government interventions",{"$f":"'INPUT_Business Conditions'!E6","v":0.1},{"$f":"'INPUT_Business Conditions'!F6","v":0.1},{"$f":"C5-D5","v":0},{"$f":"100%-C5","v":0.9},{"$f":"D5/C5","v":1}]
[3,"Development Organizations Interventions",{"$f":"'INPUT_Business Conditions'!E15","v":0.1},{"$f":"'INPUT_Business Conditions'!F15","v":0.1},{"$f":"C6-D6","v":0},{"$f":"100%-C6","v":0.9},1]
[4,"Financing",{"$f":"'INPUT_Business Conditions'!E23","v":0.1},{"$f":"'INPUT_Business Conditions'!F23","v":0.1},0,0.9,1]
[5,"Availability  and cost of alternative sources of power for pumping",{"$f":"'INPUT_Business Conditions'!E36","v":0.1},{"$f":"'INPUT_Business Conditions'!F36","v":8.3333333333333332E-3},9.1666666666666674E-2,0.9,8.3333333333333329E-2]
[6,"Technical capacity for SPIS",{"$f":"'INPUT_Business Conditions'!E54","v":0.1},{"$f":"'INPUT_Business Conditions'!F54","v":0.1},0,0.9,1]
[7,"Awareness of solar PV and irrigation technologies ",{"$f":"'INPUT_Business Conditions'!E61","v":0.1},{"$f":"'INPUT_Business Conditions'!F61","v":9.1666666666666674E-2},8.3333333333333315E-3,0.9,0.91666666666666674]
[8,"Significance of agriculture in the local economy",{"$f":"'INPUT_Business Conditions'!E72","v":0.1},{"$f":"'INPUT_Business Conditions'!F72","v":0.05},0.05,0.9,0.5]
[9,"Land use rights, ownership and tenure ",{"$f":"'INPUT_Business Conditions'!E81","v":0.1},{"$f":"'INPUT_Business Conditions'!F81","v":8.3333333333333343E-2},1.6666666666666663E-2,0.9,0.83333333333333337]
[10,"Transportation and communication infrastructure ",{"$f":"'INPUT_Business Conditions'!E91","v":0.1},{"$f":"'INPUT_Business Conditions'!F91","v":0.05},0.05,0.9,0.5]
[null,null,{"$f":"SUM(C4:C13)","v":0.99999999999999989},{"$f":"SUM(D4:D13)","v":0.77333333333333354},{"$f":"C14-D14","v":0.22666666666666635}]
[]
[]
[]
[]
[]
[]
[null,"GEOPHYSICAL Parameters "]
[null,null,"Doughnut","Pie"]
[null,"Red Zone",30,{"$f":"IF('INPUT_Pre-check'!T14=0,10, IF('INPUT_Pre-check'!T14=1,7, IF('INPUT_Pre-check'!T14=2,14, IF('INPUT_Pre-check'!T14=3,21, IF('INPUT_Pre-check'!T14=4,30, IF('INPUT_Pre-check'!T14=5,45, IF('INPUT_Pre-check'!T14=6,60, IF('INPUT_Pre-check'!T14=7,75, IF('INPUT_Pre-check'!T14=8,100,115)))))))))","v":100},"Value"]
[null,"Orange Zone",30,1,"Ticker"]
[null,"Yellow Zone",30,{"$f":"240-D23-D24","v":139},"Rest Value"]
[null,"Green Zone",30]
[null,"Hidden Zone",120]
[]
[]
[null,"Relevance","Business","Geophysical","Total"]
[null,{"$f":"'Lists 2'!M2","v":"Inconsequential"},{"$f":"(COUNTIF('INPUT_Business Conditions'!$F$8:$F$102,Calculations!B31))/44","v":0.90909090909090906},{"$f":"(COUNTIF('INPUT_Geophysical Parameters'!$F$8:$F$11,Calculations!B31))/44","v":9.0909090909090912E-2},{"$f":"SUM(C31:D31)","v":1}]
[null,{"$f":"'Lists 2'!M3","v":"Slightly important"},{"$f":"(COUNTIF('INPUT_Business Conditions'!$F$8:$F$102,Calculations!B32))/44","v":0},{"$f":"(COUNTIF('INPUT_Geophysical Parameters'!$F$8:$F$11,Calculations!B32))/44","v":0},{"$f":"SUM(C32:D32)","v":0}]
[null,{"$f":"'Lists 2'!M4","v":"Important"},{"$f":"(COUNTIF('INPUT_Business Conditions'!$F$8:$F$102,Calculations!B33))/44","v":0},{"$f":"(COUNTIF('INPUT_Geophysical Parameters'!$F$8:$F$11,Calculations!B33))/44","v":0},{"$f":"SUM(C33:D33)","v":0}]
[null,{"$f":"'Lists 2'!M5","v":"Very important"},{"$f":"(COUNTIF('INPUT_Business Conditions'!$F$8:$F$102,Calculations!B34))/44","v":0},{"$f":"(COUNTIF('INPUT_Geophysical Parameters'!$F$8:$F$11,Calculations!B34))/44","v":0},{"$f":"SUM(C34:D34)","v":0}]
[null,{"$f":"'Lists 2'!M6","v":"Critical"},{"$f":"(COUNTIF('INPUT_Business Conditions'!$F$8:$F$102,Calculations!B35))/44","v":0},{"$f":"(COUNTIF('INPUT_Geophysical Parameters'!$F$8:$F$11,Calculations!B35))/44","v":0},{"$f":"SUM(C35:D35)","v":0}]
[null,null,{"$f":"SUM(C31:C35)","v":0.90909090909090906},{"$f":"SUM(D31:D35)","v":9.0909090909090912E-2},{"$f":"SUM(E31:E35)","v":1}]

{"sheet":"Lists","index":8,"n_rows":228,"n_cols":7,"rows_kept":228,"cut":false,"hidden":true,"merged":[]}
["Countries","List of possible* development agencies and multilateral organizations: ","List of possible* facilities and funds:","List of possible* research centers and other NGOs:","Rural MPI","GNI per Capita","pump manufacturers"]
["Afghanistan ","African Development Bank","CTF (Clean Technology Fund)","AAA (Adaptation of African Agriculture)","0.10 - 1.86","Low income ($1,005 or less)","AllightSykes"]
["Albania ","CGIAR (Climate Change, Agriculture and Food Security)","EcoMicro","AGRA","1.87 - 8.80","Lower Middle Income ($1,006 to $3,955)","Ebara"]
["Algeria ","DFID ( Department for International Development - United Kingdom)","GEF (Global Environment Facility)","Energy 4Impact","8.81 - 26.06","Upper Middle Income ($3,956 to $12,235)","Flowserve"]
["American Samoa ","FAO (Food and Agriculture Organization) ","GPOBA (Global Partnershi on Output Based Aid)","IFPRI (International Food Policy Research Institute)","26.07 - 48.54","High Income ($12.236 or more)","Grundfos"]
["Andorra ","GACSA (Global Alliance For Climate-Smart Agriculture)","ICBA","Lutheran World Relief","48.55 - 68.29",null,"Kirloskar Brothers Lt"]
["Angola ","GIZ (Deutsche Gesellschaft für Internationale Zusammenarbeit GmbH)","ICBA (International Center for Biosaline Agriculture)","The Practica Foundation","68.30 - 84.33",null,"KSB"]
["Anguilla ","IFAD (International Fund for Agriculture Development)",null,null,"84.34 - 96.90",null,"Lorentz"]
["Antigua & Barbuda ","JICA (Japan International Cooperation Agency)",null,null,"No data",null,"Ruhrpumpen Group"]
["Argentina ","Nordic Development Fund",null,null,null,null,"Suzler Ltd"]
["Armenia ","OECD (Organisation for Economic Co-operation and Development)",null,null,null,null,"Weir Group"]
["Aruba ","OFID (OPEC Fund for International Development)",null,null,null,null,"Wilo SE"]
["Australia ","SIDA (Swedish International Development Cooperation Agency)",null,null,null,null,"Xylem"]
["Austria ","USAID"]
["Azerbaijan ","World Bank Group"]
["Bahamas, The ","World Food Programme"]
["Bahrain "]
["Bangladesh "]
["Barbados "]
["Belarus "]
["Belgium "]
["Belize "]
["Benin "]
["Bermuda "]
["Bhutan "]
["Bolivia "]
["Bosnia & Herzegovina "]
["Botswana "]
["Brazil "]
["British Virgin Is. "]
["Brunei "]
["Bulgaria "]
["Burkina Faso "]
["Burma "]
["Burundi "]
["Cambodia "]
["Cameroon "]
["Canada "]
["Cape Verde "]
["Cayman Islands "]
["Central African Rep. "]
["Chad "]
["Chile "]
["China "]
["Colombia "]
["Comoros "]
["Congo, Dem. Rep. "]
["Congo, Repub. of the "]
["Cook Islands "]
["Costa Rica "]
["Cote d'Ivoire "]
["Croatia "]
["Cuba "]
["Cyprus "]
["Czech Republic "]
["Denmark "]
["Djibouti "]
["Dominica "]
["Dominican Republic "]
["East Timor "]
["Ecuador "]
["Egypt "]
["El Salvador "]
["Equatorial Guinea "]
["Eritrea "]
["Estonia "]
["Ethiopia "]
["Faroe Islands "]
["Fiji "]
["Finland "]
["France "]
["French Guiana "]
["French Polynesia "]
["Gabon "]
["Gambia, The "]
["Gaza Strip "]
["Georgia "]
["Germany "]
["Ghana "]
["Gibraltar "]
["Greece "]
["Greenland "]
["Grenada "]
["Guadeloupe "]
["Guam "]
["Guatemala "]
["Guernsey "]
["Guinea "]
["Guinea-Bissau "]
["Guyana "]
["Haiti "]
["Honduras "]
["Hong Kong "]
["Hungary "]
["Iceland "]
["India "]
["Indonesia "]
["Iran "]
["Iraq "]
["Ireland "]
["Isle of Man "]
["Israel "]
["Italy "]
["Jamaica "]
["Japan "]
["Jersey "]
["Jordan "]
["Kazakhstan "]
["Kenya "]
["Kiribati "]
["Korea, North "]
["Korea, South "]
["Kuwait "]
["Kyrgyzstan "]
["Laos "]
["Latvia "]
["Lebanon "]
["Lesotho "]
["Liberia "]
["Libya "]
["Liechtenstein "]
["Lithuania "]
["Luxembourg "]
["Macau "]
["Macedonia "]
["Madagascar "]
["Malawi "]
["Malaysia "]
["Maldives "]
["Mali "]
["Malta "]
["Marshall Islands "]
["Martinique "]
["Mauritania "]
["Mauritius "]
["Mayotte "]
["Mexico "]
["Micronesia, Fed. St. "]
["Moldova "]
["Monaco "]
["Mongolia "]
["Montserrat "]
["Morocco "]
["Mozambique "]
["Namibia "]
["Nauru "]
["Nepal "]
["Netherlands "]
["Netherlands Antilles "]
["New Caledonia "]
["New Zealand "]
["Nicaragua "]
["Niger "]
["Nigeria "]
["N. Mariana Islands "]
["Norway "]
["Oman "]
["Pakistan "]
["Palau "]
["Panama "]
["Papua New Guinea "]
["Paraguay "]
["Peru "]
["Philippines "]
["Poland "]
["Portugal "]
["Puerto Rico "]
["Qatar "]
["Reunion "]
["Romania "]
["Russia "]
["Rwanda "]
["Saint Helena "]
["Saint Kitts & Nevis "]
["Saint Lucia "]
["St Pierre & Miquelon "]
["Saint Vincent and the Grenadines "]
["Samoa "]
["San Marino "]
["Sao Tome & Principe "]
["Saudi Arabia "]
["Senegal "]
["Serbia "]
["Seychelles "]
["Sierra Leone "]
["Singapore "]
["Slovakia "]
["Slovenia "]
["Solomon Islands "]
["Somalia "]
["South Africa "]
["Spain "]
["Sri Lanka "]
["Sudan "]
["Suriname "]
["Swaziland "]
["Sweden "]
["Switzerland "]
["Syria "]
["Taiwan "]
["Tajikistan "]
["Tanzania "]
["Thailand "]
["Togo "]
["Tonga "]
["Trinidad & Tobago "]
["Tunisia "]
["Turkey "]
["Turkmenistan "]
["Turks & Caicos Is "]
["Tuvalu "]
["Uganda "]
["Ukraine "]
["United Arab Emirates "]
["United Kingdom "]
["United States "]
["Uruguay "]
["Uzbekistan "]
["Vanuatu "]
["Venezuela "]
["Vietnam "]
["Virgin Islands "]
["Wallis and Futuna "]
["West Bank "]
["Western Sahara "]
["Yemen "]
["Zambia "]
["Zimbabwe "]

{"sheet":"Lists 2","index":9,"n_rows":197,"n_cols":36,"rows_kept":197,"cut":false,"hidden":true,"merged":[]}
["Land Cover","Suitability","Weight Setting","Weight","Country",null,null,"Solar Ranges",null,"Groundwater Depth","Weight",null,"Relevance","Weight 1","Weight 2",null,"Ambient temperature",null,"Topography","Weight",null,"Farming System","Weight",null,"Population Density",null,{"$f":"Translate!C438","v":"List of possible* development agencies and multilateral organizations: "},null,{"$f":"Translate!C454","v":"List of possible* facilities and funds:"},null,{"$f":"Translate!C461","v":"List of possible* research centers and other NGOs:"},null,"GNI per Capita","Weight",null,"Pump manufacturers"]
[{"$f":"Translate!C288","v":"Cropland, rainfed"},{"$f":"Translate!$C$305","v":"Highly Suitable"},{"$f":"Translate!$C$359","v":"Ignore"},0,{"$f":"Translate!C91","v":"Select the country of Interest"},null,null,"0 - 948",null,{"$f":"Translate!C385","v":"Up to 7 m"},1,null,{"$f":"Translate!$C$360","v":"Inconsequential"},6,6,null,{"$f":"Translate!C391","v":"Below 1 °C"},null,{"$f":"Translate!C393","v":"Flat"},1,null,{"$f":"Translate!C396","v":"Seasonal Crops"},0.6,null,"<1",null,{"$f":"Translate!C439","v":"African Development Bank"},null,{"$f":"Translate!C455","v":"CTF (Clean Technology Fund)"},null,{"$f":"Translate!C462","v":"AAA (Adaptation of African Agriculture)"},null,{"$f":"Translate!C477","v":"Low income ($1,005 or less)"},1,null,"AllightSykes"]
[{"$f":"Translate!C289","v":"Cropland irrigated or post-flooding"},{"$f":"Translate!$C$305","v":"Highly Suitable"},{"$f":"Translate!$C$360","v":"Inconsequential"},2,{"$f":"Translate!C92","v":"Afghanistan"},null,null,"949 - 1094",null,{"$f":"Translate!C386","v":"7 m - 25 m"},0.8,null,{"$f":"Translate!$C$361","v":"Slightly important"},5,4,null,{"$f":"Translate!C392","v":"1 °C to 30 °C"},null,{"$f":"Translate!C394","v":"Moderate"},0.8,null,{"$f":"Translate!C397","v":"Perennial Crops"},0.8,null,"1 - 5",null,{"$f":"Translate!C440","v":"CGIAR (Consultative Group for International Agricultural Research)"},null,{"$f":"Translate!C456","v":"EcoMicro"},null,{"$f":"Translate!C463","v":"AGRA"},null,{"$f":"Translate!C478","v":"Lower Middle Income ($1,006 to $3,955)"},2,null,"Ebara"]
[{"$f":"Translate!C290","v":"Mosaic crop land with natural vegetation"},{"$f":"Translate!$C$305","v":"Highly Suitable"},{"$f":"Translate!$C$361","v":"Slightly important"},4,{"$f":"Translate!C93","v":"Albania"},null,null,"1095 - 1460",null,{"$f":"Translate!C387","v":"25 m - 50 m"},0.6,null,{"$f":"Translate!$C$362","v":"Important"},4,2,null,null,null,{"$f":"Translate!C395","v":"Steep"},0.6,null,{"$f":"Translate!C398","v":"Small Livestock"},1,null,"5 - 25",null,{"$f":"Translate!C441","v":"DFID (Department for International Development - United Kingdom)"},null,{"$f":"Translate!C457","v":"GEF (Global Environment Facility)"},null,{"$f":"Translate!C464","v":"Energy 4Impact"},null,{"$f":"Translate!C479","v":"Upper Middle Income ($3,956 to $12,235)"},4,null,"Flowserve"]
[{"$f":"Translate!C291","v":"Light forest open (tree cover up to 40%)"},{"$f":"Translate!$C$306","v":"Moderately Suitable"},{"$f":"Translate!$C$362","v":"Important"},6,{"$f":"Translate!C94","v":"Algeria"},null,null,{"$f":"Translate!$C$309","v":"Above 1460"},null,{"$f":"Translate!C388","v":"50 m - 100 m"},0.1,null,{"$f":"Translate!$C$363","v":"Very important"},3,1,null,null,null,null,null,null,{"$f":"Translate!C399","v":"Large Livestock"},0.9,null,"25 - 250",null,{"$f":"Translate!C442","v":"FAO (Food and Agriculture Organization) "},null,{"$f":"Translate!C458","v":"GPRBA (Global Partnership for Results-Based Approaches)"},null,{"$f":"Translate!C465","v":"IFPRI (International Food Policy Research Institute)"},null,{"$f":"Translate!C480","v":"High Income ($12.236 or more)"},5,null,"Grundfos"]
[{"$f":"Translate!C292","v":"Medium forest open to closed (tree cover above 40%)"},{"$f":"Translate!$C$307","v":"Marginally Suitable"},{"$f":"Translate!$C$363","v":"Very important"},8,{"$f":"Translate!C95","v":"Andorra"},null,null,null,null,{"$f":"Translate!C389","v":"Beyond 100 m"},0,null,{"$f":"Translate!$C$364","v":"Critical"},2,0,null,null,null,null,null,null,{"$f":"Translate!C400","v":"Seasonal and Perennial Crops"},0.7,null,"250 - 1000",null,{"$f":"Translate!C443","v":"GACSA (Global Alliance For Climate-Smart Agriculture)"},null,{"$f":"Translate!C459","v":"ICBA"},null,{"$f":"Translate!C466","v":"Lutheran World Relief"},null,null,null,null,"Kirloskar Brothers Lt"]
[{"$f":"Translate!C293","v":"Dense forest closed (tree cover above 40%)"},{"$f":"Translate!$C$308","v":"Not Suitable"},{"$f":"Translate!$C$364","v":"Critical"},10,{"$f":"Translate!C96","v":"Angola"},null,null,null,null,{"$f":"Translate!C390","v":"Unknown"},0,null,null,null,null,null,null,null,null,null,null,{"$f":"Translate!C401","v":"Livestock and Crops"},0.7,null,">1000",null,{"$f":"Translate!C444","v":"GIZ (German Corporation for International Cooperation GmbH)"},null,{"$f":"Translate!C460","v":"ICBA (International Center for Biosaline Agriculture)"},null,{"$f":"Translate!C467","v":"The Practica Foundation"},null,null,null,null,"KSB"]
[{"$f":"Translate!C294","v":"Shrubland"},{"$f":"Translate!$C$306","v":"Moderately Suitable"},null,null,{"$f":"Translate!C97","v":"Antigua and Barbuda"},null,null,null,null,null,null,null,null,null,null,null,null,null,null,null,null,null,null,null,null,null,{"$f":"Translate!C445","v":"IFAD (International Fund for Agriculture Development)"},null,null,null,null,null,null,null,null,"Lorentz"]
[{"$f":"Translate!C295","v":"Grassland"},{"$f":"Translate!$C$306","v":"Moderately Suitable"},null,null,{"$f":"Translate!C98","v":"Argentina"},null,null,null,null,null,null,null,"for INPUT_Business Conditions",null,null,null,null,null,null,null,null,null,null,null,null,null,{"$f":"Translate!C446","v":"JICA (Japan International Cooperation Agency)"},null,null,null,null,null,null,null,null,"Ruhrpumpen Group"]
[{"$f":"Translate!C296","v":"Lichens and mosses"},{"$f":"Translate!$C$307","v":"Marginally Suitable"},null,null,{"$f":"Translate!C99","v":"Armenia"},null,null,null,null,null,"YES/NO",null,"Relevance","Weight 1","Weight 3",null,"Relevance",null,null,null,null,"Outage frequency","Weight",null,"Population",null,{"$f":"Translate!C447","v":"Nordic Development Fund"},null,null,null,null,null,null,null,null,"Suzler Ltd"]
[{"$f":"Translate!C297","v":"Semi arid sparse vegetation"},{"$f":"Translate!$C$306","v":"Moderately Suitable"},null,null,{"$f":"Translate!C100","v":"Australia"},null,null,null,null,null,{"$f":"Translate!C427","v":"Yes"},null,{"$f":"Translate!$C$360","v":"Inconsequential"},6,3,null,{"$f":"Translate!$C$362","v":"Important"},null,null,null,null,{"$f":"Translate!$C$533","v":"Low"},1,null,{"$f":"Translate!C581","v":"Positive"},null,{"$f":"Translate!C448","v":"OECD (Organisation for Economic Co-operation and Development)"},null,null,null,null,null,null,null,null,"Weir Group"]
[{"$f":"Translate!C298","v":"Flood plains fresh water"},{"$f":"Translate!$C$307","v":"Marginally Suitable"},null,null,{"$f":"Translate!C101","v":"Austria"},null,null,null,null,null,{"$f":"Translate!$C$428","v":"No"},null,{"$f":"Translate!$C$361","v":"Slightly important"},5,2,null,{"$f":"Translate!$C$360","v":"Inconsequential"},null,null,null,null,{"$f":"Translate!$C$534","v":"Regular"},2,null,{"$f":"Translate!C582","v":"Negative"},null,{"$f":"Translate!C449","v":"OFID (OPEC Fund for International Development)"},null,null,null,null,null,null,null,null,"Wilo SE"]
[{"$f":"Translate!C299","v":"Flood plains brackish water"},{"$f":"Translate!$C$308","v":"Not Suitable"},null,null,{"$f":"Translate!C102","v":"Azerbaijan"},null,null,null,null,null,{"$f":"Translate!$C$429","v":"Unknown"},null,{"$f":"Translate!$C$362","v":"Important"},4,1,null,null,null,null,null,null,{"$f":"Translate!$C$535","v":"High"},4,null,{"$f":"Translate!C583","v":"Unkown"},null,{"$f":"Translate!C450","v":"SIDA (Swedish International Development Cooperation Agency)"},null,null,null,null,null,null,null,null,"Xylem"]
[{"$f":"Translate!C300","v":"Urban areas"},{"$f":"Translate!$C$308","v":"Not Suitable"},null,null,{"$f":"Translate!C103","v":"Bahamas "},null,null,null,null,null,null,null,{"$f":"Translate!$C$363","v":"Very important"},3,1,null,null,null,null,null,null,{"$f":"Translate!$C$536","v":"Very High"},5,null,null,null,{"$f":"Translate!C451","v":"USAID (United States Agency for International Development)"}]
[{"$f":"Translate!C301","v":"Bare areas (sand dunes, gravel plains, etc)"},{"$f":"Translate!$C$307","v":"Marginally Suitable"},null,null,{"$f":"Translate!C104","v":"Bahrain"},null,null,null,null,null,null,null,{"$f":"Translate!$C$364","v":"Critical"},2,0,null,null,null,null,null,null,null,null,null,null,null,{"$f":"Translate!C452","v":"World Bank Group"}]
[{"$f":"Translate!C302","v":"Water bodies"},{"$f":"Translate!$C$308","v":"Not Suitable"},null,null,{"$f":"Translate!C105","v":"Bangladesh"},null,null,null,null,null,null,null,null,null,null,null,null,null,null,null,null,null,null,null,null,null,{"$f":"Translate!C453","v":"World Food Programme"}]
[{"$f":"Translate!C303","v":"Permanent snow and ice"},{"$f":"Translate!$C$308","v":"Not Suitable"},null,null,{"$f":"Translate!C106","v":"Barbados"},null,null,null,null,null,null,null,"Weight 1","Used for the formula corresponding to the scroe of groundwater depth"]
[null,null,null,null,{"$f":"Translate!C107","v":"Belarus"},null,null,null,null,null,null,null,null,"Used for the formula corresponding to the score of topography"]
[null,null,null,null,{"$f":"Translate!C108","v":"Belgium"},null,null,null,null,null,null,null,null,"Used for the formula corresponding to the score of farming systems"]
[null,null,null,null,{"$f":"Translate!C109","v":"Belize"},null,null,null,null,null,null,null,"Weight 1, Weight 2","Used for the formula corresponding to the scroe of ambient temperature"]
[null,null,null,null,{"$f":"Translate!C110","v":"Benin"},null,null,null,null,null,null,null,"Weight 1, Weight 3","Used for the formula corresponding to the scroe of organizations"]
[null,null,null,null,{"$f":"Translate!C111","v":"Bhutan"}]
[null,null,null,null,{"$f":"Translate!C112","v":"Bolivia "}]
[null,null,null,null,{"$f":"Translate!C113","v":"Bosnia and Herzegovina"}]
[null,null,null,null,{"$f":"Translate!C114","v":"Botswana"}]
[null,null,null,null,{"$f":"Translate!C115","v":"Brazil"}]
[null,null,null,null,{"$f":"Translate!C116","v":"Brunei Darussalam"}]
[null,null,null,null,{"$f":"Translate!C117","v":"Bulgaria"}]
[null,null,null,null,{"$f":"Translate!C118","v":"Burkina Faso"}]
[null,null,null,null,{"$f":"Translate!C119","v":"Burundi"}]
[null,null,null,null,{"$f":"Translate!C120","v":"Cabo Verde"}]
[null,null,null,null,{"$f":"Translate!C121","v":"Cambodia"}]
[null,null,null,null,{"$f":"Translate!C122","v":"Cameroon"}]
[null,null,null,null,{"$f":"Translate!C123","v":"Canada"}]
[null,null,null,null,{"$f":"Translate!C124","v":"Central African Republic "}]
[null,null,null,null,{"$f":"Translate!C125","v":"Chad"}]
[null,null,null,null,{"$f":"Translate!C126","v":"Chile"}]
[null,null,null,null,{"$f":"Translate!C127","v":"China"}]
[null,null,null,null,{"$f":"Translate!C128","v":"Colombia"}]
[null,null,null,null,{"$f":"Translate!C129","v":"Comoros "}]
[null,null,null,null,{"$f":"Translate!C130","v":"Congo "}]
[null,null,null,null,{"$f":"Translate!C131","v":"Cook Islands "}]
[null,null,null,null,{"$f":"Translate!C132","v":"Costa Rica"}]
[null,null,null,null,{"$f":"Translate!C133","v":"Côte d'Ivoire"}]
[null,null,null,null,{"$f":"Translate!C134","v":"Croatia"}]
[null,null,null,null,{"$f":"Translate!C135","v":"Cuba"}]
[null,null,null,null,{"$f":"Translate!C136","v":"Cyprus"}]
[null,null,null,null,{"$f":"Translate!C137","v":"Czechia"}]
[null,null,null,null,{"$f":"Translate!C138","v":"Democratic People's Republic of Korea "}]
[null,null,null,null,{"$f":"Translate!C139","v":"Democratic Republic of the Congo "}]
[null,null,null,null,{"$f":"Translate!C140","v":"Denmark"}]
[null,null,null,null,{"$f":"Translate!C141","v":"Djibouti"}]
[null,null,null,null,{"$f":"Translate!C142","v":"Dominica"}]
[null,null,null,null,{"$f":"Translate!C143","v":"Dominican Republic "}]
[null,null,null,null,{"$f":"Translate!C144","v":"Ecuador"}]
[null,null,null,null,{"$f":"Translate!C145","v":"Egypt"}]
[null,null,null,null,{"$f":"Translate!C146","v":"El Salvador"}]
[null,null,null,null,{"$f":"Translate!C147","v":"Equatorial Guinea"}]
[null,null,null,null,{"$f":"Translate!C148","v":"Eritrea"}]
[null,null,null,null,{"$f":"Translate!C149","v":"Estonia"}]
[null,null,null,null,{"$f":"Translate!C150","v":"Eswatini"}]
[null,null,null,null,{"$f":"Translate!C151","v":"Ethiopia"}]
[null,null,null,null,{"$f":"Translate!C152","v":"Fiji"}]
[null,null,null,null,{"$f":"Translate!C153","v":"Finland"}]
[null,null,null,null,{"$f":"Translate!C154","v":"France"}]
[null,null,null,null,{"$f":"Translate!C155","v":"Gabon"}]
[null,null,null,null,{"$f":"Translate!C156","v":"Gambia "}]
[null,null,null,null,{"$f":"Translate!C157","v":"Georgia"}]
[null,null,null,null,{"$f":"Translate!C158","v":"Germany"}]
[null,null,null,null,{"$f":"Translate!C159","v":"Ghana"}]
[null,null,null,null,{"$f":"Translate!C160","v":"Greece"}]
[null,null,null,null,{"$f":"Translate!C161","v":"Grenada"}]
[null,null,null,null,{"$f":"Translate!C162","v":"Guatemala"}]
[null,null,null,null,{"$f":"Translate!C163","v":"Guinea"}]
[null,null,null,null,{"$f":"Translate!C164","v":"Guinea-Bissau"}]
[null,null,null,null,{"$f":"Translate!C165","v":"Guyana"}]
[null,null,null,null,{"$f":"Translate!C166","v":"Haiti"}]
[null,null,null,null,{"$f":"Translate!C167","v":"Honduras"}]
[null,null,null,null,{"$f":"Translate!C168","v":"Hungary"}]
[null,null,null,null,{"$f":"Translate!C169","v":"Iceland"}]
[null,null,null,null,{"$f":"Translate!C170","v":"India"}]
[null,null,null,null,{"$f":"Translate!C171","v":"Indonesia"}]
[null,null,null,null,{"$f":"Translate!C172","v":"Iran "}]
[null,null,null,null,{"$f":"Translate!C173","v":"Iraq"}]
[null,null,null,null,{"$f":"Translate!C174","v":"Ireland"}]
[null,null,null,null,{"$f":"Translate!C175","v":"Israel"}]
[null,null,null,null,{"$f":"Translate!C176","v":"Italy"}]
[null,null,null,null,{"$f":"Translate!C177","v":"Jamaica"}]
[null,null,null,null,{"$f":"Translate!C178","v":"Japan"}]
[null,null,null,null,{"$f":"Translate!C179","v":"Jordan"}]
[null,null,null,null,{"$f":"Translate!C180","v":"Kazakhstan"}]
[null,null,null,null,{"$f":"Translate!C181","v":"Kenya"}]
[null,null,null,null,{"$f":"Translate!C182","v":"Kiribati"}]
[null,null,null,null,{"$f":"Translate!C183","v":"Kuwait"}]
[null,null,null,null,{"$f":"Translate!C184","v":"Kyrgyzstan"}]
[null,null,null,null,{"$f":"Translate!C185","v":"Lao People's Democratic Republic "}]
[null,null,null,null,{"$f":"Translate!C186","v":"Latvia"}]
[null,null,null,null,{"$f":"Translate!C187","v":"Lebanon"}]
[null,null,null,null,{"$f":"Translate!C188","v":"Lesotho"}]
[null,null,null,null,{"$f":"Translate!C189","v":"Liberia"}]
[null,null,null,null,{"$f":"Translate!C190","v":"Libya"}]
[null,null,null,null,{"$f":"Translate!C191","v":"Liechtenstein"}]
[null,null,null,null,{"$f":"Translate!C192","v":"Lithuania"}]
[null,null,null,null,{"$f":"Translate!C193","v":"Luxembourg"}]
[null,null,null,null,{"$f":"Translate!C194","v":"Madagascar"}]
[null,null,null,null,{"$f":"Translate!C195","v":"Malawi"}]
[null,null,null,null,{"$f":"Translate!C196","v":"Malaysia"}]
[null,null,null,null,{"$f":"Translate!C197","v":"Maldives"}]
[null,null,null,null,{"$f":"Translate!C198","v":"Mali"}]
[null,null,null,null,{"$f":"Translate!C199","v":"Malta"}]
[null,null,null,null,{"$f":"Translate!C200","v":"Marshall Islands "}]
[null,null,null,null,{"$f":"Translate!C201","v":"Mauritania"}]
[null,null,null,null,{"$f":"Translate!C202","v":"Mauritius"}]
[null,null,null,null,{"$f":"Translate!C203","v":"Mexico"}]
[null,null,null,null,{"$f":"Translate!C204","v":"Micronesia "}]
[null,null,null,null,{"$f":"Translate!C205","v":"Monaco"}]
[null,null,null,null,{"$f":"Translate!C206","v":"Mongolia"}]
[null,null,null,null,{"$f":"Translate!C207","v":"Montenegro"}]
[null,null,null,null,{"$f":"Translate!C208","v":"Morocco"}]
[null,null,null,null,{"$f":"Translate!C209","v":"Mozambique"}]
[null,null,null,null,{"$f":"Translate!C210","v":"Myanmar"}]
[null,null,null,null,{"$f":"Translate!C211","v":"Namibia"}]
[null,null,null,null,{"$f":"Translate!C212","v":"Nauru"}]
[null,null,null,null,{"$f":"Translate!C213","v":"Nepal"}]
[null,null,null,null,{"$f":"Translate!C214","v":"Netherlands "}]
[null,null,null,null,{"$f":"Translate!C215","v":"New Zealand"}]
[null,null,null,null,{"$f":"Translate!C216","v":"Nicaragua"}]
[null,null,null,null,{"$f":"Translate!C217","v":"Niger "}]
[null,null,null,null,{"$f":"Translate!C218","v":"Nigeria"}]
[null,null,null,null,{"$f":"Translate!C219","v":"North Macedonia"}]
[null,null,null,null,{"$f":"Translate!C220","v":"Norway"}]
[null,null,null,null,{"$f":"Translate!C221","v":"Oman"}]
[null,null,null,null,{"$f":"Translate!C222","v":"Pakistan"}]
[null,null,null,null,{"$f":"Translate!C223","v":"Palau"}]
[null,null,null,null,{"$f":"Translate!C224","v":"Palestine"}]
[null,null,null,null,{"$f":"Translate!C225","v":"Panama"}]
[null,null,null,null,{"$f":"Translate!C226","v":"Papua New Guinea"}]
[null,null,null,null,{"$f":"Translate!C227","v":"Paraguay"}]
[null,null,null,null,{"$f":"Translate!C228","v":"Peru"}]
[null,null,null,null,{"$f":"Translate!C229","v":"Philippines "}]
[null,null,null,null,{"$f":"Translate!C230","v":"Poland"}]
[null,null,null,null,{"$f":"Translate!C231","v":"Portugal"}]
[null,null,null,null,{"$f":"Translate!C232","v":"Qatar"}]
[null,null,null,null,{"$f":"Translate!C233","v":"Republic of Korea "}]
[null,null,null,null,{"$f":"Translate!C234","v":"Republic of Moldova "}]
[null,null,null,null,{"$f":"Translate!C235","v":"Romania"}]
[null,null,null,null,{"$f":"Translate!C236","v":"Russian Federation "}]
[null,null,null,null,{"$f":"Translate!C237","v":"Rwanda"}]
[null,null,null,null,{"$f":"Translate!C238","v":"Saint Kitts and Nevis"}]
[null,null,null,null,{"$f":"Translate!C239","v":"Saint Lucia"}]
[null,null,null,null,{"$f":"Translate!C240","v":"Saint Vincent and the Grenadines"}]
[null,null,null,null,{"$f":"Translate!C241","v":"Samoa"}]
[null,null,null,null,{"$f":"Translate!C242","v":"San Marino"}]
[null,null,null,null,{"$f":"Translate!C243","v":"Sao Tome and Principe"}]
[null,null,null,null,{"$f":"Translate!C244","v":"Saudi Arabia"}]
[null,null,null,null,{"$f":"Translate!C245","v":"Senegal"}]
[null,null,null,null,{"$f":"Translate!C246","v":"Serbia"}]
[null,null,null,null,{"$f":"Translate!C247","v":"Seychelles"}]
[null,null,null,null,{"$f":"Translate!C248","v":"Sierra Leone"}]
[null,null,null,null,{"$f":"Translate!C249","v":"Singapore"}]
[null,null,null,null,{"$f":"Translate!C250","v":"Slovakia"}]
[null,null,null,null,{"$f":"Translate!C251","v":"Slovenia"}]
[null,null,null,null,{"$f":"Translate!C252","v":"Solomon Islands"}]
[null,null,null,null,{"$f":"Translate!C253","v":"Somalia"}]
[null,null,null,null,{"$f":"Translate!C254","v":"South Africa"}]
[null,null,null,null,{"$f":"Translate!C255","v":"South Sudan"}]
[null,null,null,null,{"$f":"Translate!C256","v":"Spain"}]
[null,null,null,null,{"$f":"Translate!C257","v":"Sri Lanka"}]
[null,null,null,null,{"$f":"Translate!C258","v":"Sudan "}]
[null,null,null,null,{"$f":"Translate!C259","v":"Suriname"}]
[null,null,null,null,{"$f":"Translate!C260","v":"Sweden"}]
[null,null,null,null,{"$f":"Translate!C261","v":"Switzerland"}]
[null,null,null,null,{"$f":"Translate!C262","v":"Syria"}]
[null,null,null,null,{"$f":"Translate!C263","v":"Tajikistan"}]
[null,null,null,null,{"$f":"Translate!C264","v":"Tanzania "}]
[null,null,null,null,{"$f":"Translate!C265","v":"Thailand"}]
[null,null,null,null,{"$f":"Translate!C266","v":"Timor-Leste"}]
[null,null,null,null,{"$f":"Translate!C267","v":"Togo"}]
[null,null,null,null,{"$f":"Translate!C268","v":"Tonga"}]
[null,null,null,null,{"$f":"Translate!C269","v":"Trinidad and Tobago"}]
[null,null,null,null,{"$f":"Translate!C270","v":"Tunisia"}]
[null,null,null,null,{"$f":"Translate!C271","v":"Turkey"}]
[null,null,null,null,{"$f":"Translate!C272","v":"Turkmenistan"}]
[null,null,null,null,{"$f":"Translate!C273","v":"Tuvalu"}]
[null,null,null,null,{"$f":"Translate!C274","v":"Uganda"}]
[null,null,null,null,{"$f":"Translate!C275","v":"Ukraine"}]
[null,null,null,null,{"$f":"Translate!C276","v":"United Arab Emirates "}]
[null,null,null,null,{"$f":"Translate!C277","v":"United Kingdom"}]
[null,null,null,null,{"$f":"Translate!C278","v":"United States of America "}]
[null,null,null,null,{"$f":"Translate!C279","v":"Uruguay"}]
[null,null,null,null,{"$f":"Translate!C280","v":"Uzbekistan"}]
[null,null,null,null,{"$f":"Translate!C281","v":"Vanuatu"}]
[null,null,null,null,{"$f":"Translate!C282","v":"Venezuela "}]
[null,null,null,null,{"$f":"Translate!C283","v":"Viet Nam"}]
[null,null,null,null,{"$f":"Translate!C284","v":"Yemen"}]
[null,null,null,null,{"$f":"Translate!C285","v":"Zambia"}]
[null,null,null,null,{"$f":"Translate!C286","v":"Zimbabwe"}]